Workbook

Sheet Start
F1: 1 | G1: 2 | I1: 0
A2: 1 | B2: Start
A3: 2 | B3: Start
A5: 0 | D5: 2 | E5: 0 | F5: I have developed a set of Excel files, which may be used in lectures, but which are also usable for self-studying. This file contains many explanations for basic Excel techniques, which are used in the other files. Therefore - if in the other files it is said "Do this … and that …" and you don't know how to do it - please have a look into this file. Hopefully you will find the needed explanations here. If not - send me a short notice to stern@jade-hs.de! Before you start working with the other files you should definitely work through the two sheets "How to make notes" and "Help ..." in this file! If the buttons for language switching don't work, please click the following: File / Options / Trust Center / Trust Center Settings / Macro Settings / Enable All Macros Then close and re-open this file again. | G5: Ich habe eine Reihe von Excel-Dateien entwickelt, die in Vorlesungen benutzt werden können, die aber auch zum Selbststudium geeignet sind. Diese Datei hier enthält detaillierte Erläuterungen zu vielen grundlegenen Excel-Techniken, die in den anderen Dateien benutzt werden. Wenn es daher in einer der anderen Dateien heißt "Machen Sie dieses … und jenes …" und Sie wissen nicht wie - sehen Sie bitte hier nach. Hoffentlich finden Sie dann die benötigten Erklärungen. Wenn nicht - schicken Sie mir bitte einen Hinweis an stern@jade-hs.de! Bevor Sie beginnen, mit den anderen Dateien zu arbeiten, sollten Sie aber auf jeden Fall zuerst die beiden Blätter "Notizen machen" und "Hilfe ..." hier in dieser Datei durchgearbeitet haben! Wenn die Buttons zur Sprachumschaltung nicht funktionieren, klicken Sie bitte folgendes an: Datei / Optionen / Trust-Center / Einstellungen für das Trust-Center / Makroeinstellungen / Alle Makros aktivieren Dann diese Datei schließen und erneut öffnen.
C6: Start
C7: Vorlage
C8: Zufallszahlen
C9: 01 Notizen machen | E9: 1009.5
C10: 02 Hilfe | E10: 102
C11: 03 Tastenkürzel | E11: 0
C12: 04 Funktionen Deutsch-Englisch
C13: 05 Formel kopieren
C14: 06 Einfügen
C15: 07 Bereichsnamen
C16: 08 Stammdaten
C17: 09 Office Zwischenablage
C18: 10 Bedingte Formatierung 1
C19: 11 Bedingte Format. 2 (A)
C20: 12 Absoluter Zellbezug (A)
C21: 13 Datenüberprüfung
C22: 13 List data
C23: 14 Absol.-relativ-kumul. (A)
C24: 15 Spur und Fehlerüberprüf.
C25: 16 Blattschutz
C26: 17 Benutzerdef. Listen
C27: 18 Benutzerdef. Formate
C28: 19 Regionalisierung
C29: 20 Zahlenformate
C30: 21 Währungsformate
C31: 22 Prozentformate
C32: 23 Datumsformate
C33: 24 Zeitdifferenzen (A)
C34: 25 KALENDERWOCHE()
C35: 26 WOCHENTAG()
C36: 27 "Seltsame" Zeitformate (A)
C37: 28 UNIZEICHEN()

Sheet Vorlage
F1: 0
A2: 1 | B2: Template | F2: Back to Start
A3: 2 | B3: Vorlage | F3: Startseite
A12: 0

Sheet Vorlage_ (hidden)
B1: 2 | C1: 2 | D1: 2 | E1: 1 | F1: 1 | G1: 1 | H1: 0
A2: 1 | B2: Template_ | F2: =B2 -> Template_
A3: 2 | B3: Vorlage_
A4: 0
B5: 1 | C5: In meinen Übungsdateien können Sie nicht wie üblich durch Klick auf das Pluszeichen ein neues Arbeitsblatt anlegen. Wenn Sie ein neues Blatt brauchen, müssen Sie eine Kopie des Blattes "Vorlage" anlegen. ACHTUNG: Denken Sie daran, die Option "Kopie erstellen" zu aktivieren! | E5: 1 | F5: In my exercise files you cannot create a new worksheet by clicking on the plus sign as usual. If you need a new sheet, you have to create a copy of the sheet "Template". ATTENTION: Please remember to activate the option "Create copy"!
B6: =IF(C6<>"",B5+1,"") -> 2 | C6: Nachdem Sie eine Kopie dieses Blattes angelegt haben, ändern Sie dessen Namen NICHT wie üblich unten auf dem Register. Stattdessen schreiben Sie den Blattnamen in die Zelle B3 des kopierten Blattes. Anschließend wechseln Sie auf das "Start"-Blatt und klicken dort erneut auf den Sprachbutton. Dann müssen Sie evtl. etwas Geduld haben, weil Excel alle Blätter - auch die ausgeblendeten mit den Videotexten - durchgeht, um sie in's Inhaltsverzeichnis aufzunehmen. Der neue Name erscheint dann in der Liste der Blätter auf dem "Start"-Blatt und auf dem Register des kopierten Blattes. | E6: =IF(F6<>"",E5+1,"") -> 2 | F6: After you have created a copy of this sheet, DO NOT change its name as usual at the bottom of the tab. Instead, write the sheet name in cell B2 of the copied sheet. Then switch to the "Start" page and click on the language button again. Then you may have to have some patience, because Excel goes through all sheets - even the hidden ones with the video texts - to include them into the table of contents. The new name then appears in the list of sheets on the "Start" sheet and on the tab of the copied sheet.
B7: =IF(C7<>"",B6+1,"") ->  | E7: =IF(F7<>"",E6+1,"") -> 

Sheet Zufallszahlen
J1: 0
A2: 1 | B2: Random numbers | F2: Back to Start
A3: 2 | B3: Zufallszahlen | F3: Startseite
A5: 2 | B5: Achtung | C5: Wenn Sie nach dem Drücken von Strg-Umschalt-N eine Fehlermeldung bekommen, müssen Sie zunächst die Makros aktivieren: "Datei / Optionen / Trust Center / Einstellungen für das Trust Center / Makroeinstellungen / Alle Makros aktivieren / OK / OK"
A6: 2
A7: 2
A8: 2
A9: 2
A10: 1 | B10: Attention | C10: If you see an error message after pressing Ctrl-Shift-N you have to activate the macros first: "File / Options / Trust Center / Trust Center Settings / Macro Settings / Enable all macros / OK / OK"
A11: 1
A12: 1
A13: 1
A42: 1 | B42: Exercise | C42: Try it!
A43: 2 | B43: Übung | C43: Probieren Sie es aus!
A44: 0

Sheet Zufallszahlen_ (hidden)
B1: 2 | C1: 2 | D1: 2 | E1: 1 | F1: 1 | G1: 1 | H1: 0
A2: 1 | B2: Random numbers_ | F2: =B2 -> Random numbers_
A3: 2 | B3: Zufallszahlen_
A4: 0
B5: 1 | C5: Diese Excel-Datei enthält ein Formular zur Generierung von Zufallszahlen. Sie können es mit der Tastenkombination Strg-Umschalt-N öffnen. Dann können Sie es benutzen, um sich schnell beliebige Mengen von Übungsdaten zu generieren! | E5: 1 | F5: This Excel file contains a form for the generation of random numbers. You can open it with the shortcut Ctrl-Shift-N. Then you can use it to generate very quickly any number of trial data!
B6: =IF(C6<>"",B5+1,"") -> 2 | C6: Dazu müssen Sie zuerst einen Bereich markieren, der mit Zufallszahlen gefüllt werden soll. Dieser Bereich kann auch aus mehreren nicht zusammenhängenden Teilbereichen bestehen! (markieren mit gedrückter Strg-Taste) Dann geben Sie die Parameter für die Generierung der Zufallszahlen ein und drücken "Bereich(e) füllen". Sie können auswählen, ob - ein Teil der Zellen leer bleiben soll, - ein Teil der Zahlen negativ sein soll, - nur ganze Zahlen generiert werden sollen. Mit dem Button "Bereich(e) leeren" können Sie … ok … das muss ich wohl nicht beschreiben. | E6: =IF(F6<>"",E5+1,"") -> 2 | F6: To do this, you must first select a range to be filled with random numbers. This range can also consist of several non-contiguous sub ranges! (selected with pressed Ctrl key) Then enter the parameters for the generation of the random numbers and press "Fill range(s)". You can choose whether - some of the cells should remain empty, - some of the numbers should be negative, - only integer numbers should be generated. With the button "Clear range(s)" you can ... ok ... I don't have to describe that.
B7: =IF(C7<>"",B6+1,"") ->  | E7: =IF(F7<>"",E6+1,"") -> 

Sheet 01 Notizen machen
I1: 0
A2: 1 | B2: 01 How to make notes | F2: Back to Start
A3: 2 | B3: 01 Notizen machen | F3: Startseite
A5: 2 | C5: Hier möchte ich Ihnen einige Tipps geben, wie Sie sich Notizen machen können - speziell auch zur Funktionsweise von Excel-Formeln.
A6: 2
A7: 1 | C7: Here I want to give you some tips, how to make notes - especially concerning the functioning of Excel formulas.
A8: 1
A31: 2 | B31: FORMELTEXT()
A32: 1 | B32: FORMULATEXT()
D34: 25 | G34: 25
D35: 15 | G35: 15
D36: 78 | G36: 78
D37: =SUM(D34:D36) -> 118 | E37: =_xlfn.FORMULATEXT(D37) -> =SUMME(D34:D36) | G37: =AVERAGE(G34:G36) -> 39.33333333 | H37: =_xlfn.FORMULATEXT(G37) -> =MITTELWERT(G34:G36)
A39: 2 | B39: Hochkomma | D39: =SUMME(D34:D36)
A40: 1 | B40: Inverted comma | D40: =SUM(D34:D36)
A42: 2 | B42: Formeln anzeigen
A43: 1 | B43: Show Formulas
A45: 2 | B45: "Drucken"-Taste
A46: 1 | B46: "Print" key
A48: 2 | B48: "Alt"-"Drucken"
A49: 1 | B49: "Alt"-"Print"
A51: 2 | B51: Snipping Tool
A52: 1 | B52: Snipping Tool
A63: 2 | B63: Offene Menüs
A64: 1 | B64: Open Menus
A66: 2 | B66: Übung | C66: Üben Sie diese Techniken mit einem beliebigen Excel-Arbeitsblatt!
A67: 1 | B67: Exercise | C67: Train these techniques with any Excel worksheet!
A69: 0

Sheet 01 Notizen machen_ (hidden)
B1: 2 | C1: 2 | D1: 2 | E1: 1 | F1: 1 | G1: 1 | H1: 0
A2: 1 | B2: 01 How to make notes_ | F2: =B2 -> 01 How to make notes_
A3: 2 | B3: 01 Notizen machen_
A5: 0 | B5: 1 | C5: Wenn Sie einen längeren Text schreiben wollen, schaffen Sie sich so den nötigen Platz: - markieren Sie mehrere Zellen - Klicken Sie auf "Start / Ausrichtung / Verbinden und zentrieren" - Aktivieren Sie "Start / Ausrichtung / Textumbruch" + "Linksbündig" + "Oben ausrichten" | E5: 1 | F5: If you want to write a longer text, you can create the necessary space as follows: - highlight several cells - Click "Home / Alignment / Merge & Center" - Activate "Home / Alignment / Wrap Text" + "Align Left" + "Top Align"
B6: =IF(C6<>"",B5+1,"") -> 2 | C6: Wenn Sie dann feststellen, dass der Bereich zu klein ist, können Sie einen größeren Bereich markieren, der den vorhandenen (zu kleinen) Bereich mit einschließt und noch einmal "Verbinden und zentrieren" ausführen. Sie müssen das allerdings zweimal tun, weil beim ersten mal nur die Verbindung des zu kleinen Bereiches aufgehoben wird. Erst beim zweiten mal wird der größere Bereich verbunden. | E6: =IF(F6<>"",E5+1,"") -> 2 | F6: If you reccognize, that the range for your text is too small, you can mark a larger range, which includes the existing (too small) range and execute again "Merge & Center". But you have to do this twice, because at the first time, only the merge of the the small range is removed. Then, at the second time, the larger range is merged.
B7: =IF(C7<>"",B6+1,"") -> 3 | C7: Für einen Zeilenumbruch im Text drücken Sie Alt-Enter statt nur Enter. Manchmal funktioniert der Zeilenumbruch nicht. Dann müssen Sie die Zeilenhöhe durch Ziehen mit der Maus selber vergrößern. | E7: =IF(F7<>"",E6+1,"") -> 3 | F7: For a line break in your text press Alt-Enter instead of only Enter. Sometimes "Wrap Text" does not work. Then you must increase the row height yourself by dragging it with the mouse.
B8: 4 | C8: Mit Hilfe der Funktion FORMELTEXT() können Sie sich in einer Zelle anzeigen lassen, welche Formel in einer anderen Zelle steht. | E8: 4 | F8: Using the function FORMULATEXT() you can display in one cell, which formula another cell contains:
B9: 5 | C9: Wenn Sie die Eingabe in einer Zelle mit einem Hochkomma beginnen, interpretiert Excel den Zellinhalt als Text und nicht als Formel. | E9: 5 | F9: If you start the input in a cell with an inverted comma, Excel interprets the cell content as text and not as a formula.
B10: 6 | C10: Wenn Sie "Formeln / Formelüberwachung / Formeln anzeigen" anklicken, werden alle Formeln anstelle ihrer Ergebnisse angezeigt. | E10: 6 | F10: If you click "Formulas / Formula Auditing / Show Formulas" all formulas are displayed instead of their results.
B11: 7 | C11: Wenn Sie die "Drucken"-Taste drücken, wird der gesamte Bildschirminhalt in die Zwischenablage kopiert. Sie können das Bild dann mit Strg-V in Ihr Dokument einfügen. Wenn Sie die Tastenkombination "Alt"-"Drucken" drücken, wird nur das aktuelle Fenster in die Zwischenablage kopiert. Sie können das Bild dann mit Strg-V in Ihr Dokument einfügen. | E11: 7 | F11: If you press the "Print" key on your keyboard, the complete screen is copied to the clipboard. Then you can insert the picture into your document with Ctrl-V. If you press the "Alt" key together with the "Print" key, only the current window is copied to the clipboard. Then you can insert the picture into your document with Ctrl-V.
B12: 8 | C12: Mit dem Snipping Tool können Sie beliebige (auch nicht rechteckige!) Bereiche Ihres Bildschirms "fotografieren", in die Zwischenablage kopieren und dann mit Strg-V in Ihr Dokument einfügen. Um schnell darauf zugreifen zu können, sollten Sie sich das Snipping Tool per Drag&Drop in die Befehlszeile am unteren Bildschirmrand legen! Sie finden das Snipping Tool unter "Start / Windows-Zubehör". | E12: 8 | F12: Using the Snipping Tool you can "take a photo" from any (also not rectangular!) range of your screen, copy it to the clipboard and insert it into your document with Ctrl-V. For a quick access to the snipping tool you should put it via drag&drop into the command line at the lower border of your screen! You can find the snipping tool under "Windows / Accessories".
B13: 9 | C13: Mit den hier beschriebenen Methoden erscheint es zunächst unmöglich, geöffnete Menüs zu fotografieren. Es gibt dafür aber die folgenden zwei Techniken: ERSTENS: Öffnen Sie das Menü und machen dann mit der "Drucken"-Taste ein Foto des gesamten Bildschirms. Fügen Sie dieses in Ihr Dokument ein. Schneiden Sie dann mit dem Snipping Tool den gewünschten Bereich daraus aus. Dann löschen Sie das Bild des gesamten Bildschirms und fügen den ausgeschnittenen Bereich ein. | E13: 9 | F13: With the methods described here it seems impossible to take photos of open menus. But there are two techniques for that: FIRST: Open the menu and take a photo of the whole screen by pressing the "Print" key. Insert it into your document. Then use the snipping tool to take a photo of the range of your interest. Delete the screenshot and insert the photo you have made with the snipping tool.
B14: 10 | C14: Mit den hier beschriebenen Methoden erscheint es zunächst unmöglich, geöffnete Menüs zu fotografieren. Es gibt dafür aber die folgenden zwei Techniken: ZWEITENS: Öffnen Sie das Snipping Tool, stellen Sie dort eine Verzögerungszeit ein und klicken auf "Neu". Öffnen Sie dann (schnell!) das Menü, das Sie fotografieren wollen, und warten Sie, bis die Verzögerungszeit abgelaufen ist. Jetzt bleibt das Menü offen, während Sie den zu fotografierenden Bereich mit der Maus markieren! | E14: 10 | F14: With the methods described here it seems impossible to take photos of open menus. But there are two techniques for that: SECOND: Open the snipping tool, enter a delay time there and click to "New". Now open (quickly!) the menu, of which you want to take a photo and wait until the delay time is over. Now the menu remains open while you are marking the range for your photo!

Sheet 02 Hilfe
J1: 0
A2: 1 | B2: 02 Help | F2: Back to Start
A3: 2 | B3: 02 Hilfe | F3: Startseite
A5: 1 | B5: … in the internet: | C5: https://support.office.com/en-gb/excel
A6: 2 | B6: … im Internet: | C6: https://support.office.com/de-de/excel
A9: 1 | B9: … for functions
A10: 2 | B10: … zu Funktionen:
A12: 2 | B12: Wenn Sie zu einer Excel-Funktion Hilfe brauchen und …
A13: 1 | B13: If you need help for an Excel function and …
A15: 2 | B15: … bereits wissen, wie die Funktion heißt:
A16: 1 | B16: … you know already the name of the function:
C24: 30
C25: 75
C26: 18
C27: 22
C28: 44
C29: =SUM(C24:C28) -> 189
A31: 2 | B31: optionale Argumente
A32: 1 | B32: optional arguments
C34: =TODAY() -> 2023-02-28 | D34: ==> | E34: =WEEKDAY(C34) -> 1900-01-03
A36: 2 | B36: … noch nicht wissen, welche Funktion Sie benötigen:
A37: 2 | C37: https://support.microsoft.com/de-de/excel
A38: 2 | C38: https://support.microsoft.com/de-de/office/formeln-und-funktionen-294d9486-b332-48ed-b489-abe7d0f9eda9?ui=de-DE&rs=de-DE&ad=DE#ID0EAABAAA=Formulas
A39: 2 | C39: https://support.microsoft.com/de-de/office/excel-funktionen-nach-kategorie-5f91f4e9-7b42-46d2-9bd1-63f26a86c0eb
A40: 1 | B40: … you don't know, which function you may need:
A41: 1 | C41: https://support.microsoft.com/en-gb/excel
A42: 1 | C42: https://support.microsoft.com/en-gb/office/formulas-and-functions-294d9486-b332-48ed-b489-abe7d0f9eda9?ui=en-US&rs=en-GB&ad=GB
A43: 1 | C43: https://support.microsoft.com/en-us/office/excel-functions-by-category-5f91f4e9-7b42-46d2-9bd1-63f26a86c0eb
K45: Guten Tag Herr Stern, ich hoffe Sie hatten eine angenehme vorlesungsfreie Zeit. Nachdem ich mich an Ihr Angebot erinnere, auch mal bei Fragen außerhalb der Vorlesungen zu helfen, würde ich mich gerne an Sie mit folgendem Problem wenden: Wir nutzen in der Firma eine Exceltabelle zur Erfassung des Datums, an welchem ein Datenfile an uns geschickt wurde. Hierbei wird händisch das Datum des Erhalts in die jeweilige Zelle eingetragen. Nun die Frage: Haben Sie eine Idee, wie man eine bedingte Formatierung gestalten könnte, sodass sich die Zelle rot färbt, wenn das eingetragene Datum kleiner ist als das des zweitletzten Tages des vorangegangenen Monats und ansonsten grün, wenn das Datum jünger ist. Das Problem dabei ist, dass ich es nicht so formatiert bekomme, dass die bedingte Formatierung den vorletzten Tag des Vormonats nehmen würde und nicht den letzten. Sollten Ihnen noch Informationen fehlen oder meine Schilderung Unklarheiten beinhalten, lassen Sie mich das gerne noch wissen. Vielen Dank und freundliche Grüße,
A63: 2 | B63: … im Internet: | C63: http://www.office-fragen.de/index.php/board,82.0.html
A64: 2 | C64: http://www.office-loesung.de/index3.php | K64: aktuelles | L64: zweitletzter | N64: Datum
A65: 2 | C65: http://www.office-loesung.de/p/viewforum.php?f=166&sid=6ac2b80af05761b2f0c89ec56632c7d5 | K65: Datum | L65: Tag des Vormonats | N65: des Files
A66: 2 | C66: https://www.clever-excel-forum.de/ | K66: 2023-02-28 | L66: =EOMONTH($K$66,-1)-1 -> 2023-01-30 | N66: 2022-12-25
A67: 2 | C67: https://www.ms-office-forum.net/forum/forumdisplay.php?f=29 | N67: 2022-12-31
A68: 2 | B68: !!! | C68: https://www.herber.de/excelformeln/ | N68: 2023-01-15
N69: 2023-02-12
A70: 2 | B70: Übung 1 | C70: Finden Sie heraus, welches Ergebnis die folgenden Funktionen liefern und welche Art von Argumenten sie benötigen: (a) LINKS() (b) TEIL() (c) WENN() (d) SUMMEWENN() | N70: 2023-02-20
A71: 2
A72: 2
A73: 2
A74: 2
A75: 2
A76: 2
A77: 2 | B77: Übung 2 | C77: Finden Sie heraus, welche Funktion Sie jeweils benötigen, um folgendes zu tun: (a) den arithmetischen Mittelwert zu berechnen (b) die Kalenderwoche eines Datums ermitteln (c) die Anzahl der Zeilen in einem Bereich ermitteln (d) den Barwert einer Investition ausrechnen
A78: 2
A79: 2
A80: 2
A81: 2
A83: 1 | B83: Exercise 1 | C83: Find out, which result the following functions provide and which kind of arguments they need: (a) LEFT() (b) MID() (c) IF() (d) SUMIF()
A85: 1
A86: 1
A87: 1
A88: 1
A89: 1
A90: 1 | B90: Exercise 2 | C90: Find out, which function you will need to do the following: (a) to calculate the average of some numbers (b) to find out the calendar week of a date (c) to find the number of rows in a range (d) to calculate the present value of an investment
A91: 1
A92: 1
A93: 1
A94: 1
A97: 0

Sheet 02 Hilfe_ (hidden)
C1: 2 | D1: 2 | E1: 1 | F1: 1 | G1: 1 | H1: 0
A2: 1 | B2: 02 Help_ | F2: =B2 -> 02 Help_
A3: 2 | B3: 02 Hilfe_
A5: 0 | B5: 1 | C5: Geben Sie ein Gleichheitszeichen ein, den Namen der Funktion und die öffnende Klammer. Daraufhin erscheint unter dem Funktionsnamen ein kleines Hilfefenster. Wenn Sie darin auf den Funktionsnamen klicken, sind Sie sofort an der richtigen Stelle in der Excel-Hilfe! | E5: 1 | F5: Enter the equal sign, the name of the function and the open bracket. Then a small window will appear below the function name. If you click there on the function name, you are immediately at the right position in the Excel help!
B6: =IF(C6<>"",B5+1,"") -> 2 | C6: In eckigen Klammern angezeigte Funktionsargumente sind optional - d.h. Sie können sie bei der Eingabe der Funktion weglassen. Das bedeutet aber, dass Excel dann automatisch Standardwerte dafür einsetzt. Sicherheitshalber sollten Sie sich in der Hilfe informieren, welche Standardwerte Excel einsetzt! | E6: =IF(F6<>"",E5+1,"") -> 2 | F6: Arguments in square brackets are optional, i.e. you don't have to enter them. But that means, that Excel automatically enters standard values. To be sure you should inform yourself in the Excel help, which standard values Excel will enter!
B7: =IF(C7<>"",B6+1,"") -> 3 | C7: Rufen Sie mit der F1-Taste die online-Hilfe auf. Geben Sie den Suchbegriff "Funktionen" ein. Klicken Sie auf den Treffer "Excel-Funktionen (nach Kategorie)". Wählen Sie jetzt die Kategorie aus, zu der Sie eine Funktion suchen (z.B. "Datums- und Uhrzeitfunktionen"). Scrollen Sie durch die Liste und lesen Sie die Beschreibungen der Funktionen. Bestimmt ist eine dabei, die Ihr Problem löst! Die Hilfe wird übrigens von Microsoft online zur Verfügung gestellt. Sie können den Link auch direkt benutzen und den Hilfetext im Brower lesen. | E7: =IF(F7<>"",E6+1,"") -> 3 | F7: Call the Excel help by pressing the F1 key. Enter the search word "functions". Click on the hit "Excel functions (by category)". Select now the category, which may contain the function you are looking for (e.g. "Date and time functions"). Scroll through the list and read the descriptions of the functions. Surely there will be one, that solves your problem! By the way, the help is provided online by Microsoft. You can also use the link directly and read the help text in the browser.
B8: =IF(C8<>"",B7+1,"") -> 4 | C8: Wenn gar nichts anderes hilft, sollten Sie sich an ein Forum wenden. Aber ACHTUNG: Mit ziemlicher Sicherheit hat jemand anderes Ihr Problem auch schon mal gehabt. Darum immer erst die Suchfunktion benutzen, bevor Sie die Leute im Forum nerven, indem Sie eine bereits beantwortete Frage erneut stellen! Hier sehen Sie einige Beispiele für Foren. Die Links können aber schon veraltet sein, wenn Sie diese Datei benutzen. Also einfach mal selber googeln ... | E8: =IF(F8<>"",E7+1,"") -> 4 | F8: If nothing else helps, you should contact a forum. But ATTENTION: It is almost certain that someone else has had your problem as well. Therefore, always use the search function first before you annoy people in the forum by asking an already answered question again!

Sheet 03 Tastenkürzel
D1: 2 | E1: 1 | F1: 2 | G1: 1 | J1: 0
A2: 1 | B2: 03 Shortcuts | C2: Back to Start
A3: 2 | B3: 03 Tastenkürzel | C3: Startseite
D4: Markieren | E4: Highlight
D5: Strg-Umschalt-Pfeil_unten | E5: Ctrl-Shift-Arrow_down | F5: schnelles Markieren einer Liste | G5: quick highlighting of a list | I5: 20 | J5: 97 | K5: 56 | L5: 74 | M5: 76 | N5: 61
D6: Strg-Umschalt-Pfeil_oben | E6: Ctrl-Shift-Arrow_up | I6: 97 | J6: 66 | K6: 41 | L6: 53 | M6: 50 | N6: 1
D7: Strg-Umschalt-Pfeil_links | E7: Ctrl-Shift-Arrow_left | I7: 53 | J7: 97 | K7: 5 | L7: 14 | M7: 84 | N7: 57
D8: Strg-Umschalt-Pfeil_rechts | E8: Ctrl-Shift-Arrow_right | I8: 51 | J8: 69 | K8: 32 | L8: 60 | M8: 26 | N8: 19
I9: 51 | J9: 96 | K9: 57 | L9: 90 | M9: 28 | N9: 73
D10: Strg-A | E10: Ctrl-A | F10: Alles markieren | G10: highlight all | I10: 16 | J10: 86 | K10: 58 | L10: 22 | M10: 7 | N10: 30
I11: 5 | J11: 20 | K11: 41 | L11: 12 | M11: 38 | N11: 43
D12: Copy&Paste | E12: Copy&Paste | I12: 54 | J12: 9 | K12: 20 | L12: 94 | M12: 89 | N12: 73
D13: Strg-C | E13: Ctrl-C | F13: Kopieren | G13: copy | I13: 52 | J13: 80 | K13: 26 | L13: 69 | M13: 76 | N13: 17
D14: Strg-Einfg | E14: Ctrl-Ins | F14: Kopieren | G14: copy | I14: 73 | J14: 57 | K14: 97 | L14: 82 | M14: 12 | N14: 99
I15: 92 | J15: 92 | K15: 33 | L15: 31 | M15: 66 | N15: 92
D16: Strg-V | E16: Ctrl-V | F16: Einfügen | G16: paste | I16: 87 | J16: 53 | K16: 46 | L16: 3 | M16: 58 | N16: 21
D17: Umschalt-Einfg | E17: Shift-Ins | F17: Einfügen | G17: paste | I17: 46 | J17: 34 | K17: 33 | L17: 27 | M17: 60 | N17: 67
I18: 16 | J18: 26 | K18: 13 | L18: 78 | M18: 76 | N18: 75
A19: 0 | D19: Strg-X | E19: Ctrl-X | F19: Ausschneiden | G19: cut | I19: 72 | J19: 9 | K19: 70 | L19: 31 | M19: 21 | N19: 22
I20: 5 | J20: 89 | K20: 7 | L20: 67 | M20: 26 | N20: 16
D21: Screenshot | E21: Screenshot | I21: 13 | J21: 30 | K21: 38 | L21: 56 | M21: 34 | N21: 21
D22: Drucken | E22: Print | F22: Kopie des Bildschirms in die Zwischenablage | G22: copy the screen into the clipboard | I22: 54 | J22: 93 | K22: 77 | L22: 32 | M22: 60 | N22: 32
D23: Alt-Drucken | E23: Alt-Print | F23: Kopie des aktuellen Fensters in die Zwischenablage | G23: copy the current window into the clipboard | I23: 36 | J23: 31 | K23: 95 | L23: 41 | M23: 60 | N23: 72
I24: 37 | J24: 60 | K24: 42 | L24: 82 | M24: 24 | N24: 37
D25: Matrixformeln | E25: Matrix formulas | I25: 48 | J25: 22 | K25: 24 | L25: 31 | M25: 98 | N25: 35
D26: Strg-Umschalt-Enter | E26: Ctrl-Shift-Enter | F26: Eingabe einer Matrixformel | G26: Enter a matrix formula | I26: 31 | J26: 93 | K26: 26 | L26: 7 | M26: 94 | N26: 40
I27: 64 | J27: 39 | K27: 64 | L27: 41 | M27: 54 | N27: 55
I28: 67 | J28: 41 | K28: 87 | L28: 35 | M28: 100 | N28: 97
I29: 58 | J29: 64 | K29: 61 | L29: 48 | M29: 56 | N29: 14
I30: 90 | J30: 9 | K30: 74 | L30: 50 | M30: 48 | N30: 83
I31: 46 | J31: 59 | K31: 12 | L31: 9 | M31: 6 | N31: 3
I32: 1 | J32: 24 | K32: 74 | L32: 100 | M32: 22 | N32: 60
I33: 69 | J33: 29 | K33: 45 | L33: 58 | M33: 44 | N33: 61
I34: 1 | J34: 11 | K34: 45 | L34: 9 | M34: 6 | N34: 31
I35: 100 | J35: 13 | K35: 8 | L35: 41 | M35: 27 | N35: 41
I36: 62 | J36: 94 | K36: 74 | L36: 21 | M36: 26 | N36: 12
I37: 74 | J37: 94 | K37: 91 | L37: 57 | M37: 38 | N37: 95
I38: 18 | J38: 21 | K38: 59 | L38: 58 | M38: 24 | N38: 40
I39: 54 | J39: 43 | K39: 72 | L39: 44 | M39: 19 | N39: 93
I40: 95 | J40: 17 | K40: 20 | L40: 14 | M40: 50 | N40: 94
I41: 3 | J41: 79 | K41: 87 | L41: 73 | M41: 27 | N41: 56
I42: 46 | J42: 64 | K42: 28 | L42: 66 | M42: 84 | N42: 49
I43: 2 | J43: 60 | K43: 25 | L43: 81 | M43: 21 | N43: 26
I44: 26 | J44: 95 | K44: 63 | L44: 15 | M44: 82 | N44: 54
I45: 76 | J45: 99 | K45: 49 | L45: 17 | M45: 65 | N45: 51
I46: 89 | J46: 26 | K46: 100 | L46: 48 | M46: 45 | N46: 30
I47: 54 | J47: 98 | K47: 41 | L47: 22 | M47: 63 | N47: 3
I48: 4 | J48: 9 | K48: 14 | L48: 29 | M48: 13 | N48: 100
I49: 51 | J49: 17 | K49: 71 | L49: 32 | M49: 18 | N49: 11
I50: 6 | J50: 1 | K50: 13 | L50: 12 | M50: 90 | N50: 39
I51: 80 | J51: 59 | K51: 95 | L51: 98 | M51: 13 | N51: 32
I52: 58 | J52: 75 | K52: 100 | L52: 82 | M52: 85 | N52: 48
I53: 77 | J53: 89 | K53: 73 | L53: 45 | M53: 19 | N53: 35
I54: 56 | J54: 39 | K54: 47 | L54: 16 | M54: 83 | N54: 61
I55: 67 | J55: 66 | K55: 13 | L55: 44 | M55: 28 | N55: 17
I56: 41 | J56: 92 | K56: 12 | L56: 72 | M56: 42 | N56: 68
I57: 40 | J57: 16 | K57: 49 | L57: 16 | M57: 12 | N57: 43
I58: 50 | J58: 99 | K58: 67 | L58: 8 | M58: 11 | N58: 68
I59: 65 | J59: 13 | K59: 24 | L59: 56 | M59: 5 | N59: 7
I60: 83 | J60: 91 | K60: 55 | L60: 15 | M60: 78 | N60: 43
I61: 17 | J61: 97 | K61: 22 | L61: 87 | M61: 9 | N61: 24
I62: 100 | J62: 97 | K62: 78 | L62: 85 | M62: 38 | N62: 63
I63: 39 | J63: 13 | K63: 6 | L63: 35 | M63: 29 | N63: 45
I64: 40 | J64: 87 | K64: 99 | L64: 98 | M64: 90 | N64: 10
I65: 22 | J65: 74 | K65: 92 | L65: 32 | M65: 31 | N65: 91
I66: 70 | J66: 57 | K66: 77 | L66: 38 | M66: 56 | N66: 32
I67: 16 | J67: 51 | K67: 41 | L67: 42 | M67: 24 | N67: 22
I68: 48 | J68: 26 | K68: 25 | L68: 29 | M68: 27 | N68: 16
I69: 60 | J69: 85 | K69: 84 | L69: 11 | M69: 67 | N69: 24
I70: 25 | J70: 62 | K70: 95 | L70: 2 | M70: 33 | N70: 94
I71: 40 | J71: 30 | K71: 62 | L71: 45 | M71: 4 | N71: 22
I72: 65 | J72: 37 | K72: 82 | L72: 85 | M72: 38 | N72: 64
I73: 74 | J73: 13 | K73: 100 | L73: 13 | M73: 19 | N73: 23
I74: 84 | J74: 1 | K74: 58 | L74: 11 | M74: 63 | N74: 49
I75: 17 | J75: 25 | K75: 2 | L75: 70 | M75: 22 | N75: 76
I76: 27 | J76: 84 | K76: 30 | L76: 64 | M76: 26 | N76: 67
I77: 96 | J77: 36 | K77: 70 | L77: 11 | M77: 53 | N77: 61
I78: 63 | J78: 23 | K78: 26 | L78: 40 | M78: 17 | N78: 34
I79: 67 | J79: 32 | K79: 48 | L79: 50 | M79: 19 | N79: 8
I80: 100 | J80: 12 | K80: 95 | L80: 36 | M80: 92 | N80: 93
I81: 98 | J81: 79 | K81: 97 | L81: 13 | M81: 48 | N81: 30
I82: 34 | J82: 82 | K82: 50 | L82: 63 | M82: 93 | N82: 64
I83: 75 | J83: 15 | K83: 87 | L83: 76 | M83: 75 | N83: 90
I84: 21 | J84: 99 | K84: 16 | L84: 88 | M84: 92 | N84: 21
I85: 39 | J85: 61 | K85: 15 | L85: 8 | M85: 49 | N85: 91
I86: 68 | J86: 92 | K86: 21 | L86: 96 | M86: 65 | N86: 91
I87: 40 | J87: 61 | K87: 57 | L87: 49 | M87: 62 | N87: 87
I88: 57 | J88: 5 | K88: 96 | L88: 80 | M88: 82 | N88: 85
I89: 20 | J89: 46 | K89: 32 | L89: 16 | M89: 13 | N89: 27
I90: 88 | J90: 74 | K90: 17 | L90: 53 | M90: 33 | N90: 46
I91: 24 | J91: 24 | K91: 100 | L91: 25 | M91: 87 | N91: 12
I92: 51 | J92: 26 | K92: 53 | L92: 91 | M92: 68 | N92: 28
I93: 29 | J93: 94 | K93: 83 | L93: 44 | M93: 63 | N93: 90
I94: 20 | J94: 8 | K94: 57 | L94: 92 | M94: 74 | N94: 96
I95: 5 | J95: 82 | K95: 7 | L95: 69 | M95: 48 | N95: 70
I96: 73 | J96: 37 | K96: 69 | L96: 70 | M96: 62 | N96: 52
I97: 94 | J97: 10 | K97: 79 | L97: 28 | M97: 35 | N97: 55
I98: 39 | J98: 79 | K98: 49 | L98: 66 | M98: 93 | N98: 89
I99: 22 | J99: 81 | K99: 72 | L99: 4 | M99: 83 | N99: 13
I100: 68 | J100: 48 | K100: 38 | L100: 89 | M100: 22 | N100: 65
I101: 30 | J101: 95 | K101: 58 | L101: 89 | M101: 29 | N101: 64
I102: 24 | J102: 32 | K102: 38 | L102: 75 | M102: 69 | N102: 6
I103: 32 | J103: 87 | K103: 41 | L103: 60 | M103: 17 | N103: 90
I104: 8 | J104: 50 | K104: 20 | L104: 86 | M104: 12 | N104: 33
I105: 95 | J105: 94 | K105: 35 | L105: 80 | M105: 60 | N105: 80
I106: 4 | J106: 21 | K106: 60 | L106: 13 | M106: 10 | N106: 12
I107: 52 | J107: 39 | K107: 59 | L107: 25 | M107: 16 | N107: 92
I108: 44 | J108: 70 | K108: 90 | L108: 22 | M108: 45 | N108: 31
I109: 32 | J109: 48 | K109: 52 | L109: 37 | M109: 5 | N109: 39
I110: 10 | J110: 55 | K110: 89 | L110: 18 | M110: 98 | N110: 3
I111: 17 | J111: 92 | K111: 25 | L111: 97 | M111: 34 | N111: 8
I112: 50 | J112: 15 | K112: 85 | L112: 29 | M112: 38 | N112: 90
I113: 26 | J113: 45 | K113: 26 | L113: 29 | M113: 58 | N113: 94
I114: 25 | J114: 51 | K114: 89 | L114: 26 | M114: 45 | N114: 59
I115: 23 | J115: 76 | K115: 39 | L115: 28 | M115: 63 | N115: 70
I116: 79 | J116: 25 | K116: 56 | L116: 58 | M116: 57 | N116: 52
I117: 49 | J117: 65 | K117: 1 | L117: 8 | M117: 74 | N117: 71
I118: 34 | J118: 87 | K118: 63 | L118: 18 | M118: 36 | N118: 92
I119: 81 | J119: 38 | K119: 52 | L119: 80 | M119: 86 | N119: 8
I120: 10 | J120: 25 | K120: 20 | L120: 30 | M120: 70 | N120: 12
I121: 13 | J121: 35 | K121: 100 | L121: 57 | M121: 25 | N121: 13
I122: 71 | J122: 45 | K122: 2 | L122: 68 | M122: 85 | N122: 99
I123: 66 | J123: 97 | K123: 18 | L123: 74 | M123: 25 | N123: 95
I124: 97 | J124: 70 | K124: 6 | L124: 87 | M124: 98 | N124: 77
I125: 20 | J125: 78 | K125: 68 | L125: 44 | M125: 44 | N125: 36
I126: 75 | J126: 67 | K126: 37 | L126: 97 | M126: 81 | N126: 7
I127: 69 | J127: 90 | K127: 41 | L127: 36 | M127: 90 | N127: 1
I128: 23 | J128: 99 | K128: 9 | L128: 41 | M128: 62 | N128: 11
I129: 9 | J129: 62 | K129: 30 | L129: 70 | M129: 81 | N129: 77
I130: 34 | J130: 2 | K130: 87 | L130: 21 | M130: 41 | N130: 27
I131: 42 | J131: 29 | K131: 26 | L131: 51 | M131: 30 | N131: 39
I132: 46 | J132: 85 | K132: 37 | L132: 25 | M132: 37 | N132: 84
I133: 10 | J133: 49 | K133: 37 | L133: 17 | M133: 49 | N133: 40
I134: 39 | J134: 58 | K134: 12 | L134: 2 | M134: 57 | N134: 3
I135: 53 | J135: 41 | K135: 33 | L135: 13 | M135: 84 | N135: 20
I136: 52 | J136: 82 | K136: 61 | L136: 42 | M136: 96 | N136: 25
I137: 91 | J137: 47 | K137: 16 | L137: 100 | M137: 74 | N137: 52
I138: 31 | J138: 48 | K138: 59 | L138: 96 | M138: 49 | N138: 61
I139: 33 | J139: 26 | K139: 19 | L139: 73 | M139: 30 | N139: 99
I140: 1 | J140: 78 | K140: 67 | L140: 14 | M140: 66 | N140: 71
I141: 9 | J141: 61 | K141: 21 | L141: 19 | M141: 46 | N141: 10
I142: 55 | J142: 47 | K142: 15 | L142: 6 | M142: 13 | N142: 62
I143: 27 | J143: 5 | K143: 96 | L143: 89 | M143: 33 | N143: 27
I144: 82 | J144: 43 | K144: 7 | L144: 35 | M144: 75 | N144: 17
I145: 60 | J145: 39 | K145: 82 | L145: 4 | M145: 72 | N145: 30
I146: 5 | J146: 34 | K146: 57 | L146: 28 | M146: 71 | N146: 47
I147: 46 | J147: 67 | K147: 76 | L147: 77 | M147: 1 | N147: 98
I148: 59 | J148: 80 | K148: 45 | L148: 18 | M148: 3 | N148: 65
I149: 30 | J149: 25 | K149: 55 | L149: 70 | M149: 20 | N149: 99
I150: 79 | J150: 48 | K150: 99 | L150: 5 | M150: 23 | N150: 91
I151: 14 | J151: 24 | K151: 23 | L151: 63 | M151: 26 | N151: 5
I152: 24 | J152: 75 | K152: 8 | L152: 48 | M152: 30 | N152: 75
I153: 43 | J153: 9 | K153: 76 | L153: 63 | M153: 72 | N153: 26
I154: 24 | J154: 35 | K154: 46 | L154: 76 | M154: 93 | N154: 52
I155: 17 | J155: 55 | K155: 2 | L155: 27 | M155: 45 | N155: 83
I156: 45 | J156: 47 | K156: 39 | L156: 30 | M156: 90 | N156: 15
I157: 14 | J157: 76 | K157: 2 | L157: 13 | M157: 77 | N157: 88
I158: 91 | J158: 99 | K158: 41 | L158: 23 | M158: 85 | N158: 21
I159: 57 | J159: 63 | K159: 31 | L159: 60 | M159: 79 | N159: 64
I160: 16 | J160: 98 | K160: 45 | L160: 37 | M160: 17 | N160: 12
I161: 93 | J161: 55 | K161: 72 | L161: 84 | M161: 95 | N161: 82
I162: 80 | J162: 51 | K162: 16 | L162: 26 | M162: 26 | N162: 71
I163: 1 | J163: 19 | K163: 28 | L163: 9 | M163: 90 | N163: 25
I164: 8 | J164: 63 | K164: 46 | L164: 64 | M164: 96 | N164: 98
I165: 24 | J165: 72 | K165: 47 | L165: 19 | M165: 52 | N165: 78
I166: 95 | J166: 62 | K166: 42 | L166: 7 | M166: 23 | N166: 9
I167: 29 | J167: 15 | K167: 63 | L167: 31 | M167: 29 | N167: 39
I168: 19 | J168: 57 | K168: 27 | L168: 78 | M168: 15 | N168: 65
I169: 87 | J169: 98 | K169: 68 | L169: 98 | M169: 86 | N169: 63
I170: 91 | J170: 8 | K170: 80 | L170: 86 | M170: 7 | N170: 23
I171: 84 | J171: 13 | K171: 8 | L171: 38 | M171: 87 | N171: 23
I172: 22 | J172: 32 | K172: 87 | L172: 63 | M172: 12 | N172: 13
I173: 51 | J173: 100 | K173: 2 | L173: 81 | M173: 2 | N173: 98
I174: 23 | J174: 25 | K174: 29 | L174: 28 | M174: 87 | N174: 36
I175: 24 | J175: 94 | K175: 87 | L175: 51 | M175: 42 | N175: 90
I176: 18 | J176: 20 | K176: 88 | L176: 76 | M176: 29 | N176: 98
I177: 25 | J177: 87 | K177: 90 | L177: 63 | M177: 16 | N177: 61
I178: 99 | J178: 56 | K178: 78 | L178: 92 | M178: 97 | N178: 53
I179: 72 | J179: 13 | K179: 23 | L179: 50 | M179: 13 | N179: 98
I180: 85 | J180: 87 | K180: 7 | L180: 92 | M180: 56 | N180: 86
I181: 8 | J181: 68 | K181: 3 | L181: 19 | M181: 11 | N181: 2
I182: 28 | J182: 2 | K182: 55 | L182: 84 | M182: 49 | N182: 10
I183: 64 | J183: 43 | K183: 94 | L183: 21 | M183: 7 | N183: 1
I184: 26 | J184: 81 | K184: 85 | L184: 59 | M184: 89 | N184: 98
I185: 36 | J185: 93 | K185: 85 | L185: 59 | M185: 81 | N185: 91
I186: 71 | J186: 71 | K186: 75 | L186: 4 | M186: 82 | N186: 29
I187: 100 | J187: 26 | K187: 78 | L187: 9 | M187: 71 | N187: 98
I188: 21 | J188: 84 | K188: 76 | L188: 43 | M188: 71 | N188: 67
I189: 36 | J189: 11 | K189: 11 | L189: 76 | M189: 86 | N189: 69
I190: 91 | J190: 29 | K190: 95 | L190: 98 | M190: 10 | N190: 62
I191: 94 | J191: 26 | K191: 4 | L191: 66 | M191: 39 | N191: 83
I192: 78 | J192: 60 | K192: 1 | L192: 81 | M192: 51 | N192: 79
I193: 72 | J193: 14 | K193: 28 | L193: 94 | M193: 1 | N193: 95
I194: 2 | J194: 52 | K194: 60 | L194: 6 | M194: 73 | N194: 46
I195: 25 | J195: 78 | K195: 2 | L195: 3 | M195: 87 | N195: 96
I196: 79 | J196: 6 | K196: 92 | L196: 30 | M196: 25 | N196: 32
I197: 98 | J197: 90 | K197: 13 | L197: 21 | M197: 62 | N197: 2
I198: 18 | J198: 71 | K198: 53 | L198: 16 | M198: 91 | N198: 49
I199: 84 | J199: 35 | K199: 57 | L199: 37 | M199: 77 | N199: 70
I200: 36 | J200: 1 | K200: 46 | L200: 19 | M200: 94 | N200: 78
... 50 more rows

Sheet 03 Tastenkürzel_ (hidden)
B1: 2 | C1: 2 | D1: 2 | E1: 1 | F1: 1 | G1: 1 | H1: 0
A2: 1 | B2: 03 Shortcuts_ | F2: =B2 -> 03 Shortcuts_
A3: 2 | B3: 03 Tastenkürzel_
B5: 1 | C5: In Excel gibt es eine ganze Reihe von Tastenkürzeln, die die tägliche Arbeit vereinfachen und beschleunigen. Mit Strg-Umschalt-Pfeil_unten (bzw. _oben, _rechts, _links) können Sie eine Spalte einer Liste schnell markieren. Das ist bei sehr langen Listen enorm hilfreich. Mit Strg-Umschalt-Pfeil_unten + Strg-Umschalt-Pfeil_rechts können Sie alle Spalten und Zeilen einer Liste markieren. Noch viel schneller geht das mit Strg-A! ABER ACHTUNG: Das funktioniert immer nur bis zu einer Leerzelle in der Zeile und Spalte, in der sich die markierte Zelle befindet! Klingt unverständlich? Ok, ich zeig's Ihnen. Sie müssen also gewährleisten, dass Ihre Liste in der ersten Spalte und in der ersten Zeile keine Leerzellen enthält. Sie können dieses Tastenkürzel auch benutzen, um Leerzellen in Ihrer Liste aufzuspüren! | E5: 1 | F5: In Excel there is a whole range of shortcuts that simplify and speed up your daily work. You can use Ctrl-Shift-DownArrow (or -Up, -Right, -Left) to quickly select a column in a list. This is extremely helpful for very long lists. With Ctrl-Shift-DownArrow + Ctrl-Shift-RightArrow you can mark all columns and rows of a list. This is even faster with Ctrl-A! BUT ATTENTION: This only works up to one empty cell in the row and column in which the marked cell is located! Sounds incomprehensible? Ok, I'll show you. So you have to make sure that your list does not contain any empty cells in the first column and the first line. You can also use this shortcut to find empty cells in your list!
B6: =IF(C6<>"",B5+1,"") -> 2 | C6: Die Tastenkürzel für Copy&Paste kennt wahrscheinlich jeder!? Statt Strg-C können Sie auch Strg-X benutzen, wenn der Zellinhalt am Ursprungsort verschwinden soll ("verschieben" anstelle von "kopieren"). Das Verschieben geht aber noch viel einfacher, wenn Sie die Zelle am Rand mit der Maus anfassen und dann an den neuen Ort bewegen. | E6: =IF(F6<>"",E5+1,"") -> 2 | F6: Everybody knows the shortcuts for Copy&Paste! Instead of Ctrl-C you can also use Ctrl-X if you want the cell content to disappear at the original location ("move" instead of "copy"). But moving is much easier if you grab the cell at the edge with the mouse and then move it to the new location.
B7: =IF(C7<>"",B6+1,"") -> 3 | C7: Mit der Taste „Drucken“ bzw. mit der Tastenkombination „Alt-Drucken“ können Sie ein Bildschirmfoto anfertigen – und zwar entweder vom ganzen Bildschirm oder vom aktiven Fenster. Dieses Foto landet dann in der Zwischenablage. Da diese unsichtbar ist, sehen Sie zunächst keine Reaktion. Anschließend können Sie aber den Inhalt der Zwischenablage mit dem bekannten Tastenkürzel Strg-V in Excel oder in Powerpoint oder in Word einfügen. Wenn Sie nicht das ganze Fenster, sondern nur einen rechteckigen Ausschnitt fotografieren wollen, müssen Sie das Windows-Snipping-Tool benutzen. | E7: =IF(F7<>"",E6+1,"") -> 3 | F7: With the "Print" key or with the key combination "Alt-Print" you can take a screenshot - either of the whole screen or of the active window. This photo will then end up on the clipboard. As this is invisible, you will not see any reaction at first. Afterwards, however, you can paste the contents of the clipboard into Excel, PowerPoint or Word using the well-known shortcut Ctrl-V. If you don't want to photograph the whole window but only a rectangular section, you have to use the Windows snipping tool.
B8: 4 | C8: Mit der Tastenkombination Strg-Alt-Enter können Sie Matrixformeln eingeben. Das Thema würde hier den Rahmen sprengen. Ein Beispiel für eine Matrixformel finden Sie in meiner Übungsdatei „Statistics“ beim Thema „Klasseneinteilung“! Ich arbeite auch ein einer extra Übungsdatei zum Thema „Matrixformeln“. Schauen Sie mal nach – vielleicht gibt es sie schon. | E8: 4 | F8: You can enter matrix formulas with the key combination Ctrl-Alt-Enter. The topic would go beyond the scope here. You can find an example of a matrix formula in my exercise file "Statistics" in the topic "Classes"! I am also working on an extra exercise file on the topic "Matrix formulas". Have a look - maybe it already exist.
A20: 0

Sheet 04 Funktionen Deutsch-Englisch
F1: 0
A2: 1 | B2: 04 Functions German-English | F2: Back to Start
A3: 2 | B3: 04 Funktionen Deutsch-Englisch | F3: Startseite
A5: 2 | C5: Tolle Sache: | D5: https://de.excel-translator.de/ | E5: !!!!
C7: Deutsch | D7: Englisch | G7: English | H7: German
C8: A | G8: A
C9: ABRUNDEN | D9: ROUNDDOWN | G9: ABS | H9: ABS
C10: ABS | D10: ABS | G10: ACCRINT | H10: AUFGELZINS
C11: ACHSENABSCHNITT | D11: INTERCEPT | G11: ACCRINTM | H11: AUFGELZINSF
C12: ADRESSE | D12: ADDRESS | G12: ACOS | H12: ARCCOS
C13: AGGREGAT | D13: AGGREGATE | G13: ACOSH | H13: ARCCOSHYP
C14: AMORDEGRK | D14: AMORDEGRC | G14: ACOT | H14: ARCCOT
C15: AMORLINEARK | D15: AMORLINC | G15: ACOTH | H15: ARCCOTHYP
C16: ANZAHL | D16: COUNT | G16: ADDRESS | H16: ADRESSE
C17: ANZAHL2 | D17: COUNTA | G17: AGGREGATE | H17: AGGREGAT
C18: ANZAHLLEEREZELLEN | D18: COUNTBLANK | G18: AMORDEGRC | H18: AMORDEGRK
C19: ARABISCH | D19: ARABIC | G19: AMORLINC | H19: AMORLINEARK
A20: 0 | C20: ARBEITSTAG | D20: WORKDAY | G20: AND | H20: UND
C21: ARBEITSTAG.INTL | D21: WORKDAY.INTL | G21: ARABIC | H21: ARABISCH
C22: ARCCOS | D22: ACOS | G22: AREAS | H22: BEREICHE
C23: ARCCOSHYP | D23: ACOSH | G23: ASC | H23: ASC
C24: ARCCOT | D24: ACOT | G24: ASIN | H24: ARCSIN
C25: ARCCOTHYP | D25: ACOTH | G25: ASINH | H25: ARCSINHYP
C26: ARCSIN | D26: ASIN | G26: ATAN | H26: ARCTAN
C27: ARCSINHYP | D27: ASINH | G27: ATAN2 | H27: ARCTAN2
C28: ARCTAN | D28: ATAN | G28: ATANH | H28: ARCTANHYP
C29: ARCTAN2 | D29: ATAN2 | G29: AVEDEV | H29: MITTELABW
C30: ARCTANHYP | D30: ATANH | G30: AVERAGE | H30: MITTELWERT
C31: ASC | D31: ASC | G31: AVERAGEA | H31: MITTELWERTA
C32: AUFGELZINS | D32: ACCRINT | G32: AVERAGEIF | H32: MITTELWERTWENN
C33: AUFGELZINSF | D33: ACCRINTM | G33: AVERAGEIFS | H33: MITTELWERTWENNS
C34: AUFRUNDEN | D34: ROUNDUP | G34: B
C35: AUSZAHLUNG | D35: RECEIVED | G35: BAHTTEXT | H35: BAHTTEXT
C36: B | G36: BASE | H36: BASIS
C37: BAHTTEXT | D37: BAHTTEXT | G37: BESSELI | H37: BESSELI
C38: BASIS | D38: BASE | G38: BESSELJ | H38: BESSELJ
C39: BEREICH.VERSCHIEBEN | D39: OFFSET | G39: BESSELK | H39: BESSELK
C40: BEREICHE | D40: AREAS | G40: BESSELY | H40: BESSELY
C41: BESSELI | D41: BESSELI | G41: BETA.DIST | H41: BETA.VERT
C42: BESSELJ | D42: BESSELJ | G42: BETA.INV | H42: BETA.INV
C43: BESSELK | D43: BESSELK | G43: BETADIST | H43: BETAVERT
C44: BESSELY | D44: BESSELY | G44: BETAINV | H44: BETAINV
C45: BESTIMMTHEITSMASS | D45: RSQ | G45: BIN2DEC | H45: BININDEZ
C46: BETA.INV | D46: BETA.INV | G46: BIN2HEX | H46: BININHEX
C47: BETA.VERT | D47: BETA.DIST | G47: BIN2OCT | H47: BININOKT
C48: BETAINV | D48: BETAINV | G48: BINOM.DIST | H48: BINOM.VERT
C49: BETAVERT | D49: BETADIST | G49: BINOM.DIST.RANGE | H49: BINOM.VERT.BEREICH
C50: BININDEZ | D50: BIN2DEC | G50: BINOM.INV | H50: BINOM.INV
C51: BININHEX | D51: BIN2HEX | G51: BINOMDIST | H51: BINOMVERT
C52: BININOKT | D52: BIN2OCT | G52: BITAND | H52: BITUND
C53: BINOM.INV | D53: BINOM.INV | G53: BITLSHIFT | H53: BITLVERSCHIEB
C54: BINOM.VERT | D54: BINOM.DIST | G54: BITOR | H54: BITODER
C55: BINOM.VERT.BEREICH | D55: BINOM.DIST.RANGE | G55: BITRSHIFT | H55: BITRVERSCHIEB
C56: BINOMVERT | D56: BINOMDIST | G56: BITXOR | H56: BITXODER
C57: BITLVERSCHIEB | D57: BITLSHIFT | G57: C
C58: BITODER | D58: BITOR | G58: CEILING | H58: OBERGRENZE
C59: BITRVERSCHIEB | D59: BITRSHIFT | G59: CEILING.MATH | H59: OBERGRENZE.MATHEMATIK
C60: BITUND | D60: BITAND | G60: CEILING.PRECISE | H60: OBERGRENZE.GENAU
C61: BITXODER | D61: BITXOR | G61: CELL | H61: ZELLE
C62: BLATT | D62: SHEET | G62: CHAR | H62: ZEICHEN
C63: BLÄTTER | D63: SHEETS | G63: CHIDIST | H63: CHIVERT
C64: BOGENMASS | D64: RADIANS | G64: CHIINV | H64: CHIINV
C65: BRTEILJAHRE | D65: YEARFRAC | G65: CHISQ.DIST | H65: CHIQU.VERT
C66: BW | D66: PV | G66: CHISQ.DIST.RT | H66: CHIQU.VERT.RE
C67: C | G67: CHISQ.INV | H67: CHIQU.INV
C68: CHIINV | D68: CHIINV | G68: CHISQ.INV.RT | H68: CHIQU.INV.RE
C69: CHIQU.INV | D69: CHISQ.INV | G69: CHISQ.TEST | H69: CHIQU.TEST
C70: CHIQU.INV.RE | D70: CHISQ.INV.RT | G70: CHITEST | H70: CHITEST
C71: CHIQU.TEST | D71: CHISQ.TEST | G71: CHOOSE | H71: WAHL
C72: CHIQU.VERT | D72: CHISQ.DIST | G72: CLEAN | H72: SÄUBERN
C73: CHIQU.VERT.RE | D73: CHISQ.DIST.RT | G73: CODE | H73: CODE
C74: CHITEST | D74: CHITEST | G74: COLUMN | H74: SPALTE
C75: CHIVERT | D75: CHIDIST | G75: COLUMNS | H75: SPALTEN
C76: CODE | D76: CODE | G76: COMBIN | H76: KOMBINATIONEN
C77: COS | D77: COS | G77: COMBINA | H77: KOMBINATIONEN2
C78: COSEC | D78: CSC | G78: COMPLEX | H78: KOMPLEXE
C79: COSECHYP | D79: CSCH | G79: CONCATENATE | H79: VERKETTEN
C80: COSHYP | D80: COSH | G80: CONFIDENCE | H80: KONFIDENZ
C81: COT | D81: COT | G81: CONFIDENCE.NORM | H81: KONFIDENZ.NORM
C82: COTHYP | D82: COTH | G82: CONFIDENCE.T | H82: KONFIDENZ.T
C83: CUBEELEMENT | D83: CUBEMEMBER | G83: CONVERT | H83: UMWANDELN
C84: CUBEELEMENTEIGENSCHAFT | D84: CUBEMEMBERPROPERTY | G84: CORREL | H84: KORREL
C85: CUBEKPIELEMENT | D85: CUBEKPIMEMBER | G85: COS | H85: COS
C86: CUBEMENGE | D86: CUBESET | G86: COSH | H86: COSHYP
C87: CUBEMENGENANZAHL | D87: CUBESETCOUNT | G87: COT | H87: COT
C88: CUBERANGELEMENT | D88: CUBERANKEDMEMBER | G88: COTH | H88: COTHYP
C89: CUBEWERT | D89: CUBEVALUE | G89: COUNT | H89: ANZAHL
C90: D | G90: COUNTA | H90: ANZAHL2
C91: DATEDIF | D91: DATEDIF | G91: COUNTBLANK | H91: ANZAHLLEEREZELLEN
C92: DATUM | D92: DATE | G92: COUNTIF | H92: ZÄHLENWENN
C93: DATWERT | D93: DATEVALUE | G93: COUNTIFS | H93: ZÄHLENWENNS
C94: DBANZAHL | D94: DCOUNT | G94: COUPDAYBS | H94: ZINSTERMTAGVA
C95: DBANZAHL2 | D95: DCOUNTA | G95: COUPDAYS | H95: ZINSTERMTAGE
C96: DBAUSZUG | D96: DGET | G96: COUPDAYSNC | H96: ZINSTERMTAGNZ
C97: DBMAX | D97: DMAX | G97: COUPNCD | H97: ZINSTERMNZ
C98: DBMIN | D98: DMIN | G98: COUPNUM | H98: ZINSTERMZAHL
C99: DBMITTELWERT | D99: DAVERAGE | G99: COUPPCD | H99: ZINSTERMVZ
C100: DBPRODUKT | D100: DPRODUCT | G100: COVAR | H100: KOVAR
C101: DBSTDABW | D101: DSTDEV | G101: COVARIANCE.P | H101: KOVARIANZ.P
C102: DBSTDABWN | D102: DSTDEVP | G102: COVARIANCE.S | H102: KOVARIANZ.S
C103: DBSUMME | D103: DSUM | G103: CRITBINOM | H103: KRITBINOM
C104: DBVARIANZ | D104: DVAR | G104: CSC | H104: COSEC
C105: DBVARIANZEN | D105: DVARP | G105: CSCH | H105: COSECHYP
C106: DELTA | D106: DELTA | G106: CUBEKPIMEMBER | H106: CUBEKPIELEMENT
C107: DEZIMAL | D107: DECIMAL | G107: CUBEMEMBER | H107: CUBEELEMENT
C108: DEZINBIN | D108: DEC2BIN | G108: CUBEMEMBERPROPERTY | H108: CUBEELEMENTEIGENSCHAFT
C109: DEZINHEX | D109: DEC2HEX | G109: CUBERANKEDMEMBER | H109: CUBERANGELEMENT
C110: DEZINOKT | D110: DEC2OCT | G110: CUBESET | H110: CUBEMENGE
C111: DIA | D111: SYD | G111: CUBESETCOUNT | H111: CUBEMENGENANZAHL
C112: DISAGIO | D112: DISC | G112: CUBEVALUE | H112: CUBEWERT
C113: DM | D113: DOLLAR | G113: CUMIPMT | H113: KUMZINSZ
C114: DURATION | D114: DURATION | G114: CUMPRINC | H114: KUMKAPITAL
C115: E | G115: D
C116: EDATUM | D116: EDATE | G116: DATE | H116: DATUM
C117: EFFEKTIV | D117: EFFECT | G117: DATEDIF | H117: DATEDIF
C118: ERSETZEN | D118: REPLACE | G118: DATEVALUE | H118: DATWERT
C119: ERSETZENB | D119: REPLACEB | G119: DAVERAGE | H119: DBMITTELWERT
C120: EXP | D120: EXP | G120: DAY | H120: TAG
C121: EXPON.VERT | D121: EXPON.DIST | G121: DAYS | H121: TAGE
C122: EXPONVERT | D122: EXPONDIST | G122: DAYS360 | H122: TAGE360
C123: F | G123: DB | H123: GDA2
C124: F.INV | D124: F.INV | G124: DCOUNT | H124: DBANZAHL
C125: F.INV.RE | D125: F.INV.RT | G125: DCOUNTA | H125: DBANZAHL2
C126: F.TEST | D126: F.TEST | G126: DDB | H126: GDA
C127: F.VERT | D127: F.DIST | G127: DEC2BIN | H127: DEZINBIN
C128: F.VERT.RE | D128: F.DIST.RT | G128: DEC2HEX | H128: DEZINHEX
C129: FAKULTÄT | D129: FACT | G129: DEC2OCT | H129: DEZINOKT
C130: FALSE | D130: FALSE | G130: DECIMAL | H130: DEZIMAL
C131: FEHLER.TYP | D131: ERROR.TYPE | G131: DEGREES | H131: GRAD
C132: FEST | D132: FIXED | G132: DELTA | H132: DELTA
C133: FINDEN | D133: FIND | G133: DEVSQ | H133: SUMQUADABW
C134: FINDENB | D134: FINDB | G134: DGET | H134: DBAUSZUG
C135: FINV | D135: FINV | G135: DISC | H135: DISAGIO
C136: FISHER | D136: FISHER | G136: DMAX | H136: DBMAX
C137: FISHERINV | D137: FISHERINV | G137: DMIN | H137: DBMIN
C138: FORMELTEXT | D138: FORMULATEXT | G138: DOLLAR | H138: DM
C139: FTEST | D139: FTEST | G139: DOLLARDE | H139: NOTIERUNGDEZ
C140: FVERT | D140: FDIST | G140: DOLLARFR | H140: NOTIERUNGBRU
C141: G | G141: DPRODUCT | H141: DBPRODUKT
C142: G.TEST | D142: Z.TEST | G142: DSTDEV | H142: DBSTDABW
C143: GAMMA | D143: GAMMA | G143: DSTDEVP | H143: DBSTDABWN
C144: GAMMA.INV | D144: GAMMA.INV | G144: DSUM | H144: DBSUMME
C145: GAMMA.VERT | D145: GAMMA.DIST | G145: DURATION | H145: DURATION
C146: GAMMAINV | D146: GAMMAINV | G146: DVAR | H146: DBVARIANZ
C147: GAMMALN | D147: GAMMALN | G147: DVARP | H147: DBVARIANZEN
C148: GAMMALN.GENAU | D148: GAMMALN.PRECISE | G148: E
C149: GAMMAVERT | D149: GAMMADIST | G149: EDATE | H149: EDATUM
C150: GANZZAHL | D150: INT | G150: EFFECT | H150: EFFEKTIV
C151: GAUSS | D151: GAUSS | G151: ENCODEURL | H151: URLCODIEREN
C152: GAUSSF.GENAU | D152: ERF.PRECISE | G152: EOMONTH | H152: MONATSENDE
C153: GAUSSFEHLER | D153: ERF | G153: ERF | H153: GAUSSFEHLER
C154: GAUSSFKOMPL | D154: ERFC | G154: ERF.PRECISE | H154: GAUSSF.GENAU
C155: GAUSSFKOMPL.GENAU | D155: ERFC.PRECISE | G155: ERFC | H155: GAUSSFKOMPL
C156: GDA | D156: DDB | G156: ERFC.PRECISE | H156: GAUSSFKOMPL.GENAU
C157: GDA2 | D157: DB | G157: ERROR.TYPE | H157: FEHLER.TYP
C158: GEOMITTEL | D158: GEOMEAN | G158: EVEN | H158: GERADE
C159: GERADE | D159: EVEN | G159: EXACT | H159: IDENTISCH
C160: GESTUTZTMITTEL | D160: TRIMMEAN | G160: EXP | H160: EXP
C161: GGANZZAHL | D161: GESTEP | G161: EXPON.DIST | H161: EXPON.VERT
C162: GGT | D162: GCD | G162: EXPONDIST | H162: EXPONVERT
C163: GLÄTTEN | D163: TRIM | G163: F
C164: GRAD | D164: DEGREES | G164: F.DIST | H164: F.VERT
C165: GROSS | D165: UPPER | G165: F.DIST.RT | H165: F.VERT.RE
C166: GROSS2 | D166: PROPER | G166: F.INV | H166: F.INV
C167: GTEST | D167: ZTEST | G167: F.INV.RT | H167: F.INV.RE
C168: H | G168: F.TEST | H168: F.TEST
C169: HARMITTEL | D169: HARMEAN | G169: FACT | H169: FAKULTÄT
C170: HÄUFIGKEIT | D170: FREQUENCY | G170: FACTDOUBLE | H170: ZWEIFAKULTÄT
C171: HEUTE | D171: TODAY | G171: FALSE | H171: FALSE
C172: HEXINBIN | D172: HEX2BIN | G172: FDIST | H172: FVERT
C173: HEXINDEZ | D173: HEX2DEC | G173: FILTERXML | H173: XMLFILTERN
C174: HEXINOKT | D174: HEX2OCT | G174: FIND | H174: FINDEN
C175: HYPERLINK | D175: HYPERLINK | G175: FINDB | H175: FINDENB
C176: HYPGEOM.VERT | D176: HYPGEOM.DIST | G176: FINV | H176: FINV
C177: HYPGEOMVERT | D177: HYPGEOMDIST | G177: FISHER | H177: FISHER
C178: I | G178: FISHERINV | H178: FISHERINV
C179: IDENTISCH | D179: EXACT | G179: FIXED | H179: FEST
C180: IKV | D180: IRR | G180: FLOOR | H180: UNTERGRENZE
C181: IMABS | D181: IMABS | G181: FLOOR.MATH | H181: UNTERGRENZE.MATHEMATIK
C182: IMAGINÄRTEIL | D182: IMAGINARY | G182: FLOOR.PRECISE | H182: UNTERGRENZE.GENAU
C183: IMAPOTENZ | D183: IMPOWER | G183: FORECAST | H183: SCHÄTZER
C184: IMARGUMENT | D184: IMARGUMENT | G184: FORMULATEXT | H184: FORMELTEXT
C185: IMCOS | D185: IMCOS | G185: FREQUENCY | H185: HÄUFIGKEIT
C186: IMCOSEC | D186: IMCSC | G186: FTEST | H186: FTEST
C187: IMCOSECHYP | D187: IMCSCH | G187: FV | H187: ZW
C188: IMCOSHYP | D188: IMCOSH | G188: FVSCHEDULE | H188: ZW2
C189: IMCOT | D189: IMCOT | G189: G
C190: IMDIV | D190: IMDIV | G190: GAMMA | H190: GAMMA
C191: IMEXP | D191: IMEXP | G191: GAMMA.DIST | H191: GAMMA.VERT
C192: IMKONJUGIERTE | D192: IMCONJUGATE | G192: GAMMA.INV | H192: GAMMA.INV
C193: IMLN | D193: IMLN | G193: GAMMADIST | H193: GAMMAVERT
C194: IMLOG10 | D194: IMLOG10 | G194: GAMMAINV | H194: GAMMAINV
C195: IMLOG2 | D195: IMLOG2 | G195: GAMMALN | H195: GAMMALN
C196: IMPRODUKT | D196: IMPRODUCT | G196: GAMMALN.PRECISE | H196: GAMMALN.GENAU
C197: IMREALTEIL | D197: IMREAL | G197: GAUSS | H197: GAUSS
C198: IMSEC | D198: IMSEC | G198: GCD | H198: GGT
C199: IMSECHYP | D199: IMSECH | G199: GEOMEAN | H199: GEOMITTEL
C200: IMSIN | D200: IMSIN | G200: GESTEP | H200: GGANZZAHL
C201: IMSINHYP | D201: IMSINH | G201: GETPIVOTDATA | H201: PIVOTDATENZUORDNEN
C202: IMSUB | D202: IMSUB | G202: GROWTH | H202: VARIATION
... 294 more rows

Sheet 05 Formel kopieren
F1: 0
A2: 1 | B2: 05 Copy a formula | F2: Back to Start
A3: 2 | B3: 05 Formel kopieren | F3: Startseite
C6: category | D6: Federal Shipping | E6: Speedy Express | F6: United Package | G6: total
C7: beverages | D7: 91505.91 | E7: 57741.67 | F7: 118620.58 | G7: =SUM(D7:F7) -> 267868.16
C8: cereals | D8: 24711.75 | E8: 29587.51 | F8: 41445.33
C9: meat | D9: 47602.99 | E9: 31138.79 | F9: 84280.59
C10: milk products | D10: 64693.6 | E10: 78517.76 | F10: 91243.4
C11: natural products | D11: 34038.8 | E11: 24226.03 | F11: 41719.74
C12: sea food | D12: 40459.34 | E12: 37687.72 | F12: 53114.67
C13: spices | D13: 27509.65 | E13: 39674.72 | F13: 38862.7
C14: sweets | D14: 52830.89 | E14: 50265.71 | F14: 64260.59
A16: 2 | B16: Falsch (mit linker Maustaste):
A17: 1 | B17: Wrong (with left mouse button):
C19: category | D19: Federal Shipping | E19: Speedy Express | F19: United Package | G19: total
C20: beverages | D20: 91505.91 | E20: 57741.67 | F20: 118620.58 | G20: =SUM(D20:F20) -> 267868.16
C21: cereals | D21: 24711.75 | E21: 29587.51 | F21: 41445.33 | G21: =SUM(D21:F21) -> 95744.59
C22: meat | D22: 47602.99 | E22: 31138.79 | F22: 84280.59 | G22: 163022.37
C23: milk products | D23: 64693.6 | E23: 78517.76 | F23: 91243.4 | G23: 234454.76
C24: natural products | D24: 34038.8 | E24: 24226.03 | F24: 41719.74 | G24: 99984.57
C25: sea food | D25: 40459.34 | E25: 37687.72 | F25: 53114.67 | G25: 131261.73
C26: spices | D26: 27509.65 | E26: 39674.72 | F26: 38862.7 | G26: 106047.07
C27: sweets | D27: 52830.89 | E27: 50265.71 | F27: 64260.59 | G27: 167357.19
A29: 2 | B29: Richtig (mit rechter Maustaste):
A30: 1 | B30: Right (with right mouse button):
C32: category | D32: Federal Shipping | E32: Speedy Express | F32: United Package | G32: total
C33: beverages | D33: 91505.91 | E33: 57741.67 | F33: 118620.58 | G33: =SUM(D33:F33) -> 267868.16
C34: cereals | D34: 24711.75 | E34: 29587.51 | F34: 41445.33 | G34: =SUM(D34:F34) -> 95744.59
C35: meat | D35: 47602.99 | E35: 31138.79 | F35: 84280.59 | G35: 163022.37
C36: milk products | D36: 64693.6 | E36: 78517.76 | F36: 91243.4 | G36: 234454.76
C37: natural products | D37: 34038.8 | E37: 24226.03 | F37: 41719.74 | G37: 99984.57
C38: sea food | D38: 40459.34 | E38: 37687.72 | F38: 53114.67 | G38: 131261.73
C39: spices | D39: 27509.65 | E39: 39674.72 | F39: 38862.7 | G39: 106047.07
C40: sweets | D40: 52830.89 | E40: 50265.71 | F40: 64260.59 | G40: 167357.19
A42: 2 | B42: Übung | C42: Üben Sie diese Technik mit der Tabelle ganz oben auf diesem Arbeitsblatt!
A43: 1 | B43: Exercise | C43: Train this technique with the table on top of this worksheet!
A46: 0

Sheet 05 Formel kopieren_ (hidden)
B1: 2 | C1: 2 | D1: 2 | E1: 1 | F1: 1 | G1: 1 | H1: 0
A2: 1 | B2: 05 Copy a formula_ | F2: =B2 -> 05 Copy a formula_
A3: 2 | B3: 05 Formel kopieren_
B5: 1 | C5: Ein besonderer Geheimtipp von mir für Sie betrifft das Kopieren in formatierten Tabellen. Es ist nämlich so: Wenn Sie eine Zelle in bekannter Weise an der rechten unteren Ecke herunter ziehen, kopiert Excel nicht nur den Zellinhalt (i.a. die Formel), sondern auch deren Format! Damit zerstören Sie sich aber die Formatierung der Tabelle und müssen Sie zeitaufwändig wieder herstellen. Also – was tun? Wir ziehen die rechte untere Ecke der Zelle nicht mit der linken, sondern mit gedrückter RECHTER Maustaste herunter! Dann erscheint ein Kontextmenü, in dem Sie auswählen können: „Ohne Formatierung ausfüllen“. ACHTUNG - interessante Alternative: Sie können auch „Nur Formate ausfüllen“ auswählen, um die Formatierung einer Zelle auf eine ganze Zeile oder Spalte auszudehnen! | E5: 1 | F5: A special secret tip from me for you concerns copying in formatted tables. It's like this: If you drag a cell down the bottom right corner in the usual way, Excel copies not only the cell content (usually the formula), but also its format! But this destroys the formatting of the table and you have to restore it in a time-consuming way. So - what to do? We do not drag down the bottom right corner of the cell with the left mouse button, but with the RIGHT mouse button pressed! Then a context menu appears where you can select: "Fill without formatting". ATTENTION - interesting alternative: You can also select "Fill only formats" to extend the formatting of a cell to a whole row or column!
B6: =IF(C6<>"",B5+1,"") ->  | E6: =IF(F6<>"",E5+1,"") -> 
B7: =IF(C7<>"",B6+1,"") ->  | E7: =IF(F7<>"",E6+1,"") -> 
A20: 0

Sheet 06 Einfügen
J1: 2 | K1: 2 | L1: 2 | M1: 2 | O1: 1 | P1: 1 | Q1: 1 | R1: 1 | T1: 0
A2: 1 | B2: 06 Paste | F2: Back to Start
A3: 2 | B3: 06 Einfügen | F3: Startseite
C6: category | D6: total sales | E6: relative share
C7: beverages | D7: 267868.16 | E7: =D7/SUM($D$7:$D$14) -> 0.2116296134
C8: milk products | D8: 234454.76 | E8: =D8/SUM($D$7:$D$14) -> 0.1852313101
C9: sweets | D9: 167357.19 | E9: 0.1322207814
C10: meat | D10: 163022.37 | E10: 0.1287960508
C11: sea food | D11: 131261.73 | E11: 0.1037035129
C12: spices | D12: 106047.07 | E12: 0.08378263556
C13: natural products | D13: 99984.57 | E13: 0.07899294898
C14: cereals | D14: 95744.59 | E14: 0.07564314687
J16: Einfügen | O16: Paste
J17: Einfügen | K17: Formeln | L17: Formeln und Zahlenformat | M17: Ursprüngliche Formatierung beibehalten | O17: Paste | P17: Formulas | Q17: Formulas & Number Formatting | R17: Keep Source Formatting
J18: keine Rahmenlinien | K18: Breite der Ursprungsspalte beibehalten | L18: Transponieren | O18: No Borders | P18: Keep Source Column Width | Q18: Transpose
J19: Werte einfügen | O19: Paste Values
J20: Werte | K20: Werte und Zahlenformat | L20: Werte und Quellformatierung | O20: Values | P20: Values & Number Formatting | Q20: Values & Source Formatting
J21: Weitere Einfügeoptionen | O21: Other Paste Options
J22: Formatierung | K22: Verknüpfung einfügen | L22: Grafik | M22: Verknüpfte Grafik | O22: Formatting | P22: Paste Link | Q22: Picture | R22: Linked Picture
J23: Inhalte einfügen … | O23: Paste Special …
A67: 1 | C67: first name | D67: last name | E67: name | G67: "Paste Values"
A68: 2 | C68: Vorname | D68: Nachname | E68: Name | G68: "Wertekopie"
C69: Alexander | D69: Plottner | E69: =C69&" "&D69 -> Alexander Plottner | G69: Alexander Plottner
C70: Adriana | D70: Pfeiffer | E70: =C70&" "&D70 -> Adriana Pfeiffer | G70: Adriana Pfeiffer
C71: Albert | D71: Pittner | E71: Albert Pittner | G71: Albert Pittner
C72: Angela | D72: Peseler | E72: Angela Peseler | G72: Angela Peseler
C73: Agnes | D73: Pilz | E73: Agnes Pilz | G73: Agnes Pilz
C74: Amanda | D74: Pechstein | E74: Amanda Pechstein | G74: Amanda Pechstein
C75: Arabella | D75: Leupold | E75: Arabella Leupold | G75: Arabella Leupold
C76: Adelheid | D76: Oberländer | E76: Adelheid Oberländer | G76: Adelheid Oberländer
A78: 1 | B78: Exercise | C78: Try out all the different options for "Paste"!
A79: 1
A80: 2 | B80: Übung | C80: Probieren Sie die verschiedenen Möglichkeiten für das Einfügen aus!
A81: 2
A82: 0

Sheet 06 Einfügen_ (hidden)
B1: 2 | C1: 2 | D1: 2 | E1: 1 | F1: 1 | G1: 1 | H1: 0
A2: 1 | B2: 06 Paste_ | F2: =B2 -> 06 Paste_
A3: 2 | B3: 06 Einfügen_
B5: 1 | C5: Sie kennen "Kopieren&Einfügen" ("copy&paste")? Wirklich? Ich bin mir sicher, dass Sie die "normale" Version kennen (Strg-C / Strg-V) - aber es gibt zahlreiche fortgeschrittene Versionen des Einfügens ("Kopieren" ist immer dasselbe einfache Ding …). Hier sehen Sie kurze Erklärungen für die verschiedenen Einfüge-Optionen. Die meisten davon sind selbsterklärend - probieren Sie sie einfach aus! | E5: 1 | F5: You know "copy&paste"? Really? I'm sure you know the "normal" version (Ctrl-C / Ctrl-V) - but there are several advanced versions of "paste" ("copy" is always the same simple thing…). Below you can see the short explanations of the different options for "Paste". Most of them are self-explaining - simply try them!
B6: =IF(C6<>"",B5+1,"") -> 2 | C6: Besonders hinweisen möchte ich auf folgende Optionen: Transponieren Damit kann eine Zeile mit Daten in eine Spalte verwandelt werden - und umgekehrt. Grafik Damit verwandeln Sie ein Excel-Objekt (eine Tabelle oder ein Diagramm) in ein Bild. Das kann für Illustrationen benutzt werden (siehe hier in dieser Datei). Werte Das ist besonders wichtig. Daher will ich es ausführlich erklären. | E6: =IF(F6<>"",E5+1,"") -> 2 | F6: I would like to highlight the following options: Transpose This can be used to convert a row of data into a column of data - and vice versa. Picture This changes an Excel object (a table or a chart) into a picture. This may be needed for illustrations (see for example here in this file). Values This is particularly important. I will therefore explain it in detail.
B7: =IF(C7<>"",B6+1,"") -> 3 | C7: Zuvor aber noch der Hinweis: Wenn Sie auf "Inhalte einfügen" klicken, öffnet sich ein neues Fenster und Sie haben nochmal die Möglichkeit, verschiedene Einfügeoptionen auszuwählen. | E7: =IF(F7<>"",E6+1,"") -> 3 | F7: But before that, a note: If you click on "Paste Special", a new window will open and you will again have the possibility to choose different insertion options.
B8: 4 | C8: Kommen wir jetzt zur Wertekopie: Sie ersetzt eine Formel durch ihr Ergebnis - siehe das Beispiel hier: In der dritten Spalte werden die Vor- und Nachnamen mit Hilfe des &-Operators miteinander verbunden. Stellen Sie sich vor, Sie haben die Listen mit den Vor- und Nachnamen von jemandem bekommen und in Ihre Excel-Datei importiert. Sie haben sie miteinander verbunden und brauchen die einzelnen Vor- und Nachnamen nun nicht mehr. Aber was passiert, wenn Sie sie löschen? Probieren Sie es aus! | E8: 4 | F8: Let us now come to "Paste Values": It replaces a formula by its result - see example below: In the third column the first name and the last name are connected with each other using the &-operator. Imagine, that you got the list of first names and last names from somebody else and imported them it into your Excel file. You have connected them and now you don't need the columns with the first names and the last names any longer. But what happens, if you delete them ? Try it!
B9: 5 | C9: Vorteil der Wertekopie: Weil das Ergebnis der Formel nicht mehr mit deren Eingabewerten gekoppelt ist, können Sie mit den Eingabewerten machen, was Sie wollen (z.B. löschen), ohne das Ergebnis zu beeinflussen. Nachteil der Wertekopie: Weil das Ergebnis der Formel nicht mehr mit deren Eingabewerten gekoppelt ist, wirken sich Änderungen der Eingabedaten (z.B. die Korrektur einer falschen Schreibweise) nicht mehr auf das Ergebnis aus (d.h. die falsche Schreibweise bleibt bestehen). | E9: 5 | F9: Advantage of "Paste Values": Since the result of a formula is no longer coupled to its input you can do whatever you want with the input data (i.e. delete them) without any influence on the result. Disadvantage of "Paste Values": Since the result of a formula is no longer coupled to its input any changes of the input (i.e. the correction of a wrong spelling of a name) will not influence the result (e.g. the wrong spelling remains).
A20: 0

Sheet 07 Bereichsnamen
F1: 0
A2: 1 | B2: 07 Range names | F2: Back to Start
A3: 2 | B3: 07 Bereichsnamen | F3: Startseite
A5: 2 | C5: Schreiben Sie NIEMALS Zahlen, die sich ändern könnten (z.B. Steuersätze oder Währungskurse) direkt in Formeln! Sollten sich diese Zahlen nämlich mal ändern, haben Sie (erstens) viel Aufwand, alle Formeln zu ändern und (zweitens) vergessen Sie bestimmt eine Änderung und die entspr. Formel berechnet dann ein falsches Ergebnis. Schreiben Sie stattdessen den Wert in eine Zelle und benutzen Sie in der Formel die Zelladresse. Da Sie i.A. den Wert auf mehreren Excel-Arbeitsblättern verwenden wollen, schreiben Sie den Wert auf ein gesondertes Blatt, das Sie z.B. "Stammdaten" nennen (siehe hier in dieser Datei). Noch perfekter wird Ihre Lösung, wenn Sie dann auf dem Stammdatenblatt der Zelle mit dem Wert einen Namen geben. Dann können Sie nämlich z.B. =D36*(1+MwSt) schreiben statt =D36*(1+Stammdaten!D2) Den Namen können Sie im Namenfeld links oben im Excel-Fenster eingeben. ACHTUNG: Die Eingabe müssen Sie mit der Enter-Taste bestätigen!
A6: 2
A7: 1 | C7: NEVER write numbers that could change (e. g. tax rates or exchange rates) directly in formulas! If these numbers should change, you will have (firstly) a lot of effort to change all formulas, and (secondly) you will certainly forget a change and the corresponding formula will then calculate an incorrect result. Instead, write the value in a cell and use the cell address in the formula. Since you generally want to use the value on several Excel worksheets, write the value on a separate sheet, which you call "base data", for example (see here in this file). Your solution will be even more perfect if you then enter a name for the cell with the value on the base data sheet. Then you can, for example, write =D36*(1+VAT) instead of =D36*(1+'base data'!D2) You can enter the name in the name box in the upper left corner of the Excel window. ATTENTION: The entry must be confirmed with the Enter key!
A8: 1
A21: 1 | D21: net | E21: gross | F21: formula | H21: VAT: | I21: 0.19
A22: 1 | D22: 100 | E22: =D22*(1+I21) -> 119 | F22: =_xlfn.FORMULATEXT(E22) -> =D22*(1+I21)
A24: 2 | D24: netto | E24: brutto | F24: Formel | H24: MwSt: | I24: 0.19
A25: 2 | D25: 100 | E25: =D25*(1+I24) -> 119 | F25: =_xlfn.FORMULATEXT(E25) -> =D25*(1+I24)
A27: 1 | D27: net | E27: gross | F27: formula
A28: 1 | D28: 100 | E28: =D28*(1+'08 Stammdaten'!I8) -> 119 | F28: =_xlfn.FORMULATEXT(E28) -> =D28*(1+'08 Stammdaten'!I8)
A30: 2 | D30: netto | E30: brutto | F30: Formel
A31: 2 | D31: 100 | E31: =D31*(1+'08 Stammdaten'!I8) -> 119 | F31: =_xlfn.FORMULATEXT(E31) -> =D31*(1+'08 Stammdaten'!I8)
A35: 1 | D35: net | E35: gross | F35: formula | G35: Here the "local" name definition from this sheet is used - in contrast to the same calculation on the sheet "base data"!
A36: 1 | D36: 100 | E36: =D36*(1+VAT) -> 115 | F36: =_xlfn.FORMULATEXT(E36) -> =D36*(1+VAT)
A38: 2 | D38: netto | E38: brutto | F38: Formel | G38: Hier wird der auf diesem Blatt definierte "lokale" Name benutzt - im Gegensatz zu derselben Berechnung auf dem Blatt "Stammdaten"!
A39: 2 | D39: 100 | E39: =D39*(1+MwSt) -> 115 | F39: =_xlfn.FORMULATEXT(E39) -> =D39*(1+MwSt)
A41: 2 | D41: Mehrwertsteuer (MwSt): | E41: 0.15 | F41: <- eine "lokale" Namensdefinition!
A42: 1 | D42: Value added tax (VAT): | E42: 0.15 | F42: <- a "local name definition!
A67: 0

Sheet 07 Bereichsnamen_ (hidden)
B1: 2 | C1: 2 | D1: 2 | E1: 1 | F1: 1 | G1: 1 | H1: 0
A2: 1 | B2: 07 Range names_ | F2: =B2 -> 07 Range names_
A3: 2 | B3: 07 Bereichsnamen_
B5: 1 | C5: Schreiben Sie NIEMALS, NIEMALS, NIEMALS Zahlen, die sich ändern könnten (z.B. Steuersätze oder Währungskurse) direkt in Formeln! Sollten sich diese Zahlen nämlich mal ändern, haben Sie (erstens) viel Aufwand, alle Formeln zu ändern und (zweitens) vergessen Sie bestimmt eine Änderung und die entspr. Formel berechnet dann ein falsches Ergebnis. Schreiben Sie stattdessen den Wert in eine Zelle und benutzen Sie in der Formel die Zelladresse. Da Sie i.A. den Wert auf mehreren Excel-Arbeitsblättern verwenden wollen, schreiben Sie den Wert auf ein gesondertes Blatt, das Sie z.B. "Stammdaten" nennen (siehe hier in dieser Datei). | E5: 1 | F5: NEVER, NEVER, NEVER write numbers that could change (e. g. tax rates or exchange rates) directly in formulas! If these numbers should change, you will have (firstly) a lot of effort to change all formulas, and (secondly) you will certainly forget a change and the corresponding formula will then calculate an incorrect result. Instead, write the value in a cell and use the cell address in the formula. Since you generally want to use the value on several Excel worksheets, write the value on a separate sheet, which you call "base data", for example (see here in this file).
B6: =IF(C6<>"",B5+1,"") -> 2 | C6: Noch perfekter wird Ihre Lösung, wenn Sie dann auf dem Stammdatenblatt der Zelle mit dem Wert einen Namen geben. Dann können Sie nämlich z.B. =D36*(1+MwSt) schreiben statt =D36*(1+Stammdaten!D2) Den Namen können Sie im Namenfeld links oben im Excel-Fenster eingeben. ACHTUNG: Die Eingabe müssen Sie mit der Enter-Taste bestätigen! | E6: =IF(F6<>"",E5+1,"") -> 2 | F6: Your solution will be even more perfect if you then enter a name for the cell with the value on the base data sheet. Then you can, for example, write =D36*(1+VAT) instead of =D36*(1+'base data'!D2) You can enter the name in the name box in the upper left corner of the Excel window. ATTENTION: The entry must be confirmed with the Enter key!
B7: =IF(C7<>"",B6+1,"") -> 3 | C7: Bei der Vergabe von Bereichsnamen gibt es noch eine Besonderheit - und zwar bezüglich des Bereichs, in dem dieser Name dann gültig ist und in Formeln benutzt werden kann. Wenn Sie den Namen in der oben beschriebenen Weise über das Namenfeld vergeben, ist er immer automatisch für die ganze Datei ("Arbeitsmappe") gültig. Sie können ihn also auf allen Arbeitsblättern benutzen. Und jetzt kommt es: Sie können denselben Namen trotzdem auf einem beliebigen Arbeitsblatt erneut vergeben - auch mehrfach auf mehreren Arbeitsblättern. Es kann also eine "globale" Namensdefinition geben, die für alle Arbeitsblätter gilt und zusätzlich "lokale" Namensdefinitionen, die nur für ein Arbeitsblatt gelten. | E7: =IF(F7<>"",E6+1,"") -> 3 | F7: When assigning range names, there is another special feature - namely the scope in which this name is valid and can be used in formulas. If you enter the name as described above in the name box, it is always automatically valid for the entire file ("Workbook"). So you can use it on all worksheets. And here it comes: You can still reassign the same name on any worksheet - even multiple times on multiple worksheets. So there can be a "global" name definition that is valid for all worksheets and additionally "local" name definitions that are valid for only one worksheet.
B8: 4 | C8: Wenn Sie den Namen auf einem Arbeitsblatt ohne "lokale" Definition benutzen, gilt die "globale" Definition - ansonsten die "lokale". (vergleichen Sie dazu das Beispiel auf diesem Blatt und das auf dem Blatt "Stammdaten"!) Das ist also ganz schön kompliziert! Es wird aber noch komplizierter: Die "lokale" Namensdefinition funktioniert nämlich NICHT über das Namenfeld. Wenn Sie dort einen Namen zum zweiten Mal eingeben, springt Excel zu der Zelle mit der "globalen" Defintion. Die "lokale" Definition erfolgt über den Namensmanager: "Formeln / Definierte Namen / Namens-Manager" | E8: 4 | F8: If you use the name on a worksheet without a "local" definition, the "global" definition applies - otherwise the "local" definition (compare the examples below this text and on the worksheet "base data"!) So that's pretty complicated! But it becomes even more complicated: The "local" name definition does NOT work with the name box. If you enter a name there for the second time, Excel jumps to the cell with the "global" definition. The "local" definition is carried out with the name manager: "Formulas / Defined Names / Name Manager"
B9: 5 | C9: Dort klicken Sie auf "Neu…" und es öffnet sich ein Fenster, in dem Sie folgendes festlegen können: - den Namen - den Gültigkeitsbereich (ganze Arbeitsmappe oder ein einzelnes Blatt) - die Zelladresse für den Namen Einen einmal festgelegten Gültigkeitsbereich können Sie nachträglich nicht mehr ändern. Wählen Sie dazu mal einen vorhandenen Namen im Namensmanager aus und klicken Sie auf "Bearbeiten...". In dem sich öffnenden Fenster ist "Bereich" deaktiviert. Zur Änderung des Gültigkeitsbereichs müssten Sie den Namen also löschen und neu mit anderem Gültigkeitsbereich anlegen. | E9: 5 | F9: There you click on "New..." and a window opens in which you can specify the following: - the name - the scope (entire workbook or a single sheet) - the cell address for the name Once you have defined a scope, you can no longer change it. Select an existing name in the name manager and click on "Edit...". In the window that opens, "Scope" is deactivated. To change the scope, you would have to delete the name and create it again with a different scope.
B10: 6 | C10: ACHTUNG: RICHTIG verwirrend wird es, wenn Sie ein Arbeitsblatt aus einer Datei mit darin definierten Namen in eine andere Datei kopieren. Dann werden nämlich die Namen mit kopiert! Dabei kann es zu Konflikten mit gleichlautenden Namen in der anderen Datei kommen. Nach einer solchen Kopieraktion sollten Sie also UNBEDINGT den Namensmanager in der zweiten Datei aufrufen und dort nach dem Rechten sehen!! | E10: 6 | F10: ATTENTION: It becomes REALLY confusing when you copy a worksheet from one file with names therein to another file. Then the names will also be copied! This can lead to conflicts with identical names in the other file. After such a copy action you should ABSOLUTELY call the name manager in the second file and check the situation!
A20: 0

Sheet 08 Stammdaten
F1: 0
A2: 1 | B2: 08 Base data | F2: Back to Start
A3: 2 | B3: 08 Stammdaten | F3: Startseite
A5: 2 | C5: Lesen Sie bitte die Erläuterungen auf dem Blatt "Bereichsnamen"!
A6: 1 | C6: Please read the explanations on the sheet "Range names"!
A8: 2 | C8: Mehrwertsteuer (MwSt): | D8: 0.19 | E8: <- eine "globale" Namensdefinition! | I8: 0.19
A9: 1 | C9: Value added tax (VAT): | D9: 0.19 | E9: <- a "global" name definition!
A12: 1 | D12: net | E12: gross | F12: formula | G12: Here the "global" name definition is used - in contrast to the same calculation on the sheet "Range names"!
A13: 1 | D13: 100 | E13: =D13*(1+VAT) -> 119 | F13: =_xlfn.FORMULATEXT(E13) -> =D13*(1+VAT)
A15: 2 | D15: netto | E15: brutto | F15: Formel | G15: Hier wird die "globale" Namensdefinition benutzt - im Gegensatz zu derselben Berechnung auf dem Blatt "Bereichsnamen"!
A16: 2 | D16: 100 | E16: =D16*(1+MwSt) -> 119 | F16: =_xlfn.FORMULATEXT(E16) -> =D16*(1+MwSt)
A22: 0

Sheet 09 Office Zwischenablage
F1: 0
A2: 1 | B2: 09 Office clipboard | F2: Back to Start
A3: 2 | B3: 09 Office Zwischenablage | F3: Startseite
A37: 1 | B37: Exercise | C37: Open the Office clipboard and train the copy&paste with it!
A38: 1
A39: 2 | B39: Übung | C39: Öffnen Sie die Office-Zwischenablage und üben Sie das Copy&Paste damit!
A40: 2
A41: 0

Sheet 09 Office Zwischenablage_ (hidden)
B1: 2 | C1: 2 | D1: 2 | E1: 1 | F1: 1 | G1: 1 | H1: 0
A2: 1 | B2: 09 Office clipboard_ | F2: =B2 -> 09 Office clipboard_
A3: 2 | B3: 09 Office Zwischenablage_
B5: 1 | C5: Ich bin mir sicher, dass Ihnen die "Kopieren&Einfügen"-Technik ("copy&paste") gut bekannt ist. Sie benutzt die "normale" Windows-Zwischenablage: "Kopieren" bedeutet "einen Text oder eine Grafik vom Excel-Blatt in die Windows-Zwischenablage kopieren". "Einfügen" bedeutet "den Text oder die Grafik aus der Windows-Zwischenablage holen und auf dem Excel-Blatt einfügen. | E5: 1 | F5: I am sure, the copy&paste technique is well known to you. It uses the "normal" Windows clipboard: "Copy" means: "to copy a text or a chart from the Excel sheet to the Windows clipboard". "Paste" means: "to get the text or the chart from the Windows clipboard and to insert it on the Excel sheet".
B6: =IF(C6<>"",B5+1,"") -> 2 | C6: Es gibt aber noch eine andere Art von Zwischenablage: Die Office-Zwischenablage! In einigen Fällen, wenn die "normale" Windows-Zwischenablage nicht das tut, was Sie wollen, sollten Sie die Office-Zwischenablage benutzen. Sie öffnen die Office-Zwischenablage durch einen Klick auf den kleinen Butten im "Zwischenablage"-Menü von "Start". | E6: =IF(F6<>"",E5+1,"") -> 2 | F6: But there is also another kind of clipboard: The Office clipboard! In some cases, when the "normal" Windows clipboard doesn't do what you intend to do, you should use the Office clipboard. You can open the Office clipboard by clicking on the small button in the "Clipboard" menu of "Home".
B7: =IF(C7<>"",B6+1,"") -> 3 | C7: Die Office-Zwischenablage hat gegenüber der "normalen" Windows-Zwischenablage einige Vorteile: (1) Sie ist für Benutzer sichtbar. (2) Sie kann nicht nur ein einzelnes Objekt enthalten, sondern mehrere. (3) Benutzer können eines der Objekte einfach per Mausklick einfügen. (4) Sie ist "clever" und macht, was der Benutzer will. Der letzte Vorteil klingt etwas mysteriös - aber Sie werden erkennen, was gemeint ist, wenn Sie das Thema "Teilergebnisse" in der Datei "Excel-Lists" durcharbeiten! | E7: =IF(F7<>"",E6+1,"") -> 3 | F7: The Office clipboard has some advantages over the "normal" Windows clipboard: (1) It is visible to you. (2) It can contain not only one object but several ones. (3) You can insert one of the objects simply with a mouse click. (4) It is "clever" and does what you intend to do. The last advantage sounds a bit mysterious - but you will see, what is meant, if you work through the topic "Subtotals" in the file "Excel-Lists"!
A20: 0

Sheet 10 Bedingte Formatierung 1
F1: 0
A2: 1 | B2: 10 Conditional formatting 1 | F2: Back to Start
A3: 2 | B3: 10 Bedingte Formatierung 1 | F3: Startseite
C5: category | D5: Federal Shipping | E5: Speedy Express | F5: United Package
C6: beverages | D6: 91505.91 | E6: 57741.67 | F6: 118620.58
C7: cereals | D7: 24711.75 | E7: 29587.51 | F7: 41445.33
C8: meat | D8: 47602.99 | E8: 31138.79 | F8: 84280.59
C9: milk products | D9: 64693.6 | E9: 78517.76 | F9: 91243.4
C10: natural products | D10: 34038.8 | E10: 24226.03 | F10: 41719.74
C11: sea food | D11: 40459.34 | E11: 37687.72 | F11: 53114.67
C12: spices | D12: 27509.65 | E12: 39674.72 | F12: 38862.7
C13: sweets | D13: 52830.89 | E13: 50265.71 | F13: 64260.59
C14: milk products | D14: 64693.6 | E14: 78517.76 | F14: 91243.4
A64: 0

Sheet 10 Bedingte Formatierung 1_ (hidden)
B1: 2 | C1: 2 | D1: 2 | E1: 1 | F1: 1 | G1: 1 | H1: 0
A2: 1 | B2: 10 Conditional formatting 1_ | F2: =B2 -> 10 Conditional formatting 1_
A3: 2 | B3: 10 Bedingte Formatierung 1_
B5: 1 | C5: Sie können die bedingte Formatierung benutzen, um einen größeren Bereich mit Zahlen übersichtlicher zu gestalten. Dabei werden die Zellen nach bestimmten Regeln gefärbt. Bitte probieren Sie selber aus, was damit gemeint ist. Markieren Sie den Bereich mit Zahlen in der folgenden Tabelle und wählen Sie dann "Start / Formatvorlagen / Bedingte Formatierung" Dort sind die ersten fünf Menüeintrage selbsterklärend ... | E5: 1 | F5: You can use the conditional formatting to make a range with many numbers more overseeable. To this end the cells are colored according to certain conditions. Please try it by yourself to understand, what I mean. Mark the range with numbers in the following table and select "Home / Styles / Conditional Formatting" There the first five menu items are self-explaining ...
B6: =IF(C6<>"",B5+1,"") -> 2 | C6: Wenn Sie auf "Neue Regel…" klicken, erscheint das folgende Fenster. Dort sind die ersten fünf Regeltypen wieder selbsterklärend. Bitte probieren Sie sie aus, um zu verstehen, was diese Regeltypen bedeuten. Der letzte Regeltyp ist etwas komplizierter und wird auf dem nächsten Arbeitsblatt erklärt. | E6: =IF(F6<>"",E5+1,"") -> 2 | F6: If you click on "New Rule..." the following window appears. There the first five rule types are again self-explaining. Please try them with the above table to understand, what these rules do. The last rule type is a bit more complicated and is explained on the next worksheet.
B7: =IF(C7<>"",B6+1,"") ->  | E7: =IF(F7<>"",E6+1,"") -> 
A20: 0

Sheet 11 Bedingte Format. 2 (A)
F1: 0
A2: 1 | B2: 11 Conditional format. 2 (E) | F2: Back to Start
A3: 2 | B3: 11 Bedingte Format. 2 (A) | F3: Startseite
A5: 2 | B5: Achtung | C5: Bevor Sie dies hier lesen, arbeiten Sie bitte zuerst das vorherige Arbeitsblatt "Bedingte Formatierung 1" durch!
A6: 2
A7: 1 | B7: Attention | C7: Before you read this, please work through the preceding worksheet "Conditional formatting 1"!
A8: 1
C10: category | D10: Federal Shipping | E10: Speedy Express | F10: United Package | G10: Total | H10: Category
C11: beverages | D11: 91505.91 | E11: 57741.67 | F11: 118620.58 | G11: =SUM(D11:F11) -> 267868.16 | H11: A
C12: milk products | D12: 64693.6 | E12: 78517.76 | F12: 91243.4 | G12: 234454.76 | H12: A
C13: sweets | D13: 52830.89 | E13: 50265.71 | F13: 64260.59 | G13: 167357.19 | H13: B
C14: meat | D14: 47602.99 | E14: 31138.79 | F14: 84280.59 | G14: 163022.37 | H14: B
C15: sea food | D15: 40459.34 | E15: 37687.72 | F15: 53114.67 | G15: 131261.73 | H15: B
C16: spices | D16: 27509.65 | E16: 39674.72 | F16: 38862.7 | G16: 106047.07 | H16: B
C17: natural products | D17: 34038.8 | E17: 24226.03 | F17: 41719.74 | G17: 99984.57 | H17: C
C18: cereals | D18: 24711.75 | E18: 29587.51 | F18: 41445.33 | G18: 95744.59 | H18: C
A65: 2 | B65: Übung | C65: Definieren Sie für obige Tabelle zwei Regeln, die die komplette Zeile gelb bzw. rot färben, wenn in der letzen Spalte ein "B" bzw. ein "C" steht! Probieren Sie aus, ob Ihre bedingte Formatierug funktioniert, indem Sie aus einem "A" ein "B" machen bzw. aus einem "B" ein "C"!
A66: 2
A67: 2
A68: 1 | B68: Exercise | C68: Define two rules for the above table, which color the complete row in yellow and red, respectively, if there is a "B" or a "C" in the last column! Try if your conditional formatting works by changing an "A" into a "B" and a "B" into a "C".
A69: 1
A70: 1
A72: 0

Sheet 11 Bedingte Format. 2 (A)_ (hidden)
B1: 2 | C1: 2 | D1: 2 | E1: 1 | F1: 1 | G1: 1 | H1: 0
A2: 1 | B2: 11 Conditional format. 2 (E)_ | F2: =B2 -> 11 Conditional format. 2 (E)_
A3: 2 | B3: 11 Bedingte Format. 2 (A)_
B5: 1 | C5: Normalerweise besagt eine Regel für die bedingte Formatierung z.B.: "Wenn der Wert in DIESER Zelle größer als 50 ist, färbe sie rot!" Eine besondere Regel zur bedingten Formatierung besagt aber z.B.: "Wenn der Wert in DIESER Zelle eine bestimmte Bedingung erfüllt, färbe ANDERE ZELLEN rot!" Das bedeutet, die Formatierung einer Zelle hängt nicht vom Inhalt der Zelle selber ab, sondern vom Inhalt einer ANDEREN Zelle! BEISPIEL: In der folgenden Tabelle soll die gesamte Zeile grün gefärbt werden, wenn in der letzten Spalte ein "A" steht. | E5: 1 | F5: Usually, a rule for conditional formatting says, for example: "If the value in THIS cell is larger than 50, color it red." But a special rule for conditional formatting says, for example: "If the value in THIS cell satisfies a certain condition, color OTHER CELLS red." That means, the formatting of a cell doesn't depend on the content of the cell itself, but on the content of ANOTHER cell! EXAMPLE: In the following table the complete row shall be colored in green, if there is an "A" in the last column.
B6: =IF(C6<>"",B5+1,"") -> 2 | C6: Die folgenden Screenshots zeigen, wie die entsprechende Regel einzugeben ist. ACHTUNG: Die Regel enthält ZWEI Gleichheitszeichen! Das erste Gleichheitszeichen muss als "Wenn …" gelesen werden. Das zweite Gleichheitszeichen bezeichnet einen Vergleich - in diesem Fall zwischen dem Inhalt von Zelle H11 und dem Wert "A"! Das bedeutet: Die Regel ist erfüllt, wenn in H11 ein "A" steht. Wenn die Regel erfüllt ist, wird der in der Regel festgelegte Bereich formatiert. NOCHMAL ACHTUNG: Bitte beachten Sie sehr aufmerksam das richtige Setzen der $-Zeichen in der Regel und in deren Gültigkeitsbereich! | E6: =IF(F6<>"",E5+1,"") -> 2 | F6: The following screenshots show, how to enter the corresponding rule. ATTENTION: The rule contains TWO equal signs! The first equal sign should be read as: "If ...". The second equal sign is a comparison between two values - in the example between the content of cell H11 and the value "A"! That means: The rule is fulfilled, if there is an "A" in cell H11. If the rule is fulfilled, the range of cells, specified in the rule, is formatted. AGAIN ATTENTION: Please consider very attentively the right setting of $ signs in the rule as well as in the range for its application!
B7: =IF(C7<>"",B6+1,"") -> 3 | C7: Es ist schwer zu verstehen - und leider auch schwer zu erklären - warum die Formatierungsregel lauten muss =$H11="A". Es handelt sich um eine Formel. Wenn diese horizontal oder vertikal kopiert wird, werden die Zelladressen entsprechend angepasst. Durch ein Dollarzeichen kann man das verhindern ("absolute Zelladressierung"). | E7: =IF(F7<>"",E6+1,"") -> 3 | F7: It's hard to understand - and unfortunately also hard to explain - why the format rule must be =$H11="A". It's a formula. If it is copied horizontally or vertically, the cell addresses are adapted. You can avoid this with dollar signs ("absolute cell addressing").
B8: 4 | C8: Sie müssen sich die Definition der bedingten Formatierung daher so vorstellen: Die Eingabe der Formel =$H11="A", die die Bedingung beschreibt, erfolgt in der rechten oberen Ecke des Bereiches C11:H18, auf den sie angewandt werden soll. Diese bedingte Formatierung wird dann von H11 nach links bis C11 und nach unten bis H18 "ausgedehnt". Das ist so, als würde die Formel =$H11="A" horizontal und vertikal kopiert. Beim horizontalen Kopieren nach links soll die Spalte H nicht verändert werden. Beim vertikalen Kopieren nach unten soll aber die 11 zur 12, zur 13, ... usw werden. Daher müssen wir ein Dollarzeichen vor den Buchstaben H schreiben - aber nicht vor die Zahl 11. Alles klar? Wahrscheinlich nicht. Denken Sie nochmal darüber nach! Vielleicht verstehen Sie auch besser, was gemeint ist, wenn Sie einfach mal absichtlich eine falsche Bedingung eingeben (z.B. =H$11="A" oder =H11="A") und beobachten, was passiert. | E8: 4 | F8: Therefore, you can imagine the definition of the conditional formatting as follows: The formula =$H11="A", which describes the condition, is entered in the upper right corner of the range, for which it shall be valid. It is then expanded horizontally to C11 and vertically to H18. It's the same procedure as if the formula =$H11="A" was copied horizontally and vertically. In case of the horizonal copy the letter H shall not be changed. In case of the vertical copy the number 11 shall be changed to 12, to 13, ... and so on. Therefore we have to write a $ before the letter H - but not before the number 11. You got it? May be not. Please think again about it! May be you will get a better understanding, if you deliberately enter a wrong condition (e.g. =H$11="A" or =H11="A") and observe, what will happen.
A20: 0

Sheet 12 Absoluter Zellbezug (A)
J1: 0
A2: 1 | B2: 12 Absolute cell reference (E) | F2: Back to Start
A3: 2 | B3: 12 Absoluter Zellbezug (A) | F3: Startseite
C6: =A6*B6 | D6: column changed | E6: =C6*D6
C7: row
C8: changed | E8: =$A6*B6 | F8: fixed column | G8: =$A6*D6
C9: =A9*B9 | E9: no
E10: effect | G10: =A$6*B6 | H10: no effect | I10: =C$6*D6
E11: =$A9*B9 | G11: fixed
G12: row | I12: =$A$6*B6 | J12: fixed column | K12: =$A$6*D6
G13: =A$6*B9 | I13: fixed
I14: row
I15: =$A$6*B9
A17: 2 | B17: Achtung | C17: Für die Eingabe der $-Zeichen benutzen Sie die F4-Taste!!
A18: 2
A19: 2 | B19: Übung | C19: Geben Sie in der folgenden Tabelle in der gelb markierten Zelle die Formel zur Berechnung der Gesamtkosten ein. Setzen Sie die Dollarzeichen so, dass Sie die Formel nach rechts und nach unten kopieren können.
A20: 2
A21: 2
A22: 2 | C22: Kosten der Zentrale pro Quartal: | G22: Gesamtkosten= | I22: anteilige Kosten der Zentrale
A23: 2 | I23: plus Fixkosten der Filiale
A24: 2 | I24: plus variable Kosten der Filiale
A25: 1 | B25: Attention | C25: Use the F4 key to enter the $ characters!!
A26: 1
A27: 1 | B27: Exercise | C27: Enter the formula for the calculation of the total costs into the yellow cell in the following table. Set the $ characters in such a way, that you can copy the formula to the right and down.
A28: 1
A29: 1
A30: 1 | C30: costs of the headquarters per quarter: | G30: total costs= | I30: proportional costs of the headquarters
A31: 1 | I31: plus fixed costs of the branch
A32: 1 | I32: plus variable costs of the branch
D33: 12000
C35: branch | D35: fixed costs per quarter | E35: variable costs | I35: total costs
E36: 1st quarter | F36: 2nd quarter | G36: 3rd quarter | H36: 4th quarter | I36: 1st quarter | J36: 2nd quarter | K36: 3rd quarter | L36: 4th quarter
C37: Oldenburg | D37: 8000 | E37: 21827 | F37: 14637 | G37: 17389 | H37: 21940
C38: Bremen | D38: 6000 | E38: 26195 | F38: 19994 | G38: 19552 | H38: 14893
C39: Hamburg | D39: 7500 | E39: 24932 | F39: 20073 | G39: 10374 | H39: 27393
A42: 2 | B42: Ziel:
A43: 1 | B43: Objective:
A54: 0

Sheet 12 Absoluter Zellbezug (A)_ (hidden)
B1: 2 | C1: 2 | D1: 2 | E1: 1 | F1: 1 | G1: 1 | H1: 0
A2: 1 | B2: 12 Absolute cell reference (E)_ | F2: =B2 -> 12 Absolute cell reference (E)_
A3: 2 | B3: 12 Absoluter Zellbezug (A)_
B5: 1 | C5: Sie wissen: Wenn Sie eine Excel-Formel horizontal oder vertikal kopieren, werden die Zelladressen in der Formel an die neue Position der Formel angepasst. Wenn Sie das verhindern wollen, weil Sie in der Formel eine feste Zelladresse verwenden wollen, müssen Sie ein Dollarzeichen vor dem Spaltenbuchstaben, vor der Zeilennummer oder vor beiden hinzufügen. ACHTUNG: Für die Eingabe der $-Zeichen benutzen Sie die F4-Taste!! | E5: 1 | F5: You know: If you copy an Excel formula horizontally or vertically then the cell addresses in the formula are adapted to the new position of the formula. If you want to prevent this, beause you want to use a fixed cell address in your formula, you have to add a Dollar character either before the column letter or before the row number or before both of them. ATTENTION: Use the F4 key to enter the $ characters!!
B6: =IF(C6<>"",B5+1,"") -> 2 | C6: Zur Übung geben Sie in der folgenden Tabelle in der gelb markierten Zelle die Formel zur Berechnung der Gesamtkosten ein. Setzen Sie die Dollarzeichen so, dass Sie die Formel nach rechts und nach unten kopieren können. | E6: =IF(F6<>"",E5+1,"") -> 2 | F6: To train this, enter the formula for the calculation of the total costs into the yellow cell in the following table. Set the $ characters in such a way, that you can copy the formula to the right and down.
B7: =IF(C7<>"",B6+1,"") ->  | E7: =IF(F7<>"",E6+1,"") -> 
A20: 0

Sheet 13 Datenüberprüfung
F1: 0
A2: 1 | B2: 13 Data Validation | F2: Back to Start
A3: 2 | B3: 13 Datenüberprüfung | F3: Startseite
F36: arrival | H36: departure
C37: container nr | D37: size | E37: type | F37: day | G37: month | H37: day | I37: month | M37: list of sizes | N37: list of types
C38: HBLU23164734 | D38: 20' | M38: 20' | N38: standard
C39: BNGT56431890 | D39: 20' | M39: 40' | N39: open top
C40: CNMK87453190 | D40: 40' | N40: flat
C41: GTFR98676741 | D41: 40' | N41: reefer
C42: FRSE88689077 | D42: 20' | N42: high cube
A49: 2 | B49: Übung | C49: Definieren Sie in der Beispieltabelle eine Datenüberprüfung für die Tage und Monate! Finden Sie heraus, wie Sie die "Eingabemeldung" und die "Fehlermeldung" benutzen können!
A50: 2
A51: 1 | B51: Exercise | C51: Define a data validation in the example table for the days and months! Find out how to use the "Input Message" and the "Error Alert"!
A52: 1
A56: 2 | B56: abhängige
A57: 2 | B57: Kombina-
A58: 2 | B58: tionsfelder | C58: Transport | D58: von | F58: nach
A59: 1 | B59: depending
A60: 1 | B60: combo
A61: 1 | B61: boxes | C61: Transport | D61: from | F61: to
D62: Germany | F62: France
D63: Berlin | F63: Bordeaux
A66: 2 | C66: Formel für die Datenquelle der Stadt in D63: | E66: =WENN(D62='13 List data'!B5;'13 List data'!B6:B13;WENN(D62='13 List data'!C5;'13 List data'!C6:C11;WENN(D62='13 List data'!D5;'13 List data'!D6:D8;WENN(D62='13 List data'!E5;'13 List data'!E6:E10))))
A67: 2
A68: 2
A69: 1 | C69: Formula for the data source of the city in D63: | E69: =IF(D62='13 List data'!B5;'13 List data'!B6:B13;IF(D62='13 List data'!C5;'13 List data'!C6:C11;IF(D62='13 List data'!D5;'13 List data'!D6:D8;IF(D62='13 List data'!E5;'13 List data'!E6:E10))))
A70: 1
A71: 1
A73: 2 | B73: Übung | C73: Definieren Sie eine Datenüberprüfung für die Auswahl der Reederei. In dem Feld "Schiff" sollen dann die Schiffe der Rederei auswählbar sein. Die notwendigen Daten finden Sie auf dem Blatt "13 List data".
A74: 2
A75: 2
A76: 1 | B76: Exercise | C76: Define a data validation for the selection of the shipping company. The vessels of the shipping company should then be selectable in the field "Vessel". The necessary data can be found on the sheet "13 List data".
A77: 1
A78: 1
A80: 1 | D80: Shipping company:
A81: 2 | D81: Reederei:
A83: 1 | D83: Vessel:
A84: 2 | D84: Schiff:
A88: 2 | C88: Transport | D88: von | F88: nach
A89: 1 | C89: Transport | D89: from | F89: to
D90: Germany | F90: Netherlands
D91: Berlin | F91: Den Haag
A99: 0

Sheet 13 Datenüberprüfung_ (hidden)
B1: 2 | C1: 2 | D1: 2 | E1: 1 | F1: 1 | G1: 1 | H1: 0
A2: 1 | B2: 13 Data Validation_ | F2: =B2 -> 13 Data Validation_
A3: 2 | B3: 13 Datenüberprüfung_
B5: 1 | C5: Viele Fehler entstehen dadurch, dass Benutzer falsche Daten eingeben. Sie können das weitgehend (aber leider niemals vollständig) verhindern, indem Sie die Datenüberprüfung benutzen: "Daten / Datentools / Datenüberprüfung / Datenüberprüfung" Dort können Sie festlegen, dass in bestimmten Zellen nur bestimmte Werte eingegeben werden dürfen - z.B. ganze Zahlen oder ein Datum. Besonders nützlich ist die Auswahl "Liste". | E5: 1 | F5: The reason for many errors is, that users enter wrong data. You can avoid this as far as possible (but unfortunately never completely) by using the data validation: "Data / Data Tools / Data Validation / Data Validation" There you can define that certain cells can only contain certain values - e.g. integer numbers or a dates. Especially useful is the selection "List".
B6: =IF(C6<>"",B5+1,"") -> 2 | C6: Dort können Sie dann unter "Quelle" einen Bereich angeben, der die zugelassenen Werte enthält. Wenn Sie anschließend in die Zelle klicken, für die Sie die Datenüberprüfung definiert haben, erscheint rechts daneben ein Button. Damit können Sie die Liste der zugelassenen Werte aufklappen und einen Wert auswählen. Bitte probieren Sie das in der Beispieltabelle aus! | E6: =IF(F6<>"",E5+1,"") -> 2 | F6: Under "Source" you can enter a range, wich contains the allowed values. If you then click into the cell for which you have defined the data validation, a button appears right to it. It can be used to open a list of allowed values and to select one of them. Please try this with the example table!
B7: =IF(C7<>"",B6+1,"") -> 3 | C7: Sie können die Datenüberprüfung auch benutzen, um abhängige Kombinationsfelder zu entwickeln. Das bedeutet: Was in einem Kombinationsfeld angezeigt wird, hängt davon ab, was VORHER in einem ANDEREN Kombinationsfeld ausgewählt wurde - z.B. Länder und Städte. Wenn ein anderes Land ausgewählt wird, werden im zweiten Feld auch andere Städte angezeigt. | D7: B56 | E7: 3 | F7: You can also use data validation to develop dependent combo boxes. This means: What is displayed in a combo box depends on what was selected BEFORE in ANOTHER combo box - e.g. countries and cities. If another country is selected, other cities will also be displayed in the second field. | G7: B56
B8: 4 | C8: Sie können das erreichen, indem Sie unter "Quelle" eine entsprechende WENN-Formel eingeben. Das Ergebnis der WENN-Formel ist ein Zellbereich auf dem Blatt "13 List data". Die Lage dieses Zellbereichs hängt davon ab, welches Land in der Zelle über der Stadt ausgewählt wurde. Wenn z.B. als Land "Germany" ausgewählt wurde, ist die Datenquelle für die Stadt der Bereich B6:B13. Wenn "France" ausgewählt wurde, ist die Datenquelle für die Stadt der Bereich C6:C11. | E8: 4 | F8: You can achieve this by entering a corresponding IF formula under "Source". The result of the IF formula is a cell range on the sheet "13 List data". The location of this cell range depends on which country was selected in the cell above the city. For example, if "Germany" was selected as the country, the data source for the city is the range B6:B13. If "France" was selected, the data source for the city is the range C6:C11.
B9: 5 | C9: Diese Nutzung der Datenüberprüfung ist elegant und nützlich - aber leider unflexibel. Wenn Sie weitere Länder und/oder Städte hinzufügen wollen oder wenn sich die Eingabefelder für Land und Stadt auf dem Excelblatt verschieben, müssen Sie die WENN-Formel sorgfältig und mit viel Aufwand anpassen. Wenn Sie die totale Flexibilität brauchen, müssen Sie etwas mehr Aufwand bei der Definition der Datenquelle der Datenüberprüfung treiben. Das Stichwort hierzu lautet: "Als Tabelle formatieren". Das klingt etwas kurios, weil in Excel ja sowieso alle Daten in Tabellenform vorliegen. Mit "Als Tabelle formatieren" ist aber eine spezielle Funktion im Menü "Start" gemeint. | E9: 5 | F9: This use of data validation is elegant and useful - but unfortunately inflexible. If you want to add more countries and/or cities, or if the input fields for country and city move on the Excel sheet, you have to adjust the IF formula carefully and with a lot of effort. If you need total flexibility, you need to put a little more effort into defining the data source of the data validation. The keyword here is: "Format as table". This sounds a bit strange, because in Excel all data is in table form anyway. However, "Format as table" refers to a special function in the "Start" menu.
B10: 6 | C10: Ich habe die Liste der Länder auf dem Blatt "13 List data" schon als Tabelle formatiert. Zur Erläuterung führe ich das noch einmal vor: Liste markieren + "Start / Formatvorlagen / Als Tabelle formatieren". Fertig! Anschließend geben wir der Tabelle einen Namen, den wir einfach links oben im Namensfeld eingeben. Da der Name "Countries" schon vergeben ist, nenne ich sie "Countries2". Anschließend kann ich mir unter "Formeln / Namensmanager" das Ergebnis ansehen. | E10: =IF(F10<>"",E9+1,"") -> 6 | F10: I have already formatted the list of countries on the sheet "13 List data" as a table. I will show you how to do this again: Mark the list + "Start / Styles / Format as table". Done! Then we give the table a name, which we simply enter in the name field at the top left. Since the name "Countries" is already taken, I call it "Countries2". Then I can look at the result under "Formulas / Name manager".
B11: 7 | C11: Jetzt lösche ich diesen Namen und auch die dazugehörige Liste wieder und arbeite mit der Tabelle "Countries" weiter. Das Interessante an der als Tabelle formatierten Liste ist, dass neue Listeneinträge automatisch zur benannten Tabelle hinzugefügt werden. Zur Tabelle "Countries" gehört als jetzt auch "Danmark". | E11: 7 | F11: Now I delete this name and also the associated list again and continue working with the table "Countries". The interesting thing about the list formatted as a table is that new list entries are automatically added to the named table. The table "Countries" now also includes "Danmark".
B12: 8 | C12: ACHTUNG: Beachten Sie, dass Sie Einträge aus der Tabelle nicht einfach durch Löschen des Zellinhalts entfernen können. Dann haben Sie nämlich in der Tabelle einen Leereintrag! Sie müssen also die ganze Zeile löschen. Darum ist es auch wichtig, dass Sie die Listen UNTEREINANDER anlegen statt nebeneinander! | E12: 8 | F12: ATTENTION: Note that you cannot remove entries from the table simply by deleting the cell content. Then you will have an empty entry in the table! You must therefore delete the whole row. That is why it is also important that you create the lists BELOW each other instead of next to each other!
B13: 9 | C13: Und jetzt kommen wir wieder zur Datenüberprüfung. Hier gebe ich nämlich jetzt als Quelle keinen Zellbereich mit Zeilen und Spalten an, sondern den Namen der als Tabelle formatierten Liste: "Countries". ACHTUNG: Der Name der Tabelle muss für einen Bereich vergeben werden, der die Zeile "Countries" nicht enthält - sonst erscheint "Countries" nachher in der Liste der Länder! Wenn ich dort ein weiteres Land hinzufüge, erscheint es automatisch im Kombinationsfeld der Datenüberprüfung. Wenn ich in "Countries" einen Zellinhalt lösche, erscheint im Kombinationsfeld eine Leerzeile. Ich muss also in der Tabelle "Countries" wirklich die ganze Zeile löschen! | E13: 9 | F13: And now we come back to the data validation. Here I do not enter a cell range with rows and columns as the source, but the name of the list formatted as a table: "Countries". ATTENTION: The name of the table must be assigned for a range that does not contain the row "Countries" - otherwise "Countries" will appear later in the list of countries! If I add another country there, it automatically appears in the combo box of the data validation. If I delete a cell content in "Countries", an empty row appears in the combo box. So I really have to delete the whole row in the "Countries" table!
B14: 10 | C14: Und jetzt wird es richtig interessant: Jetzt sollen in der Zelle unter dem Land die dazugehörigen Städte ausgewählt werden können. Dazu formatiere ich die Listen mit den Städten wieder als Tabellen und nennen sie so, wie das dazughörige Land. Die Tabelle mit den deutschen Städten heißt also z.B. "Germany". ACHTUNG: Der Name der Tabelle muss für einen Bereich vergeben werden, der den Namen des Landes nicht enthält - sonst erscheint er nachher in der Liste der Städte! Dadurch wird folgender Supertrick möglich: Als Datenquelle für die Zelle mit dem Stadtnamen schreibe ich einfach: =INDIREKT($D$90) | E14: 10 | F14: And now it's getting really interesting: Now it should be possible to select the corresponding cities in the cell below the country. To do this, I format the lists with the cities as tables again and name them like the associated country. The table with the German cities is therefore called "Germany", for example. ATTENTION: The name of the table must be assigned for an area that does not contain the name of the country - otherwise it will appear later in the list of cities! This makes the following super trick possible: I simply write: =INDIRECT($D$90) as the data source for the cell with the city name.
B15: 11 | C15: Die Funktion INDIREKT() liefert als Ergebnis die Adresse einer Zelle oder eines Bereichs - in diesem Fall z.B. den Bereich mit dem Namen "Germany" - also die Liste der Städte in Deutschland. Zum besseren Verständnis demonstriere ich die Funktion INDIREKT() mal am Beispiel der Summe. Es hat keinen Sinn, "=INDIREKT(...)" in eine Zelle zu schreiben. INDIREKT() kann immer nur als Argument einer anderen Funktion benutzt werden - und zwar immer dort, wo eine Zelle oder ein Bereich angegeben werden müssen. | E15: 11 | F15: The function INDIRECT() returns the address of a cell or a range as the result - in this case, for example, the range with the name "Germany" - i.e. the list of cities in Germany. For a better understanding, I will demonstrate the function INDIRECT() using the example of the sum. It makes no sense to write "=INDIRECT(...)" in a cell. INDIRECT(...) can only be used as an argument of another function - and always where a cell or a range must be specified.
B16: 12 | C16: Ich kann jetzt nachträglich alle Listen ändern. Wenn ich ein Land hinzufüge, muss ich natürlich eine Liste mit Städten anlegen und ihr den Namen des Landes geben. Jetzt habe ich die totale Flexibilität in beiden Kombinationsfeldern für das Land und die Stadt! | E16: 12 | F16: I can now change all the lists afterwards. When I add a country, of course I have to create a list of cities and give it the name of the country. Now I have total flexibility in both combo boxes for the country and the city!
A20: 0

Sheet 13 List data
F1: 0
A2: 1 | B2: 13 List data | F2: Back to Start
A3: 2 | B3: 13 List data | F3: Startseite
B5: Germany | C5: France | D5: Netherlands | E5: Belgium | G5: CMA | H5: Contship | I5: Hanjin | J5: Hapag-Lloyd
B6: Berlin | C6: Paris | D6: Amsterdam | E6: Brüssel | G6: CMA CGM BERLIOZ | H6: NORDPACIFIC | I6: PEKING SENATOR | J6: SANTIAGO EXPRESS
B7: Hamburg | C7: Bordeaux | D7: Den Haag | E7: Antwerpen | G7: CMA CGM KOMODO | H7: TMM YUCATAN | I7: PORTLAND SENATOR | J7: SIERRA EXPRESS
B8: Bremen | C8: Marseille | D8: Rotterdam | E8: Lüttich | G8: CMA CGM BAUDELAIRE | H8: NYK PASION | I8: PUSAN SENATOR | J8: HUMBOLDT EXPRESS
B9: Frankfurt | C9: Lyon | E9: Brügge | G9: CMA CGM COLOMBIE | H9: LYKES ENVOY | I9: PUDONG SENATOR | J9: ALEMANIA EXPRESS
B10: Köln | C10: Nantes | E10: Gent | G10: CMA CGM KALAMATA | H10: NYK PASION | I10: PUGWASH SENATOR | J10: BUNGA RAYA DUA
B11: München | C11: Nizza | G11: CMA CGM VOLTAIRE | H11: ALTONIA | I11: PUNJAB SENATOR | J11: SIERRA EXPRESS
B12: Stuttgart | G12: CMA CGM CLAUDEL | I12: YOKOHAMA SENATOR | J12: NEDLLOYD EUROPA
B13: Essen | G13: CMA CGM NORMANDIE | I13: PORTUGAL SENATOR | J13: SANTIAGO EXPRESS
G14: CMA CGM MAKASSAR | I14: PENANG SENATOR
G15: CMA CGM RAVEL | I15: POHANG SENATOR
G16: CMA CGM SEINE | I16: PEKING SENATOR
G17: CMA CGM DEBUSSY | I17: PORTLAND SENATOR
G18: CMA CGM BALZAC
G19: CMA CGM VERLAINE
G20: CMA CGM PUGET
G21: CMA CGM BIZET
G22: CMA CGM COLOMBIE
G23: CMA CGM BERLIOZ
B26: Countries
B27: Germany
B28: France
B29: Netherlands
B42: Germany
B43: Berlin
B44: Hamburg
B45: Bremen
B46: Frankfurt
B47: Köln
B48: München
B49: Stuttgart
B50: Essen
B54: France
B55: Paris
B56: Bordeaux
B57: Marseille
B58: Lyon
B59: Nantes
B60: Nizza
B65: Netherlands
B66: Amsterdam
B67: Den Haag
B68: Rotterdam
B73: Belgium
B74: Brüssel
B75: Antwerpen
B76: Lüttich
B77: Brügge
B78: Gent
A81: 0

Sheet 14 Absol.-relativ-kumul. (A)
J1: 0
A2: 1 | B2: 14 Absol.-relative-cumul. (E) | F2: Back to Start
A3: 2 | B3: 14 Absol.-relativ-kumul. (A) | F3: Startseite
A5: 1 | B5: Relative share
A6: 2 | B6: Relativer Anteil
D7: category | E7: total sales | F7: relative share
D8: beverages | E8: 267868.16 | F8: =E8/SUM($E$8:$E$15) -> 0.2116296134 | H8: =_xlfn.FORMULATEXT(F8) -> =E8/SUMME($E$8:$E$15)
D9: milk products | E9: 234454.76 | F9: 0.1852313101 | H9: =_xlfn.FORMULATEXT(F9) -> =E9/SUMME($E$8:$E$15)
D10: sweets | E10: 167357.19 | F10: 0.1322207814 | H10: =E10/SUMME($E$8:$E$15)
D11: meat | E11: 163022.37 | F11: 0.1287960508 | H11: =E11/SUMME($E$8:$E$15)
D12: sea food | E12: 131261.73 | F12: 0.1037035129 | H12: =E12/SUMME($E$8:$E$15)
D13: spices | E13: 106047.07 | F13: 0.08378263556 | H13: =E13/SUMME($E$8:$E$15)
D14: natural products | E14: 99984.57 | F14: 0.07899294898 | H14: =E14/SUMME($E$8:$E$15)
D15: cereals | E15: 95744.59 | F15: 0.07564314687 | H15: =E15/SUMME($E$8:$E$15)
A17: 1 | B17: Cumulated absolute values
A18: 1 | C18: Attention: The cumulation does only make sense, if the values are ordered descending!
A19: 2 | B19: Kumulierte absolute Werte
A20: 2 | C20: Achtung: Das Kumulieren hat nur Sinn, wenn die Werte absteigend sortiert sind!
A21: 2 | C21: ACHTUNG!!! | D21: Es heißt weder kommulieren, noch kummulieren, noch krummulieren, noch kommolieren, sondern k u m u l i e r e n !!!!!!!!!!!!!!!!!!!!!!!!!!!!!!
A22: 2 | D22: !!!!! kumulieren !!!!!
D23: category | E23: total sales | F23: cumulated absolute values
D24: beverages | E24: 267868.16 | F24: =SUM($E$24:E24) -> 267868.16 | H24: =_xlfn.FORMULATEXT(F24) -> =SUMME($E$24:E24)
D25: milk products | E25: 234454.76 | F25: =SUM($E$24:E25) -> 502322.92 | H25: =_xlfn.FORMULATEXT(F25) -> =SUMME($E$24:E25)
D26: sweets | E26: 167357.19 | F26: =SUM($E$24:E26) -> 669680.11 | H26: =SUMME($E$24:E26)
D27: meat | E27: 163022.37 | F27: =SUM($E$24:E27) -> 832702.48 | H27: =SUMME($E$24:E27)
D28: sea food | E28: 131261.73 | F28: =SUM($E$24:E28) -> 963964.21 | H28: =SUMME($E$24:E28)
D29: spices | E29: 106047.07 | F29: =SUM($E$24:E29) -> 1070011.28 | H29: =SUMME($E$24:E29)
D30: natural products | E30: 99984.57 | F30: =SUM($E$24:E30) -> 1169995.85 | H30: =SUMME($E$24:E30)
D31: cereals | E31: 95744.59 | F31: =SUM($E$24:E31) -> 1265740.44 | H31: =SUMME($E$24:E31)
A33: 1 | C33: => | D33: "Our total turnover with the three top-selling product categories (beverages, milk products and sweets) is about 670.000€."
A34: 1
A35: 2 | C35: => | D35: "Unser Gesamtumsatz mit den drei umsatzstärksten Produktgruppen (Getränke, Milchprodukte und Süßigkeiten) beträgt ca. 670.000€."
A36: 2
A38: 1 | B38: Cumulated relative values
A39: 1 | C39: Attention: The cumulation does only make sense, if the values are ordered descending!
A40: 2 | B40: Kumulierte relative Werte
A41: 2 | C41: Achtung: Das Kumulieren hat nur Sinn, wenn die Werte absteigend sortiert sind!
D42: category | E42: total sales | F42: cumulated relative values
D43: beverages | E43: 267868.16 | F43: =SUM($E$43:E43)/SUM($E$43:$E$50) -> 0.2116296134 | H43: =_xlfn.FORMULATEXT(F43) -> =SUMME($E$43:E43)/SUMME($E$43:$E$50)
D44: milk products | E44: 234454.76 | F44: =SUM($E$43:E44)/SUM($E$43:$E$50) -> 0.3968609236 | H44: =_xlfn.FORMULATEXT(F44) -> =SUMME($E$43:E44)/SUMME($E$43:$E$50)
D45: sweets | E45: 167357.19 | F45: =SUM($E$43:E45)/SUM($E$43:$E$50) -> 0.5290817049 | H45: =SUMME($E$43:E45)/SUMME($E$43:$E$50)
D46: meat | E46: 163022.37 | F46: =SUM($E$43:E46)/SUM($E$43:$E$50) -> 0.6578777557 | H46: =SUMME($E$43:E46)/SUMME($E$43:$E$50)
D47: sea food | E47: 131261.73 | F47: =SUM($E$43:E47)/SUM($E$43:$E$50) -> 0.7615812686 | H47: =SUMME($E$43:E47)/SUMME($E$43:$E$50)
D48: spices | E48: 106047.07 | F48: =SUM($E$43:E48)/SUM($E$43:$E$50) -> 0.8453639042 | H48: =SUMME($E$43:E48)/SUMME($E$43:$E$50)
D49: natural products | E49: 99984.57 | F49: =SUM($E$43:E49)/SUM($E$43:$E$50) -> 0.9243568531 | H49: =SUMME($E$43:E49)/SUMME($E$43:$E$50)
D50: cereals | E50: 95744.59 | F50: =SUM($E$43:E50)/SUM($E$43:$E$50) -> 1 | H50: =SUMME($E$43:E50)/SUMME($E$43:$E$50)
A52: 1 | C52: => | D52: "We make about half of our turnover with the three top-selling product categories (beverages, milk products and sweets)."
A53: 1
A54: 2 | C54: => | D54: "Wir machen etwa die Hälfte unseres Gesamtumsatzes mit den drei umsatzstärksten Produktgruppen (Getränke, Milchprodukte und Süßigkeiten)."
A55: 2
A57: 1 | B57: Exercise 1 | C57: Calculate the relative shares and the cumulated values in the following table:
A58: 2 | B58: Übung 1 | C58: Berechnen Sie relativen Anteile und die kumulierten Werte in folgender Tabelle:
D60: country | E60: total sales | F60: relative share | G60: cumulated absolute values | H60: cumulated relative values
D61: Argentina | E61: 8119.1
D62: Austria | E62: 128003.83
D63: Belgium | E63: 33824.85
D64: Brasilia | E64: 106925.78
D65: Canada | E65: 51129.79
D66: Danmark | E66: 32661.02
D67: Finland | E67: 18810.05
D68: France | E68: 81305.81
D69: Germany | E69: 229351.11
D70: Great Britain | E70: 58971.31
D71: Ireland | E71: 49979.91
D72: Italy | E72: 15770.15
D73: Mexico | E73: 23582.07
D74: Norway | E74: 5735.15
D75: Poland | E75: 3531.95
D76: Portugal | E76: 11472.36
D77: Spain | E77: 17983.2
D78: Sweden | E78: 54495.14
D79: Switzerland | E79: 31692.64
D80: USA | E80: 245584.59
D81: Venezuela | E81: 56810.63
A84: 2 | B84: Übung 2 | D84: In der folgenden Tabelle werden Arbeitszeiten erfasst. In Spalte J sollen die Überstunden kumuliert werden. Entwickeln Sie die entsprechende Formel! Am Wochenende (=wenn es keinen Eintrag in Spalte E gibt), soll Spalte J leer bleiben. (-> mit einer WENN()-Formel!)
A85: 2
A86: 2
A87: 2
A88: 1 | B88: Exercise 2 | D88: The following table records working hours. In column J, the extra hours are to be cumulated. Develop the corresponding formula! At weekends (=if there is no entry in column E), column J should remain empty. (-> with an IF()-formula!)
A89: 1
A90: 1
A91: 1
A93: 2 | C93: Tag | E93: Beginn | F93: Ende | G93: Pause | H93: Ist-Arbeitszeit | I93: Soll-Arbeitszeit | J93: Überstunden
A94: 1 | C94: day | E94: start | F94: end | G94: break | H94: working hours | I94: regular hours | J94: extra hours
C95: 2020-09-07 | E95: 07:35:00 | F95: 16:20:00 | G95: 00:45:00 | H95: =IF(E95<>"",F95-E95-G95,"") -> 08:00:00 | I95: 07:00:00
C96: 2020-09-08 | E96: 07:40:00 | F96: 15:25:00 | G96: 00:45:00 | H96: 07:00:00 | I96: 07:00:00
C97: 2020-09-09 | E97: 07:15:00 | F97: 17:00:00 | G97: 00:45:00 | H97: 09:00:00 | I97: 07:00:00
C98: 2020-09-10 | E98: 07:20:00 | F98: 15:05:00 | G98: 00:45:00 | H98: 07:00:00 | I98: 07:00:00
C99: 2020-09-11 | E99: 07:30:00 | F99: 14:15:00 | G99: 00:45:00 | H99: 06:00:00 | I99: 06:00:00
C100: 2020-09-12
C101: 2020-09-13
C102: 2020-09-14 | E102: 07:15:00 | F102: 17:00:00 | G102: 00:45:00 | H102: 09:00:00 | I102: 07:00:00
A103: 0 | C103: 2020-09-15 | E103: 07:35:00 | F103: 16:20:00 | G103: 00:45:00 | H103: 08:00:00 | I103: 07:00:00
C104: 2020-09-16 | E104: 07:35:00 | F104: 16:20:00 | G104: 00:45:00 | H104: 08:00:00 | I104: 07:00:00
C105: 2020-09-17 | E105: 07:30:00 | F105: 14:15:00 | G105: 00:45:00 | H105: 06:00:00 | I105: 07:00:00
C106: 2020-09-18 | E106: 07:20:00 | F106: 15:05:00 | G106: 00:45:00 | H106: 07:00:00 | I106: 06:00:00
C107: 2020-09-19
C108: 2020-09-20
C109: 2020-09-21 | E109: 07:20:00 | F109: 15:05:00 | G109: 00:45:00 | H109: 07:00:00 | I109: 07:00:00
C110: 2020-09-22 | E110: 07:35:00 | F110: 16:20:00 | G110: 00:45:00 | H110: 08:00:00 | I110: 07:00:00
C111: 2020-09-23 | E111: 07:30:00 | F111: 14:15:00 | G111: 00:45:00 | H111: 06:00:00 | I111: 07:00:00
C112: 2020-09-24 | E112: 07:15:00 | F112: 17:00:00 | G112: 00:45:00 | H112: 09:00:00 | I112: 07:00:00
C113: 2020-09-25 | E113: 07:35:00 | F113: 16:20:00 | G113: 00:45:00 | H113: 08:00:00 | I113: 06:00:00
C114: 2020-09-26 | H114: =IF(E114<>"",F114-E114-G114,"") -> 
C115: 2020-09-27
C116: 2020-09-28
C117: 2020-09-29
C118: 2020-09-30
C119: 2020-10-01
C120: 2020-10-02

Sheet 14 Absol.-relativ-kumul. (A)_ (hidden)
B1: 2 | C1: 2 | D1: 2 | E1: 1 | F1: 1 | G1: 1 | H1: 0
A2: 1 | B2: 14 Absol.-relative-cumul. (E)_ | F2: =B2 -> 14 Absol.-relative-cumul. (E)_
A3: 2 | B3: 14 Absol.-relativ-kumul. (A)_
B5: 1 | C5: Was ein relativer Anteil ist und wie er berechnet wird, sollte jedem klar sein. Die 267.868,16€ Umsatz, die mit Getränken gemacht wurden, sind eben 21,2% vom Gesamtumsatz. Dazu wird in der entsprechenden Formel der Getränkeumsatz durch den Gesamtumsatz (mit Dollarzeichen!) dividiert. Alles klar! | E5: 1 | F5: What a relative share is and how it is calculated should be clear to everyone. The 267,868.16€ turnover made with beverages is just 21.2% of the total turnover. For this purpose, the corresponding formula divides the beverage turnover by the total turnover (with dollar signs!). You got it!
B6: =IF(C6<>"",B5+1,"") -> 2 | C6: Kumulieren (ACHTUNG: Weder kummulieren noch kommulieren noch komulieren!) bedeutet, dass über die ersten zwei, drei, vier, … usw. Werte summiert wird. Mit Getränken, Milchprodukten und Süßigkeiten wurden also zusammen 669.680,11€ Umsatz gemacht. Die entsprechende Formel ist schon etwas trickreicher. Der Beginn des aufzusummierenden Bereichs wird mit Dollarzeichen festgehalten – das Ende nicht. Dadurch entsteht beim herunterkopieren eine Formel, die besagt: „Summiere von oben bis hier!“. Alles klar? ACHTUNG: Das Kumulieren hat nur Sinn, wenn die Werteliste absteigend sortiert wird! Nur dann kann man nämlich sagen: „Mit den drei (oder vier oder fünf) umsatzstärksten Produkten machen wir einen Umsatz von … Euro.“ | E6: =IF(F6<>"",E5+1,"") -> 2 | F6: Cumulate (ATTENTION: Neither cummulate nor commulate nor comulate!) means that the first two, three, four, ... etc. values are added. Beverages, milk products and sweets together accounted for 669,680.11€ of sales. The corresponding formula is a bit more tricky. The beginning of the area to be added up is fixed with dollar signs - the end is not. This means that when you copy it down, you get a formula that says: "Sum from top to here!" You got it? ATTENTION: Cumulating only makes sense if the value list is sorted in descending order! Only then can you say: "With the three (or four or five) top-selling products we make a turnover of ... Euro".
B7: =IF(C7<>"",B6+1,"") -> 3 | C7: Auf den ersten Blick erscheint die Formel für das relative Kumulieren besonders trickreich. Wenn Sie aber verstanden haben, was relative Anteile sind (Wert / Gesamtsumme) und was kumulierte Werte sind (Summe von oben bis hier), dann verstehen Sie auch die Formel für’s relative Kumulieren: Das sind einfach beide Formeln zusammen!! “Summe von oben bis hier – geteilt durch Summe über alle Werte.“ Es werden also nicht absolute Werte, sondern relative Anteile kumuliert: „Mit den drei umsatzstärksten Produkten haben wir 52,9% unseres gesamten Umsatzes gemacht!“ ACHTUNG: Achten Sie beim Anwenden dieser Formel auf das richtige Setzen der Dollarzeichen! | E7: =IF(F7<>"",E6+1,"") -> 3 | F7: At first glance, the formula for relative cumulation seems particularly tricky. But once you have understood what relative shares are (value / total sum) and what cumulative values are (sum from top to here), you will also understand the formula for relative cumulation: These are simply both formulas together! "Sum from top to here - divided by sum over all values." So it is not absolute values but relative shares that are cumulated: "With the three products with the highest turnover we made 52.9% of our total turnover!" ATTENTION: When applying this formula, make sure that you set the dollar signs correctly!
A20: 0

Sheet 15 Spur und Fehlerüberprüf.
F1: 0
A2: 1 | B2: 15 Trace and Error Check | F2: Back to Start
A3: 2 | B3: 15 Spur und Fehlerüberprüf. | F3: Startseite
A5: 2 | B5: Spur zum Vorgänger / Nachfolger
A6: 1 | B6: Trace Precedents / Dependents
C8: container nr. | D8: type | E8: size | F8: net costs | G8: handling costs | H8: cleaning costs | I8: total costs
C9: BGTR24175698 | D9: standard | E9: 40' | F9: 120 | G9: 30 | I9: =F9+G9+H9 -> 150
C10: KLPT76341290 | D10: standard | E10: 40' | F10: 210 | G10: 62.5 | H10: 40 | I10: =SUM(F10:H10) -> 312.5
C11: GTRQ54908754 | D11: reefer | E11: 40' | F11: 180 | G11: 55 | H11: 40 | I11: =SUM(F11:H11) -> 275
C12: HZWA43566532 | D12: flat | E12: 20' | F12: 150 | G12: 37.5 | I12: =SUM(F12:H12) -> 187.5
H13: total net | I13: =SUM(I9:I12) -> 925
G14: 0.19 | H14: VAT | I14: =I13*G14 -> 175.75
H15: total gross | I15: =I13+I14 -> 1100.75
A41: 2 | B41: Spur zum Fehler
A42: 1 | B42: Trace Error
C45: container nr. | D45: type | E45: size | F45: net costs | G45: handling costs | H45: cleaning costs | I45: total costs
C46: BGTR24175698 | D46: standard | E46: 40' | F46: 120 | G46: 30 | I46: =F46+G46+H46 -> 150 | J46: =_xlfn.FORMULATEXT(I46) -> =F46+G46+H46
C47: KLPT76341290 | D47: standard | E47: 40' | F47: 210 | G47: 62.5 | H47: 40 | I47: =SUM(F47:H47) -> 312.5 | J47: =_xlfn.FORMULATEXT(I47) -> =SUMME(F47:H47)
C48: GTRQ54908754 | D48: reefer | E48: 40' | F48: 180 | G48: 55 | H48: 40 | I48: =SUM(F48:H48) -> 275 | J48: =_xlfn.FORMULATEXT(I48) -> =SUMME(F48:H48)
C49: HZWA43566532 | D49: flat | E49: 20' | F49: 150 | G49: 37.5 | I49: =SUM(F49:H49) -> 187.5 | J49: =_xlfn.FORMULATEXT(I49) -> =SUMME(F49:H49)
H50: total net | I50: =SUM(I46:I49) -> 925
G51: 0.19 | H51: VAT | I51: =I50*G51 -> 175.75
H52: total gross | I52: =I50+I51 -> 1100.75
A78: 2 | B78: Zirkelbezug
A79: 1 | B79: Circular reference
C81: container nr. | D81: type | E81: size | F81: net costs | G81: handling costs | H81: cleaning costs | I81: total costs | K81: handling costs | L81: test | M81: 0.2
C82: BGTR24175698 | D82: standard | E82: 40' | F82: 120 | G82: 30 | I82: =F82+G82+H82 -> 150 | K82: =$M$81*(F82+H82)/(1-$M$81) -> 30 | L82: =K82/I82 -> 0.2 | P82: net + 0,2*total + cleaning | Q82: = | R82: total
C83: KLPT76341290 | D83: standard | E83: 40' | F83: 210 | G83: 62.5 | H83: 40 | I83: =SUM(F83:H83) -> 312.5 | K83: =$M$81*(F83+H83)/(1-$M$81) -> 62.5 | L83: =K83/I83 -> 0.2 | P83: net + cleaning | Q83: = | R83: 0,8*total
C84: GTRQ54908754 | D84: reefer | E84: 40' | F84: 180 | G84: 55 | H84: 40 | I84: =SUM(F84:H84) -> 275 | K84: 55 | L84: 0.2 | P84: total | Q84: = | R84: (net + cleaning)/0,8
C85: HZWA43566532 | D85: flat | E85: 20' | F85: 150 | G85: 37.5 | I85: =SUM(F85:H85) -> 187.5 | K85: =$M$81*(F85+H85)/(1-$M$81) -> 37.5 | L85: 0.2 | P85: 0,2*total | Q85: = | R85: handling | S85: = 0,2*(net + cleaning) / 0,8
H86: total net | I86: =SUM(I82:I85) -> 925
G87: 0.19 | H87: VAT | I87: =I86*G87 -> 175.75
H88: total gross | I88: =I86+I87 -> 1100.75
A90: 2 | B90: ACHTUNG:
A91: 1 | B91: ATTENTION:
A104: 1 | B104: Exercise | C104: Train these techniques with the example table above!
A105: 2 | B105: Übung | C105: Üben Sie diese Techniken mit der obigen Beispieltabelle!
A106: 0

Sheet 15 Spur und Fehlerüberprüf._ (hidden)
B1: 2 | C1: 2 | D1: 2 | E1: 1 | F1: 1 | G1: 1 | H1: 0
A2: 1 | B2: 15 Trace and Error Check_ | F2: =B2 -> 15 Trace and Error Check_
A3: 2 | B3: 15 Spur und Fehlerüberprüf._
B5: 1 | C5: Auf Excel-Blättern gibt es häufig eine Kette von Berechnungen. Im Beispiel werden - die Gesamt-Nettokosten pro Zeile (Spalte I) aus den Einzelkosten (Spalten F, G, H) - die Gesamt-Nettokosten (I13) aus den Gesamt-Nettokosten pro Zeile (I9:I12) - die Gesamt-Bruttokosten (I15) aus den Gesamt-Nettokosten (I13) und der Mehrwertsteuer (I14) berechnet. Wenn Sie jetzt in die letzte Zelle dieser Kette klicken (Bruttosumme) können Sie herausbekommen, aus welchen anderen Zellen sich dieser Wert berechnet. Dazu klicken Sie einfach mehrfach auf - "Formeln / Formelüberwachung / Spur zum Vorgänger" | E5: 1 | F5: On Excel worksheets there are often "calculation chains". In the example the total net costs per row (column I) are calculated from the individual costs (columns F, G, H) - the total net costs are calculated from the total net costs per row and - the total gross costs are calculated from the total net costs and the VAT. If you click into the last cell of this chain (the total gross costs) you can find out, how this value is calculated by clicking several times - "Formulas / Formula Auditing / Trace Precedents"
B6: =IF(C6<>"",B5+1,"") -> 2 | C6: Umgekehrt können Sie z.B. eine Zelle in Spalte F (Nettokosten) anklicken und durch mehrfaches Klicken auf - "Formeln / Formelüberwachung / Spur zum Nachfolger" herausbekommen, wo dieser Wert weiter zu Berechnungen verwendet wird. | E6: =IF(F6<>"",E5+1,"") -> 2 | F6: Vice versa you can also click in one cell in column F (net costs) and find out, how this value is used in other cells for calculations by clicking several times on - "Formulas / Formula Auditing / Trace Dependents"
B7: =IF(C7<>"",B6+1,"") -> 3 | C7: Bei solchen "Berechnungsketten" kann eine "Fehlerfortpflanzung" entstehen: Ein Fehler in einer Zelle zieht eine Reihe von Fehlern in weiteren, davon abhängigen Zellen nach sich. Im Beispiel wurde Text statt einer Zahl eingegeben. ACHTUNG: Beachten Sie, dass die Formel SUMME() trotzdem funktioniert! Dieser Fehler pflanzt sich über die Zeilensummen und die Nettosummen bis zur Bruttosumme fort. Sie können dann in die Zelle mit der Bruttosumme klicken und mit - "Formeln / Formelüberwachung / Fehlerüberprüfung / Spur zum Fehler" von der letzten Zelle aus (Bruttosumme) zurückverfolgen, wo der Fehler ursprünglich her kommt (Nettokosten). Nebenbei bekommen Sie auch eine Info über die Art des Fehlers. | E7: =IF(F7<>"",E6+1,"") -> 3 | F7: In such "calculation chains" an "error propagation" may happen: One error in one cell is the cause for more errors in other cells. In the example, a text was entered instead of a number for the net costs. ATTENTION: Please note that the formula SUM() nevertheless works! This error propagates via the row sum and the net sum to the total gross. Now you can click into the cell with the total gross and click - "Formulas / Formula Auditing / Error Checking / Trace Error" to trace back the error from the last cell (total gross) to its initial cause (total costs). Then you will also get an information about the type of error.
B8: 4 | C8: Angenommen Sie versuchen folgendes: Die Handlingkosten sollen 20% der Gesamtkosten eines Containers betragen. Deshalb tragen Sie für die Handlingkosten in G82 folgende Formel ein: =I82*0,2. Daraufhin bekommen Sie eine Fehlermeldung, die Sie auf einen Zirkelbezug hinweist. Das bedeutet: Die Formel in I82 benötigt den Wert in G82 - aber die Formel in G82 benötigt wiederum den Wert in I82. Die Zellen beziehen sich also wechselseitig aufeinander. Das nennt man einen Zirkelbezug! Probieren Sie das bitte mit der Beispiel-Tabelle aus! ACHTUNG: Diese Formel kann nicht funktionieren - Excel erlaubt Ihnen aber trotzdem, sie einzugeben! Es erscheint aber ein Pfeil zwischen den beiden Zellen, der Sie auf das Problem aufmerksam macht. Sie sollten es also am besten sofort beseitigen, indem Sie eine andere Formel eingeben. | E8: 4 | F8: You may possibly try the following: The handling costs should be 20% of the total costs for one container. Therefore you enter the following formula for the handling costs in cell G82: =I82*0.2. Then you get an error message, which informs you about a circular reference. That means: The formula in I82 needs the value in G82 - but on the other hand the formula in G82 needs the value in I82. Both formulas references each other. This is called a "circular reference"! Please check this out with the example table! ATTENTION: This formula is incorrect - but nevertheless Excel allows you to enter it. But an arrow appears between the two cells which draws your attention to this problem. Therefore you should correct the wrong formula immediately.
B9: 5 | C9: Nebenbei etwas Mathematik - falls Sie sich fragen, wie Sie denn nun das Problem mit den 20% Handlingkosten lösen können. Hier sehen Sie anhand einiger Gleichungsumformungen, wie man auf die Formel in Spalte K kommt. Ich gehe davon aus, dass Sie das jetzt so schnell nicht überblicken. Sehen Sie sich das später in Ruhe in der Übungsdatei an. Vielleicht können Sie so etwas ja mal gebrauchen. | E9: 5 | F9: Some mathematics on the side - in case you are wondering how to solve the problem with the 20% handling costs. Here you can see by means of some equation conversions how to get the formula in column K.
B10: 6 | C10: ACHTUNG: Es kann vorkommen, dass Sie eine Excel-Datei (die Sie z.B. von jemand anderem bekommen haben) öffnen und Ihnen wird ein Zirkelbezug gemeldet. Die Stelle, an der sich dieser befindet, bekommen Sie leicht heraus: "Formeln / Fehlerüberwachung / Fehlerüberprüfung / Zirkelbezüge" Dieser Menüpunkt ist natürlich nur aktiviert, wenn es tatsächlich Zirkelbezüge in der Datei gibt. Bitte probieren Sie das wieder mit der Beispiel-Tabelle aus! | E10: 6 | F10: ATTENTION: It may happen, that you open an Excel file (which you may have got from another person) and you get the error message "Circular reference!". The location of this circular reference can easily be detected: "Formulas / Formula Auditing / Error Checking / Circular References" Of course, this menu item is only activated, if there are circular references in the file. Please check this out with the table above!
A22: 0

Sheet 16 Blattschutz
F1: 0
A2: 1 | B2: 16 Sheet Protection | F2: Back to Start
A3: 2 | B3: 16 Blattschutz | F3: Startseite
C23: container nr. | D23: type | E23: size | F23: net costs | G23: handling costs | H23: cleaning costs | I23: total costs
C24: BGTR24175698 | D24: standard | E24: 40'' | F24: 120 | G24: =0.2*(F24+H24)/(1-0.2) -> 30 | I24: =SUM(F24:H24) -> 150
C25: KLPT76341290 | D25: standard | E25: 40'' | F25: 210 | G25: =0.2*(F25+H25)/(1-0.2) -> 62.5 | H25: 40 | I25: =SUM(F25:H25) -> 312.5
C26: GTRQ54908754 | D26: reefer | E26: 40'' | F26: 180 | G26: 55 | H26: 40 | I26: =SUM(F26:H26) -> 275
C27: HZWA43566532 | D27: flat | E27: 20'' | F27: 150 | G27: 37.5 | I27: =SUM(F27:H27) -> 187.5
H28: total net | I28: =SUM(I24:I27) -> 925
G29: 0.19 | H29: VAT | I29: =I28*G29 -> 175.75
H30: total gross | I30: =I28+I29 -> 1100.75
A33: 1 | B33: Exercise 1 | C33: Train this technique with the example table!
A34: 2 | B34: Übung 1 | C34: Üben Sie diese Technik mit der Beispieltabelle!
A36: 1 | B36: Exercise 2 | C36: Try out what happens, if you deactivate the first two options in the window "Protect Sheet"!
A37: 1
A38: 2 | B38: Übung 2 | C38: Probieren Sie aus, was passiert, wenn Sie die ersten beiden Optionen im Fenster "Blatt schützen" deaktivieren!
A39: 2
A42: 0

Sheet 16 Blattschutz_ (hidden)
B1: 2 | C1: 2 | D1: 2 | E1: 1 | F1: 1 | G1: 1 | H1: 0
A2: 1 | B2: 16 Sheet Protection_ | F2: =B2 -> 16 Sheet Protection_
A3: 2 | B3: 16 Blattschutz_
B5: 1 | C5: Wenn Sie ein Excel-Blatt entwickelt haben, möchten Sie bestimmt nicht, dass es von anderen oder sogar von Ihnen selber unabsichtlich zerstört wird - dass also z.B. Formeln gelöscht oder Formatierungen verändert werden. Daher sollten Sie Ihr Blatt vor unbeabsichtigten Veränderungen schützen. Es gibt aber auch Zellen, die verändert werden dürfen - in der Beispieltabelle z.B. die gelb markierten Zellen. Dort können Containerdaten eingetragen werden. Alles andere - insbesondere die Formeln zur Berechnung der Kosten in Spalte I - soll aber nicht verändert werden. | E5: 1 | F5: If you have developed an Excel worksheet, then you certainly don't want, that somebody else (or even yourself!) destroyes something unintendedly - for example formulas may be deleted or formattings may be changed. Therefore you should protect the worksheet against unintended changes. On the other hand there are also cells, which should be changed - for example the yellow range in the table. There you can enter container data. Everything else - especially the calculations in column I - must not be changed.
B6: =IF(C6<>"",B5+1,"") -> 2 | C6: Daher gehen Sie so vor: - markieren Sie den gelben Bereich (=Zellen die verändert werden dürfen = nicht geschützt sind!) - Klicken Sie mit der rechten Maustaste in den markierten Bereich und - wählen Sie "Zellen formatieren". - Wählen Sie dann "Schutz" und - deaktivieren Sie das Kontrollkästchen bei "Gesperrt". Jetzt wird der markierte Bereich NICHT geschützt. | E6: =IF(F6<>"",E5+1,"") -> 2 | F6: Therefore do the following: - mark the yellow range (=cells which should be modifiable = not protected!) - click with the right mouse button into the marked range and - select "Format Cells". - Select "Protection" and - deactivate the check box "Locked". Now the marked range will NOT be protected.
B7: =IF(C7<>"",B6+1,"") -> 3 | C7: Anschließend klicken Sie auf "Überprüfen / Änderungen / Blatt schützen" Dort können Sie dem Benutzer verschiedene Aktivitäten erlauben oder verbieten. Standardmäßig lassen Sie einfach die ersten beiden Optionen aktiviert und die übrigen deaktiviert. Ein Kennwort sollten Sie nur vergeben, wenn das wirklich notwendig ist. Kennwörter werden leicht vergessen und dann können Sie Ihr Arbeitsblatt selber nicht mehr bearbeiten! | E7: =IF(F7<>"",E6+1,"") -> 3 | F7: Then click on "Review / Changes / Protect Sheet" There you can allow or forbid certain actions for the user. By default let the first two options activated and the rest deactivated. You should only enter a password, if this is really necessary. Passwords are often forgotten and then you are unable to work with your own worksheet!
B8: 4 | C8: Wenn Sie jetzt auf "OK" klicken, wird das ganze Blatt geschützt - mit Ausnahme der Zellen, die Sie vorher vom Schutz ausgenommen haben (gelber Bereich). Die Zellen im gelben Bereich kann ich also jetzt bearbeiten - die übrigen nicht. | E8: 4 | F8: If you now click "OK", the whole worksheet will be protected - with the exception of the cells you have marked before and defined as "not to be protected". So I can now edit the cells in the yellow area - not the others.
A20: 0

Sheet 17 Benutzerdef. Listen
F1: 0
A2: 1 | B2: 17 Custom lists | F2: Back to Start
A3: 2 | B3: 17 Benutzerdef. Listen | F3: Startseite
A11: 0
D28: Januar
D29: Februar
D30: März
D31: April
D32: Mai
D33: Juni
D34: Juli
D35: August
D36: September
D37: Oktober
D38: November
D39: Dezember

Sheet 17 Benutzerdef. Listen_ (hidden)
B1: 2 | C1: 2 | D1: 2 | E1: 1 | F1: 1 | G1: 1 | H1: 0
A2: 1 | B2: 17 Custom lists_ | F2: =B2 -> 17 Custom lists_
A3: 2 | B3: 17 Benutzerdef. Listen_
B5: 1 | C5: Excel kann bestimmte angefangene Reihen automatisch fortsetzen. Wenn Sie z.B. Januar und Februar in zwei untereinander liegende Zellen schreiben, dann beide Zellen markieren und gemeinsam herunter kopieren, setzt Excel automatisch mit März, April, … fort. Das nennt man "Benutzerdefinierte Listen". Welche Listen es gibt, sehen Sie hier: "Datei / Optionen / Erweitert / Allgemein" Dort können Sie durch einen Klick auf "Neue Liste" auch neue Listen erstellen - siehe z.B. A, B, C, ... im Screenshot: | E5: 1 | F5: Excel can automatically continue a series of values. If you - for example - enter January and February in two cells lying one below the other, then mark these two cells and copy them down together, Excel will automatically continue with March, April, …. This is called "Custom lists". You can see, which lists are available, if you click: "File / Options / Advanced / General" There you can also define new lists by clicking "NEW LIST" - see for example A, B, C, ... in the screenshot.
B6: =IF(C6<>"",B5+1,"") ->  | E6: =IF(F6<>"",E5+1,"") -> 
B7: =IF(C7<>"",B6+1,"") ->  | E7: =IF(F7<>"",E6+1,"") -> 
A20: 0

Sheet 18 Benutzerdef. Formate
L1: 1 | M1: 1 | N1: 2 | O1: 2 | Q1: 0
A2: 1 | B2: 18 Custom formats | F2: Back to Start
A3: 2 | B3: 18 Benutzerdef. Formate | F3: Startseite
A73: 2 | B73: Beispiel | C73: unformatiert | D73: formatiert | E73: mit: | F73: _-* #.##0,00 €_-;-* #.##0,00 €_-;_-* "-"?? €_-;_-@_-
A74: 1 | B74: Example | C74: unformatted | D74: formatted | E74: with: | F74: _-* #.##0,00 €_-;-* #.##0,00 €_-;_-* "-"?? €_-;_-@_-
C75: 123456.78 | D75: =C75 -> 123456.78 | K75: _- | L75: means: | M75: display an empty space as broad as a minus sign | N75: bedeutet: | O75: zeige ein Leerzeichen, das so breit ist wie ein Minuszeichen
C76: 123 | D76: =C76 -> 123 | K76: * | L76: means: | M76: repeat the character behind the star (here: a space) to fill the cell completely | N76: bedeutet: | O76: wiederhole das Zeichen hinter dem Stern (hier: ein Leerzeichen) bis die gesamte Zelle ausgefüllt ist
C77: 0.4567 | D77: =C77 -> 0.4567 | K77: # | L77: means: | M77: display a decimal digit if there is one ("can be") | N77: bedeutet: | O77: zeige eine Dezimalstelle, wenn es eine gibt ("kann")
C78: 0 | D78: =C78 -> 0 | K78: 0 | L78: means: | M78: display a decimal digit ("must be"); if not existing, then 0 | N78: bedeutet: | O78: zeige eine Dezimalstelle ("muss"); wenn keine vorhanden, dann 0
D79: 0 | K79: ? | L79: means: | M79: display a decimal digit ("must be"); if not existing, then empty space | N79: bedeutet: | O79: zeige eine Dezimalstelle ("muss"); wenn keine vorhanden, dann Leerzeichen
C80: -123.45 | D80: -123.45 | K80: "-" | L80: means: | M80: display a minus character | N80: bedeutet: | O80: zeige ein Minuszeichen
C81: -123 | D81: -123 | K81: € | L81: means: | M81: display the € symbol | N81: bedeutet: | O81: zeige das Euro-Symbol
C82: -0.45 | D82: -0.45 | K82: @ | L82: means: | M82: display a text | N82: bedeutet: | O82: zeige einen Text an
C83: text | D83: text
A85: 2 | B85: Hilfe | C85: Hilfe / "benutzerdefiniertes Format" -> Treffer: "Erstellen oder Löschen eines benutzerdefinierten Zahlenformats"
A86: 2 | C86: https://support.office.com/de-de/article/Erstellen-oder-L%C3%B6schen-eines-benutzerdefinierten-Zahlenformats-78f2a361-936b-4c03-8772-09fab54be7f4#
A87: 1 | B87: Help | C87: Help / "Custom format" -> Hit: "Create or delete a custom number format"
A88: 1 | C88: https://support.office.com/en-us/article/Create-or-delete-a-custom-number-format-78f2a361-936b-4c03-8772-09fab54be7f4
A90: 1 | B90: Exercise | C90: Explain the meaning of the following format definitions: number: 0,00E+00 currency: [Blue]#,#." T€ ";[Red]- #,#." T€ ";0 percent: 0,00% date: mm.dd.yyyy" "hh:mm AM/PM
A91: 1
A92: 1
A93: 1
A94: 1
A95: 2 | B95: Übung | C95: Erklären Sie die Bedeutung der folgenden Formatdefinitionen: Zahl: 0,00E+00 Währung: [Blau]#,#." T€ ";[Rot]- #,#." T€ ";0 Prozent: 0,00% Datum: mm.tt.jjjj" "hh:mm AM/PM
A96: 2
A97: 2
A98: 2
A99: 2
A100: 0

Sheet 18 Benutzerdef. Formate_ (hidden)
B1: 2 | C1: 2 | D1: 2 | E1: 1 | F1: 1 | G1: 1 | H1: 0
A2: 1 | B2: 18 Custom formats_ | F2: =B2 -> 18 Custom formats_
A3: 2 | B3: 18 Benutzerdef. Formate_
B5: 1 | C5: Mit "Start / Zahl" können Sie den Inhalt einer Zelle als Zahl, Währung, Datum, … usw. formatieren. Manchmal reichen die vorgegebenen Standardformate nicht aus. Dann können Sie sich durch einen Klick auf "Mehr …" selber Formate definieren. Da das nicht ganz einfach ist, hat Microsoft schon ein paar häufig benötigte Spezialformate für Sie definiert. Das kann erschreckend kompliziert aussehen. | E5: 1 | F5: With "Home / Number" you can format the content of a cell as a number, a currency, a date, … and so on. Sometimes the standard formats are not sufficient. Then you can click on "More Number Formats …" and define your own formats. Because this is not so simple, Microsoft has already pre-defined some of the mostly used special formats. This may look terrifying complicated.
B6: =IF(C6<>"",B5+1,"") -> 2 | C6: Für die Definition der Formate werden bestimmte Codezeichen benutzt - z.B. 0, #, _, ... usw. Die wichtigsten werden hier kurz erläutert. Außerdem kann jede Formatdefinition bis zu vier Definitionen enthalten - und zwar für positive Zahlen, negative Zahlen, Nullen und Texte. Die einzelnen Definitionen werden durch Semikolons voneinander getrennt. Dann sieht das z.B. so aus: _-* #.##0,00 €_- ; -* #.##0,00 €_- ; _-* "-"?? €_- ; _-@_- d.h. positive Zahlen so: _-* #.##0,00 €_- negative Zahlen so: -* #.##0,00 €_- Nullen so: _-* "-"?? €_- Texte so: _-@_- | E6: =IF(F6<>"",E5+1,"") -> 2 | F6: For the definition of formats certain code symbols are used - like 0, #, _, ... and so on. The most important ones are explained here shortly. Additionally, each format definition can contain up to four definitions - for positive and negative numbers, for zeros and for texts. The different definitions are separated from each other by semicolons: _-* #.##0,00 €_- ; -* #.##0,00 €_- ; _-* "-"?? €_- ; _-@_- i.e. positive numbers as: _-* #.##0,00 €_- negative numbers as: -* #.##0,00 €_- zeros as: _-* "-"?? €_- texts as: _-@_-
B7: =IF(C7<>"",B6+1,"") -> 3 | C7: Das sieht kompliziert aus und das ist leider auch kompliziert. Das sollte für Sie aber kein Grund sein, sich nicht mit dem Thema zu beschäftigen. Benutzerdefinierte Formate sind außerordentlich nützlich - z.B. bei der Beschriftung von Achsen in Diagrammen. Meine Empfehlung: Versuchen Sie zunächst, bereits vorhandene benutzerdefinierte Formate zu verstehen und zu benutzen. Dann können Sie sich später daran wagen, selber welche zu definieren. Auf den folgenden Blättern dieser Datei gibt es viele Beispiele für benutzerdefinierte Formate. Bitte sehen Sie sich diese Formate an und "spielen" Sie etwas damit herum, um damit vertraut zu werden. | E7: =IF(F7<>"",E6+1,"") -> 3 | F7: That looks complicated and unfortunately it is complicated. But that should not be a reason for you not to deal with the subject. Custom formats are extremely useful - e.g. when labelling axes in charts. My recommendation: First try to understand and use existing custom formats. Then you can later dare to define some yourself. On the following sheets of this file there are many examples of custom formats. Please have a look at these formats and "play" around with them a bit to get familiar with them.
A20: 0

Sheet 19 Regionalisierung
F1: 0
A2: 1 | B2: 19 Regionalisation | F2: Back to Start
A3: 2 | B3: 19 Regionalisierung | F3: Startseite
A26: 0

Sheet 19 Regionalisierung_ (hidden)
B1: 2 | C1: 2 | D1: 2 | E1: 1 | F1: 1 | G1: 1 | H1: 0
A2: 1 | B2: 19 Regionalisation_ | F2: =B2 -> 19 Regionalisation_
A3: 2 | B3: 19 Regionalisierung_
B5: 1 | C5: Wenn Zahlen, Währungsangaben, Datumsangaben oder Uhrzeiten nicht richtig angezeigt werden oder wenn Berechnungen nicht funktionieren, kann das auch an den regionalen Einstellungen auf Ihrem Computer liegen. Dieses Problem entsteht insbesondere dann, wenn Sie Excel-Blätter auf einem Computer entwickelt haben und dann dieselbe Datei auf einem anderen Computer mit anderen regionalen Einstellungen benutzen wollen - z.B. erst auf Deutsch, dann auf Englisch. Die regionalen Einstellungen können Sie folgendermaßen überprüfen und ggf. ändern: (Microsoft hat das entsprechende Fenster leider sehr sorgfältig versteckt ;-) | E5: 1 | F5: If numbers, currencies, dates or times are not displayed correctly of if calculations don't work, the reason may be the regional settings on your computer. This problem arises especially then, if you have developed Excel worksheets on one computer and then try to use them on another one with other regional settings - e.g. first English and then German. You can check and possibly change the regional settings as follows: (Microsoft has unfortunately hidden the corresponding window very carefully ;-)
B6: =IF(C6<>"",B5+1,"") -> 2 | C6: "Start" (ACHTUNG: Nicht "Excel-Start", sondern "Windows-Start"!) "Einstellungen" "Zeit und Sprache" "Region" "Verwandte Einstellungen (Zusätzliche Datums-, Uhrzeit- und Ländereinstellungen)" "Region (Datums-, Uhrzeit- oder Zahlenformat ändern)" "Weitere Einstellungen …" "Zahlen" / Währung" / "Uhrzeit" / "Datum" | E6: =IF(F6<>"",E5+1,"") -> 2 | F6: "Home" (ATTENTION: Not "Excel Home", but "Windows Home"!) "Settings" "Time & Language" "Region" "Related settings (Additional date, time & regional settings)" "Region (Change date, time or number formats)" "Additional setings …" "Numbers" / "Currency" / "Time" / Date"
B7: =IF(C7<>"",B6+1,"") -> 3 | C7: ACHTUNG: Beachten Sie insbesondere die Kategorie "Kalender" auf dem Register "Datum"! Dort können Sie festlegen, wie Excel zweistellige Jahreszahlen interpretiert: 2.1.49 ==> 2.1.2049 30.12.50 ==> 30.12.1950 Wenn Sie mein Video also nach 2050 sehen, sollten Sie diese Einstellung verändern. | E7: =IF(F7<>"",E6+1,"") -> 3 | F7: ATTENTION: Consider especially the category "Calendar" on the register "Date"! There you can define, how Excel interprets two-digits years: 1/2/49 ==> 1/2/2049 12/30/50 ==> 12/30/1950 So if you watch my video after 2050, you should change this setting.
A20: 0

Sheet 20 Zahlenformate
I1: 2 | J1: 1 | N1: 0
A2: 1 | B2: 20 Number formats | F2: Back to Start
A3: 2 | B3: 20 Zahlenformate | F3: Startseite
C5: 1234567.8 | D5: 0 | E5: -98765.4321 | F5: 0.1234 | G5: 12.345 | I5: "Start / Zahl / Standard" | J5: "Home / Number / Standard"
C7: =$C$5 -> 1234567.8 | D7: =$D$5 -> 0 | E7: =$E$5 -> -98765.4321 | F7: =$F$5 -> 0.1234 | G7: =$G$5 -> 12.345 | I7: "Start / Zahl / Zahlenformat" | J7: "Home / Number / Number Format"
C8: =$C$5 -> 1234567.8 | D8: =$D$5 -> 0 | E8: =$E$5 -> -98765.4321 | F8: =$F$5 -> 0.1234 | G8: 12.345 | I8: "Start / Zahl / Währung" | J8: "Home / Number / Currency"
C9: =$C$5 -> 1234567.8 | D9: =$D$5 -> 0 | E9: =$E$5 -> -98765.4321 | F9: =$F$5 -> 0.1234 | G9: 12.345 | I9: "Start / Zahl / Buchhaltung" | J9: "Home / Number / Accounting"
C11: =$C$5 -> 1234567.8 | D11: =$D$5 -> 0 | E11: =$E$5 -> -98765.4321 | F11: =$F$5 -> 0.1234 | G11: 12.345 | I11: #.##0 | J11: #.##0
C13: =$C$5 -> 1234567.8 | D13: =$D$5 -> 0 | E13: =$E$5 -> -98765.4321 | F13: =$F$5 -> 0.1234 | G13: 12.345 | I13: #.##0,00 | J13: #.##0,00
C15: =$C$5 -> 1234567.8 | D15: =$D$5 -> 0 | E15: =$E$5 -> -98765.4321 | F15: =$F$5 -> 0.1234 | G15: 12.345 | I15: #.###,## | J15: #.###,##
C17: 1234567.8 | D17: 0 | E17: -98765.4321 | F17: =$F$5 -> 0.1234 | G17: 12.345 | I17: #.###,??? | J17: #.###,???
C19: 1234567.8 | D19: 0 | E19: -98765.4321 | F19: =$F$5 -> 0.1234 | G19: 12.345 | I19: 0.,## "T" | J19: 0.,## "T"
C21: 1234567.8 | D21: 0 | E21: -98765.4321 | F21: =$F$5 -> 0.1234 | G21: 12.345 | I21: 0..,## "Mio." | J21: 0..,## "Mio."
C23: 1234567.8 | D23: 0 | E23: -98765.4321 | F23: =$F$5 -> 0.1234 | G23: 12.345 | I23: [Blau]* #.###,00" € ";[Rot]-* #.###,00" € ";0 | J23: [Blue]* #.###,00" € ";[Red]-* #.###,00" € ";0
A37: 1 | B37: Exercise | C37: Explain the different custom formats and what that means for the display of the different numbers!
A38: 1
A39: 2 | B39: Übung | C39: Erläutern Sie die verschiedenen benutzerdefinierten Formate und was das für die Darstellung der verschiedenen Zahlen bedeutet!
A40: 2
A42: 0

Sheet 21 Währungsformate
I1: 2 | J1: 1 | L1: 0
A2: 1 | B2: 21 Currency formats | F2: Back to Start
A3: 2 | B3: 21 Währungsformate | F3: Startseite
C5: 1234567.8 | D5: 0 | E5: -98765.4321 | F5: 0.1234 | G5: 12.345 | I5: "Start / Zahl / Standard" | J5: "Home / Number / Standard"
C7: =$C$5 -> 1234567.8 | D7: =$D$5 -> 0 | E7: =$E$5 -> -98765.4321 | F7: =$F$5 -> 0.1234 | G7: =$G$5 -> 12.345 | I7: "Start / Zahl / Zahlenformat" | J7: "Home / Number / Number Format"
C8: =$C$5 -> 1234567.8 | D8: =$D$5 -> 0 | E8: =$E$5 -> -98765.4321 | F8: =$F$5 -> 0.1234 | G8: 12.345 | I8: "Start / Zahl / Währung" | J8: "Home / Number / Currency"
C9: =$C$5 -> 1234567.8 | D9: =$D$5 -> 0 | E9: =$E$5 -> -98765.4321 | F9: =$F$5 -> 0.1234 | G9: 12.345 | I9: "Start / Zahl / Buchhaltung" | J9: "Home / Number / Accounting"
C11: =$C$5 -> 1234567.8 | D11: =$D$5 -> 0 | E11: =$E$5 -> -98765.4321 | F11: =$F$5 -> 0.1234 | G11: 12.345 | I11: #.##0 _€;-#.##0 _€ | J11: #.##0 _€;-#.##0 _€
C13: =$C$5 -> 1234567.8 | D13: =$D$5 -> 0 | E13: =$E$5 -> -98765.4321 | F13: =$F$5 -> 0.1234 | G13: 12.345 | I13: #.##0 €;[Rot]-#.##0 € | J13: #.##0 €;[Rot]-#.##0 €
C15: =$C$5 -> 1234567.8 | D15: =$D$5 -> 0 | E15: =$E$5 -> -98765.4321 | F15: =$F$5 -> 0.1234 | G15: 12.345 | I15: _-* #.##0,00 €_-;-* #.##0,00 €_-;_-* "-"?? €_-;_-@_- | J15: _-* #.##0,00 €_-;-* #.##0,00 €_-;_-* "-"?? €_-;_-@_-
C17: 1234567.8 | D17: 0 | E17: -98765.4321 | F17: =$F$5 -> 0.1234 | G17: 12.345 | I17: [Blau]+ #.###,##" € ";[Rot]- #.###,##" € ";0 | J17: [Blue]+ #.###,##" € ";[Red]- #.###,##" € ";0
C19: 1234567.8 | D19: 0 | E19: -98765.4321 | F19: =$F$5 -> 0.1234 | G19: 12.345 | I19: 0.,## "T€" | J19: 0.,## "T€"
C21: 1234567.8 | D21: 0 | E21: -98765.4321 | F21: =$F$5 -> 0.1234 | G21: 12.345 | I21: 0..,## "Mio.€" | J21: 0..,## "Mio.€"
C23: 1234567.8 | D23: 0 | E23: -98765.4321 | F23: =$F$5 -> 0.1234 | G23: 12.345 | I23: [Blau]* #.###,00" € ";[Rot]-* #.###,00" € ";0 | J23: [Blue]* #.###,00" € ";[Red]-* #.###,00" € ";0
A37: 1 | B37: Exercise | C37: Explain the different custom formats and what that means for the display of the different numbers!
A38: 1
A39: 2 | B39: Übung | C39: Erläutern Sie die verschiedenen benutzerdefinierten Formate und was das für die Darstellung der verschiedenen Zahlen bedeutet!
A40: 2
A42: 0

Sheet 22 Prozentformate
I1: 2 | J1: 1 | L1: 0
A2: 1 | B2: 22 Percentage formats | F2: Back to Start
A3: 2 | B3: 22 Prozentformate | F3: Startseite
C5: 0.4567 | D5: 0 | E5: -0.4321 | F5: -0.05 | G5: 0.2 | I5: "Start / Zahl / Standard" | J5: "Home / Number / Standard"
C7: =$C$5 -> 0.4567 | D7: =$D$5 -> 0 | E7: =$E$5 -> -0.4321 | F7: =$F$5 -> -0.05 | G7: =$G$5 -> 0.2 | I7: "Start / Zahl / Prozent" | J7: "Home / Number / Percentage"
C9: =$C$5 -> 0.4567 | D9: =$D$5 -> 0 | E9: =$E$5 -> -0.4321 | F9: =$F$5 -> -0.05 | G9: =$G$5 -> 0.2 | I9: [Blau]+ #,##" % ";[Rot]- #,##" % ";0 | J9: [Blue]+ #,##" % ";[Red]- #,##" % ";0
C11: =$C$5 -> 0.4567 | D11: =$D$5 -> 0 | E11: =$E$5 -> -0.4321 | F11: =$F$5 -> -0.05 | G11: =$G$5 -> 0.2 | I11: [Blau]* #,00" % ";[Rot]-* #,00" % ";0 | J11: [Blue]* #,00" % ";[Red]-* #,00" % ";0
C13: =$C$5 -> 0.4567 | D13: =$D$5 -> 0 | E13: =$E$5 -> -0.4321 | F13: =$F$5 -> -0.05 | G13: =$G$5 -> 0.2 | I13: [Blau]* 0,00" % ";[Rot]-* 0,00" % ";0 | J13: [Blue]* 0,00" % ";[Red]-* 0,00" % ";0
A16: 1 | B16: Exercise | C16: Explain the different custom formats and what that means for the display of the different numbers!
A17: 1
A18: 2 | B18: Übung | C18: Erläutern Sie die verschiedenen benutzerdefinierten Formate und was das für die Darstellung der verschiedenen Zahlen bedeutet!
A19: 2
A23: 0

Sheet 23 Datumsformate
F1: 2 | G1: 1 | I1: 0
A2: 1 | B2: 23 Date formats | D2: Back to Start
A3: 2 | B3: 23 Datumsformate | D3: Startseite
A5: 1 | B5: Excel stores a date as "Time since the 1st, January, 1900" (days before the point, hours after the point)
A6: 2 | B6: Excel speichert ein Datum als "Zeit seit dem 1.1.1900" (Tage vor dem Komma, Stunden nach dem Komma)
C8: 2016-12-03 | D8: 2016-12-03T18:00:00
C10: =$C$8 -> 42707 | D10: =$D$8 -> 42707.75 | F10: "Start / Zahl / Standard" | G10: "Home / Number / Standard" | K10: =J10-I10 -> 0
C11: =$C$8 -> 2016-12-03 | D11: =$D$8 -> 2016-12-03T18:00:00 | F11: "Start / Zahl / Datum, kurz" | G11: "Home / Number / Short Date"
C12: 2016-12-03 | D12: 2016-12-03T18:00:00 | F12: "Start / Zahl / Datum, lang" | G12: "Home / Number / Long Date"
C13: 42707 | D13: 42707.75 | F13: "Start / Zahl / Zeit" | G13: "Home / Number / Time"
A15: 2 | C15: 2016-12-03 | D15: 2016-12-03T18:00:00 | F15: "Start / Zahl / Mehr..." / "Datum" | G15: "Home / Number / More Number Formats ..." / "Date"
A16: 1 | C16: 2016-12-03 | D16: 2016-12-03T18:00:00 | F16: "Start / Zahl / Mehr..." / "Datum" | G16: "Home / Number / More Number Formats ..." / "Date"
A18: 2 | C18: 2016-12-03 | D18: 2016-12-03T18:00:00 | F18: T.M.JJ
A19: 1 | C19: 2016-12-03 | D19: 2016-12-03T18:00:00 | G19: d/m/yy
A21: 2 | C21: 2016-12-03 | D21: 2016-12-03T18:00:00 | F21: TT.MM.JJJJ
A22: 1 | C22: 2016-12-03 | D22: 2016-12-03T18:00:00 | G22: m/d/yyyy
A24: 2 | C24: 2016-12-03 | D24: 2016-12-03T18:00:00 | F24: TT.MM.JJJJ hh:mm
A25: 1 | C25: 2016-12-03 | D25: 2016-12-03T18:00:00 | G25: mm/dd/yyyy" "hh:mm AM/PM
A27: 2 | C27: 2016-12-03 | D27: 2016-12-03T18:00:00 | F27: TTT", "TT.MMM" "JJJJ
A28: 1 | C28: 2016-12-03 | D28: 2016-12-03T18:00:00 | G28: mmm/ddd/dd/yyyy
A30: 2 | C30: 2016-12-03 | D30: 2016-12-03T18:00:00 | F30: TTTT", "TT.MMMM" "JJJJ
A31: 1 | C31: 2016-12-03 | D31: 2016-12-03T18:00:00 | G31: mmmm/dddd/dd/yyyy
A33: 2 | C33: 2016-12-03 | D33: 2016-12-03T18:00:00 | F33: TTTT", den "T.MMMM" "JJJJ
A34: 1 | C34: 2016-12-03 | D34: 2016-12-03T18:00:00 | G34: dddd", the "d". of" mmmm" "yyyy
A36: 2 | C36: 2016-12-03 | D36: 2016-12-03T18:00:00 | F36: TTTT", den "T.MMMM" "JJJJ" um "hh:mm" Uhr"
A37: 1 | C37: 2016-12-03 | D37: 2016-12-03T18:00:00 | G37: dddd", the "d". of" mmmm" "yyyy" at "hh:mm AM/PM
A40: 1 | B40: Attention | C40: There is a special setting for the interpretation of two-digits year numbers (see sheet "Regionalisation" in this file!): 2/1/29 ==> 2/1/2029 12/30/30 ==> 12/30/1903
A41: 1
A42: 1
A43: 1
A44: 2 | B44: Achtung | C44: Für die Interpretation von zweistelligen Jahreszahlen gibt es eine besondere Einstellung (siehe in dieser Datei auf dem Blatt "Regionalisierung"!): 1.2.30 ==> 1.2.2030 30.12.29 ==> 30.12.1929
A45: 2
A46: 2
A47: 2
A49: 1 | B49: Attention | C49: You can enter a date before the 1st, January 1900 - but it doesn't have the format "Date". You can realise this, because a date is displayed right-aligned whereas a text is displayed left-aligned. --------------------> That means, you can not calculate with such a date - e.g. time differences. Nevertheless there is of course a trick - see "Time differences" in this file! | F49: 1900-01-05
A50: 1 | F50: 12/25/1899
A51: 1 | F51: =F49-F50 ->  | G51: =_xlfn.FORMULATEXT(F51) -> =F49-F50
A52: 1
A53: 2 | B53: Achtung | C53: Ein Datum vor dem 1.1.1900 können Sie zwar eingeben - es hat dann aber nicht das Format "Datum". Das erkennen Sie daran, dass ein Datum rechtsbündig, ein Text linksbündig angezeigt wird. --------------> Das bedeutet, Sie können damit nicht rechnen - z.B. Zeitdifferenzen berechnen. Trotzdem gibt es dafür natürlich wieder einen Trick - siehe "Zeitdifferenzen" in dieser Datei! | F53: 1900-01-05
A54: 2 | F54: 25.12.1899
A55: 2 | F55: =F53-F54 ->  | G55: =_xlfn.FORMULATEXT(F55) -> =F53-F54
A56: 2
A58: 1 | B58: Exercise | C58: Explain the different custom formats and what that means for the display of the dates!
A59: 1
A60: 2 | B60: Übung | C60: Erläutern Sie die verschiedenen benutzerdefinierten Formate und was das für die Darstellung der Datumsangaben bedeutet!
A61: 2
A63: 0

Sheet 24 Zeitdifferenzen (A)
I1: 0
A2: 1 | B2: 24 Time differences (E) | F2: Back to Start
A3: 2 | B3: 24 Zeitdifferenzen (A) | F3: Startseite
A5: 1 | B5: Excel stores a date as "Time since the 1st, January, 1900" (days before the point, hours after the point)
A6: 2 | B6: Excel speichert ein Datum als "Zeit seit dem 1.1.1900" (Tage vor dem Komma, Stunden nach dem Komma)
A8: 2 | B8: Formeln | C8: Format: | F8: Format = "Standard"
A9: 1 | B9: Formulas | C9: Format: | F9: Format = "General"
C10: "TT.MM.JJJJ hh:mm" | D10: =NOW() -> 2023-02-28T10:21:25.980 | E10: =_xlfn.FORMULATEXT(D10) -> =JETZT() | F10: =D10 -> 44985.43155
C11: "Datum" ... "Date" | D11: =TODAY() -> 2023-02-28 | E11: =_xlfn.FORMULATEXT(D11) -> =HEUTE() | F11: =D11 -> 44985
C12: "Standard" ... "General" | D12: =YEAR(TODAY()) -> 2023 | E12: =_xlfn.FORMULATEXT(D12) -> =JAHR(HEUTE()) | F12: =D12 -> 2023
C13: "Standard" ... "General" | D13: =MONTH(TODAY()) -> 2 | E13: =_xlfn.FORMULATEXT(D13) -> =MONAT(HEUTE()) | F13: =D13 -> 2
C14: "Standard" ... "General" | D14: =DAY(TODAY()) -> 28 | E14: =_xlfn.FORMULATEXT(D14) -> =TAG(HEUTE()) | F14: =D14 -> 28
A17: 1 | B17: Diff. in hours | H17: may be wrong! | I17: right! | J17: may be wrong! | K17: right! | L17: may be wrong!
A18: 2 | B18: Diff. in Stunden | H18: kann falsch sein! | I18: richtig! | J18: kann falsch sein! | K18: richtig! | L18: kann falsch sein!
A19: 1 | C19: time difference on one day | D19: date 1 | E19: date 2 | F19: Format "General" | G19: * 24 | H19: Format "Time" | I19: custom format [hh]:mm | J19: custom format hh:mm | K19: custom format dd hh:mm | L19: custom format dd [hh]:mm
A20: 2 | C20: Zeitdifferenz an einem Tag | D20: Datum 1 | E20: Datum 2 | F20: Format "Standard" | G20: mal 24 | H20: Format "Uhrzeit" | I20: benutzerdefiniertes Format [hh]:mm | J20: benutzerdefiniertes Format hh:mm | K20: benutzerdefiniertes Format TT hh:mm | L20: benutzerdefiniertes Format TT [hh]:mm
D21: 2020-05-10T08:30:00 | E21: 2020-05-10T15:00:00 | F21: =E21-D21 -> 0.2708333333 | G21: =(E21-D21)*24 -> 6.5 | H21: =E21-D21 -> 06:30:00 | I21: =E21-D21 -> 0.2708333333 | J21: =E21-D21 -> 06:30:00 | K21: =E21-D21 -> 06:30:00 | L21: =E21-D21 -> 0.2708333333
A23: 2 | C23: Zeitdifferenz über zwei Tage
A24: 1 | C24: time difference over two days
C25: less than 24 hours | D25: 2020-05-09T18:00:00 | E25: 2020-05-10T15:00:00 | F25: =E25-D25 -> 0.875 | G25: =(E25-D25)*24 -> 21 | H25: =E25-D25 -> 21:00:00 | I25: =E25-D25 -> 0.875 | J25: =E25-D25 -> 21:00:00 | K25: =E25-D25 -> 21:00:00 | L25: =E25-D25 -> 0.875
C26: more than 24 hours | D26: 2020-05-09T10:00:00 | E26: 2020-05-10T15:00:00 | F26: =E26-D26 -> 1.208333333 | G26: =(E26-D26)*24 -> 29 | H26: =E26-D26 -> 1.208333333 | I26: =E26-D26 -> 1.208333333 | J26: 1.208333333 | K26: =E26-D26 -> 1900-01-01T05:00:00 | L26: 1.208333333
A28: 2 | C28: Zeitdifferenz über mehrere Tage
A29: 1 | C29: time difference over many days
D30: 2020-05-02T12:30:00 | E30: 2020-05-10T15:00:00 | F30: =E30-D30 -> 8.104166667 | G30: =(E30-D30)*24 -> 194.5 | H30: =E30-D30 -> 8.104166667 | I30: =E30-D30 -> 8.104166667 | J30: 8.104166667 | K30: =E30-D30 -> 1900-01-08T02:30:00 | L30: 8.104166667
A33: 1 | B33: Exercise 1 | C33: Calculate the following time differences!
A34: 1
A35: 2 | B35: Übung 1 | C35: Berechnen Sie die folgende Zeitdifferenzen!
A36: 2
A38: 1 | C38: arrival | D38: departure | E38: stay time (in hours, format "General") | F38: stay time (in hours, format "[hh]:mm") | G38: stay time (format "dd hh:mm")
A39: 2 | C39: Ankunft | D39: Abfahrt | E39: Aufenthalt (in Std., Format "Standard") | F39: Aufenthalt (in Std., Format "[hh]:mm") | G39: Aufenthalt (Format "TT hh:mm")
C40: 2020-07-08T10:30:00 | D40: 2020-07-08T16:00:00
C41: 2020-07-08T07:45:00 | D41: 2020-07-08T16:00:00
C42: 2020-07-07T18:30:00 | D42: 2020-07-08T16:00:00
C43: 2020-07-07T12:45:00 | D43: 2020-07-08T16:00:00
C44: 2020-07-02T17:00:00 | D44: 2020-07-08T16:00:00
C45: 2020-07-02T08:15:00 | D45: 2020-07-08T16:00:00
A47: 1 | B47: Diff. in months
A48: 2 | B48: Diff. in Monaten
A50: 1 | C50: begin | D50: Ende | E50: difference in months
A51: 2 | C51: Beginn | D51: Ende | E51: Differenz in Monaten
C52: 2020-01-05 | D52: 2020-03-06 | E52: =DATEDIF(C52,D52,"M") -> 2 | F52: =_xlfn.FORMULATEXT(E52) -> =DATEDIF(C52;D52;"M")
C53: 2020-01-05 | D53: 2020-04-04 | E53: =DATEDIF(C53,D53,"M") -> 2 | F53: =_xlfn.FORMULATEXT(E53) -> =DATEDIF(C53;D53;"M")
C54: 2020-01-05 | D54: 2020-04-10 | E54: =DATEDIF(C54,D54,"M") -> 3 | F54: =_xlfn.FORMULATEXT(E54) -> =DATEDIF(C54;D54;"M")
A56: 1 | B56: Attention | C56: The difference is calculated in complete months - the additional days are neglected!
A57: 2 | B57: Achtung | C57: Die Differenz wird in ganzen Monaten berechnet - zusätzliche Tage werden vernachlässigt!
A59: 1 | B59: In 3 Monaten
A60: 2 | B60: In 3 months
A61: 1 | C61: 2020-02-10 | D61: + three months = | E61: =EDATE(C61,3) -> 2020-05-10 | F61: =_xlfn.FORMULATEXT(E61) -> =EDATUM(C61;3) | G61: difference in days: | H61: =E61-C61 -> 90
A62: 1 | C62: 2020-03-10 | D62: + three months = | E62: =EDATE(C62,3) -> 2020-06-10 | F62: =EDATUM(C62;3) | G62: difference in days: | H62: =E62-C62 -> 92
A63: 1 | C63: 2020-03-31 | D63: + three months = | E63: 2020-06-30 | F63: =EDATUM(C63;3) | G63: difference in days: | H63: 91
A64: 2 | C64: 2020-02-10 | D64: + drei Monate = | E64: 2020-05-10 | F64: =EDATUM(C64;3) | G64: Differenz in Tagen: | H64: 90
A65: 2 | C65: 2020-03-10 | D65: + drei Monate = | E65: 2020-06-10 | F65: =EDATUM(C65;3) | G65: Differenz in Tagen: | H65: 92
A66: 2 | C66: 2020-03-31 | D66: + drei Monate = | E66: 2020-06-30 | F66: =EDATUM(C66;3) | G66: Differenz in Tagen: | H66: 91
A69: 1 | B69: Exercise 2 | C69: Calculate the missing values in the following table!
A70: 2 | B70: Übung 2 | C70: Berechnen Sie die fehlenden Werte in der folgenden Tabelle!
A72: 1 | C72: begin | D72: end | E72: diff. in months | F72: begin + 3 months
A73: 2 | C73: Beginn | D73: Ende | E73: Diff. in Monaten | F73: Beginn + 3 Monate
C74: 2020-01-12 | D74: 2020-08-26
C75: 2020-04-01 | D75: 2020-08-26
C76: 2020-01-01 | D76: 2020-08-26
C77: 2020-03-31 | D77: 2020-08-26
A80: 1 | B80: Diff. in years
A81: 2 | B81: Diff. in Jahren
A82: 1 | C82: date of birth | D82: current date | E82: age (in years) | G82: WRONG!
A83: 2 | C83: Geburtstag | D83: aktuelles Datum | E83: Alter (in Jahren) | G83: FALSCH!
C84: 1990-04-12 | D84: 2020-04-11 | E84: =DATEDIF(C84,D84,"Y") -> 29 | F84: =_xlfn.FORMULATEXT(E84) -> =DATEDIF(C84;D84;"Y") | G84: =(D84-C84)/365 -> 30.01917808 | H84: =_xlfn.FORMULATEXT(G84) -> =(D84-C84)/365
C85: 1990-04-12 | D85: 2020-04-12 | E85: =DATEDIF(C85,D85,"Y") -> 30 | F85: =_xlfn.FORMULATEXT(E85) -> =DATEDIF(C85;D85;"Y") | G85: =(D85-C85)/365 -> 30.02191781 | H85: =_xlfn.FORMULATEXT(G85) -> =(D85-C85)/365
A87: 1 | B87: Exercise 3 | C87: Calculate the following ages!
A88: 2 | B88: Übung 3 | C88: Berechnen Sie die folgenden Altersangaben!
A89: 1 | C89: date of birth | D89: current date | E89: age (in years)
A90: 2 | C90: Geburtstag | D90: aktuelles Datum | E90: Alter (in Jahren)
C91: 1990-03-01 | D91: 2020-02-27
C92: 1990-03-01 | D92: 2020-03-02
C93: 1977-02-27 | D93: 2020-02-25
C94: 1977-02-27 | D94: 2020-03-02
C95: 1962-08-30 | D95: 2020-08-27
C96: 1962-08-30 | D96: 2020-09-02
C97: 1958-04-24 | D97: 2020-04-20
C98: 1958-04-24 | D98: 2020-04-24
A100: 1 | B100: Before 1900/1/1
A101: 2 | B101: Vor dem 1.1.1900
C102: 1900-01-10 | D102: =DATE(YEAR(C102)+400,MONTH(C102),DAY(C102)) -> 2300-01-10 | E102: =_xlfn.FORMULATEXT(D102) -> =DATUM(JAHR(C102)+400;MONAT(C102);TAG(C102))
C103: 25.12.1899 | D103: =DATE(RIGHT(C103,4)+400,MID(C103,4,2),MID(C103,1,2)) -> 2299-12-25 | E103: =_xlfn.FORMULATEXT(D103) -> =DATUM(RECHTS(C103;4)+400;TEIL(C103;4;2);TEIL(C103;1;2))
C104: =C102-C103 ->  | D104: =D102-D103 -> 16 | E104: =_xlfn.FORMULATEXT(D104) -> =D102-D103
A107: 0

Sheet 24 Zeitdifferenzen (A)_ (hidden)
B1: 2 | C1: 2 | D1: 2 | E1: 1 | F1: 1 | G1: 1 | H1: 0
A2: 1 | B2: 24 Time differences (E)_ | F2: =B2 -> 24 Time differences (E)_
A3: 2 | B3: 24 Zeitdifferenzen (A)_
B5: 1 | C5: Die Berechnung von Zeitdifferenzen ist ein enorm wichtiges Thema für praktische Excel-Anwendungen im Unternehmen. Sie müssen Arbeitszeiten, Fahrzeiten von LKW's, Transportzeiten, … usw. berechnen. Als Voraussetzung dafür ist es erforderlich, dass Sie genau wissen, wie Excel Datum und Uhrzeit eigentlich speichert. Das ist nämlich gar nicht so selbstverständlich! | E5: 1 | F5: The calculation of time differences is an enormously important topic for practical Excel applications in companies. You have to calculate working times, driving times of trucks, transport times, ... etc. As a prerequisite, you need to know exactly how Excel actually stores the date and time. This is not a matter of course!
B6: =IF(C6<>"",B5+1,"") -> 2 | C6: Das Wichtigste, was man zum Thema „Datum und Uhrzeit in Excel“ wissen muss, ist, dass Excel das DATUM als ganze Zahl speichert, die die Anzahl der Tage seit dem 1.1.1900 angibt und die UHRZEIT als Kommazahl dahinter. 12 Uhr mittags ist also …,5 – d.h. ein halber Tag. Sehen Sie sich dazu bitte das Beispiel auf dem Blatt an. Hier werden mit Hilfe der Funktion JETZT() immer das aktuelle Datum und die aktuelle Uhrzeit angezeigt. Um das in der Zelle auch zu sehen, müssen Sie sie benutzerdefiniert formatieren. Mit dem Format „Datum“ sehen Sie die Uhrzeit nicht. Wenn Sie die Zelle als „Standard“ formatieren, sehen Sie die Zahlen vor und nach dem Komma. Was HEUTE(), JAHR(), MONAT() und TAG() machen, sollte klar sein. | E6: =IF(F6<>"",E5+1,"") -> 2 | F6: The most important thing to know about "Date and Time in Excel" is that Excel stores the DATE as an integer number indicating the number of days since 1st, January 1900 and the TIME as a decimal point behind it. 12 noon is therefore ...,5 - i.e. half a day. Please have a look at the example on the sheet. Here the function NOW() always shows the current date and time. To see this in the cell too, you have to use a custom format. With the format "date" you will not see the time. If you format the cell as "standard", you will see the numbers before and after the decimal point. What TODAY(), YEAR(), MONTH() and DAY() do should be clear.
B7: =IF(C7<>"",B6+1,"") -> 3 | C7: Kommen wir jetzt also zu den Zeitdifferenzen. Die Speicherung eines Datums als Zahl erscheint zunächst merkwürdig – erweist sich aber bei der Berechnung von Zeitdifferenzen als äußerst nützlich. Sie können nämlich einfach zwei Datumsangaben voneinander abziehen. ACHTUNG: Das Ergebnis hat die Maßeinheit „Tage“! Wenn Sie es in Stunden haben wollen, müssen Sie es mit 24 multiplizieren. Ein halber Tag (0,5) sind also 0,5*24=12 Stunden. Ein viertel Tag (0,25) sind entsprechend 0,25*24=6 Stunden. | E7: =IF(F7<>"",E6+1,"") -> 3 | F7: Let us now turn to the time differences. The storage of a date as a number seems to be strange at first - but it proves to be extremely useful in the calculation of time differences. You can simply subtract two dates from each other. ATTENTION: The result has the measurement unit "days"! If you want it in hours, you have to multiply it by 24. So half a day (0.5) is 0.5*24=12 hours. A quarter day (0.25) is equivalent to 0.25*24=6 hours.
B8: 4 | C8: ACHTUNG: Jetzt kommt eine ganz gemeine Falle! Wenn Sie die Zeitdifferenz nicht als „6,5“, sondern als „6:30“ angezeigt haben wollen, müssen Sie ein ganz bestimmtes benutzerdefiniertes Format benutzen: [hh]:mm ACHTUNG: Die eckigen Klammern sind sehr wichtig!! Wenn Sie einfach nur das Format „Uhrzeit“ benutzen, KANN die Anzeige falsch werden- und zwar dann, wenn die Zeitdifferenz größer als 24 Stunden ist. Bitte sehen Sie sich dazu das Beispiel an: „Uhrzeit“ – mit eckigen Klammern – ohne eckige Klammern. | E8: 4 | F8: ATTENTION: Now comes a very nasty trap! If you want the time difference to be displayed as "6:30" instead of "6.5", you have to use a very specific custom format: [hh]:mm ATTENTION: The square brackets are very important! If you simply use the "Time" format, the display MAY become incorrect if the time difference is greater than 24 hours. Please have a look at the example: "Time" - with square brackets - without square brackets.
B9: 5 | C9: Jetzt wird es aber noch verrückter! Vielleicht möchten Sie 29 Stunden nicht als „29:00“ angezeigt bekommen, sondern als „1 05:00“ – also „ein Tag und 5 Stunden“. Dann müssen Sie das Format TT hh:mm benutzen – also OHNE eckige Klammern. Was sich Microsoft wohl dabei gedacht hat??? Bitte sehen Sie sich auch dazu wieder das Beispiel an: „Uhrzeit“ – ohne eckige Klammern – mit eckigen Klammern (Das Thema "Benutzerdefinierte Formate" wird detailliert erläutert in meiner Übungs-Datei "Excel-Basics"!) Mit diesen Beispieldaten können Sie die Berechnung und Darstellung von Zeitdifferenzen üben. | E9: 5 | F9: But now things are getting even crazier! Maybe you would like to have 29 hours displayed not as "29:00" but as "1 05:00" - that is "one day and 5 hours". Then you have to use the format TT hh:mm - that is WITHOUT square brackets. I wonder what Microsoft was thinking?? Please have a look at the example again: "Time" - without square brackets - with square brackets (The topic "custom formats" is explained in detail in my exercise file "Excel-Basics")! With these example data you can practice the calculation and presentation of time differences.
B10: 6 | C10: Die Differenz zweier Datumsangaben hat die Maßeinheit "Tage". Zur Umrechnung in - Stunden nehmen Sie die Differenz also mit 24 mal - Wochen teilen Sie die Differenz durch 7 Aber was ist mit Monaten? Ein Monat kann ja 28, 29, 30 oder 31 Tage haben. Dafür gibt es eine spezielle Excel-Funktion: DATEDIF(). | E10: 6 | F10: The difference between two dates is measured in days. To convert it into - hours you have to multiply the difference with 24 - weeks you have to divide the difference by 7 But what about months? A month can have 28, 29, 30 or 31 days. Therefore there is a special Excel function: DATEDIF()
B11: 7 | C11: Ein weiteres Problem entsteht, wenn Sie von einem bestimmten Datum aus sagen wollen "in 3 Monaten". Wie viele Tage sollen Sie dann addieren? Auch hierfür gibt es eine spezielle Excel-Funktion: EDATUM(). Hier können Sie DATEDIF() und EDATUM() üben. | E11: 7 | F11: Another problem arises, if you want to start at a certain date and then say "in 3 months time". How many days should you add? Also for this purpose there is a special Excel function: EDATE(). Here you can train DATEDIF() and EDATE().
B12: 8 | C12: Ein ähnliches Problem wie bei den Monaten entsteht auch mit den Jahren.Wie können Sie eine Zeitdifferenz in Jahre umrechnen? Ein Jahr kann 365 oder 366 Tage haben! Sie können aber auch jetzt wieder DATEDIF() benutzen. Hier können Sie das wieder üben. | E12: 8 | F12: A similar problem as with the months arises with years. How can you convert a time difference into years? A year may have 365 or 366 days! Here you can also use the before mentioned Excel function DATEDIF(). Here you can train it.
B13: 9 | C13: Auf dem Blatt "Datumsformate" in dieser Datei wurde bereits darauf hingewiesen, dass man mit Datumsangaben vor dem 1.1.1900 nicht rechnen kann. Aber es gibt natürlich Tricks, die das trotzdem erlauben. Einer davon beruht darauf, dass unser Kalender so aufgebaut ist, dass er sich alle 400 Jahre wiederholt. Das bedeutet z.B., dass der 12.3.1618 auf denselben Wochentag fiel wie der 12.3.2018 - nämlich einen Dienstag. Wenn Sie also die Differenz zweier Zeitangaben berechnen wollen, von denen eine oder beide vor dem 1.1.1900 liegen, können Sie zu beiden Zeiten 400 Jahre addieren und dann damit rechnen: | E13: 9 | F13: On the sheet "Date formats" it was already said, that you can not calculate with dates before the 1st, January 1900. Nevertheless there are tricks, which make this possible. One of them is based on the fact, that our calendar repeats every 400 years. That means, for example, that the 12th, March 1618 fell on the same weekday as the 12th, March 2018 - a tuesday. So, if you want to calculate the difference between two dates, where one or both are before the 1st, January 1900, you can add 400 years to both dates and calculate with these dates:
A21: 0

Sheet 25 KALENDERWOCHE()
I1: 0
A2: 1 | B2: 25 WEEKNUM() | F2: Back to Start
A3: 2 | B3: 25 KALENDERWOCHE() | F3: Startseite
D6: Day | E6: Week (Sunday = 1st Day) | G6: Week (Monday = 1st Day)
E7: (-> US, UAE!) | G7: System 1 | I7: System 2 (-> Europe!)
C8: Saturday | D8: 2016-01-09 | E8: =WEEKNUM(D8,1) -> 2 | F8: =_xlfn.FORMULATEXT(E8) -> =KALENDERWOCHE(D8;1) | G8: =WEEKNUM(D8,2) -> 2 | H8: =_xlfn.FORMULATEXT(G8) -> =KALENDERWOCHE(D8;2) | I8: =WEEKNUM(D8,21) -> 1 | J8: =_xlfn.FORMULATEXT(I8) -> =KALENDERWOCHE(D8;21)
C9: Sunday | D9: 2016-01-10 | E9: =WEEKNUM(D9,1) -> 3 | F9: =_xlfn.FORMULATEXT(E9) -> =KALENDERWOCHE(D9;1) | G9: =WEEKNUM(D9,2) -> 2 | H9: =_xlfn.FORMULATEXT(G9) -> =KALENDERWOCHE(D9;2) | I9: =WEEKNUM(D9,21) -> 1 | J9: =_xlfn.FORMULATEXT(I9) -> =KALENDERWOCHE(D9;21)
C10: Monday | D10: 2016-01-11 | E10: 3 | F10: =KALENDERWOCHE(D10;1) | G10: =WEEKNUM(D10,2) -> 3 | H10: =KALENDERWOCHE(D10;2) | I10: =WEEKNUM(D10,21) -> 2 | J10: =KALENDERWOCHE(D10;21)
A51: 0

Sheet 25 KALENDERWOCHE()_ (hidden)
B1: 2 | C1: 2 | D1: 2 | E1: 1 | F1: 1 | G1: 1 | H1: 0
A2: 1 | B2: 25 WEEKNUM()_ | F2: =B2 -> 25 WEEKNUM()_
A3: 2 | B3: 25 KALENDERWOCHE()_
B5: 1 | C5: Manchmal (z.B. bei der Projektplanung) braucht man die Kalenderwoche eines Datums. Sie wird mit der Excel-Funktion KALENDERWOCHE() berechnet. Leider ist das aus zwei Gründen etwas kompliziert: (1) In manchen Ländern ist der Sonntag der erste Tag der Woche und in anderen der Montag. (2) In manchen Ländern ist die Woche mit dem 1. Januar die erste Woche des Jahres (="System 1"), in manchen die Woche mit dem ersten Donnerstag (="System 2") Daher hat KALENDERWOCHE() neben dem Datum ein zweites Argument, mit dem das eingestellt werden kann. | E5: 1 | F5: Sometimes (e.g. for project plans) the calendar week of a date is needed. It is calculated with the Excel function WEEKNUM(). Unfortunately their use is a bit complicated, because of two reasons: (1) In some countries the Sunday is the first day of the week and in other coutries the Monday. (2) In some countries the week with the 1st, January is the first week of the year (="System 1"), in some coutries the week with the first Thursday (="System 2"). Therefore WEEKNUM() has besides the date a second argument which can be used to define this.
B6: =IF(C6<>"",B5+1,"") -> 2 | C6: Der 1.1.2016 war ein Freitag. Daher begann die erste Woche des Jahres 2016 in den USA schon am 27.12.2015 - in Europa aber erst am Montag, den 4.1.2016! In den USA muss man also als zweites Argument der Funktion KALENDERWOCHE() eine 1 einsetzen. Und jetzt wird's wieder kurios: Wenn Sie denken, Sie müssten für Europa - wie in der Hilfe angegeben - eine 2 einsetzen, dann liegen Sie leider falsch. Das funktioniert nicht! Sie müssen eine 21 schreiben. Verrückt! Muss man aber wissen. | E6: =IF(F6<>"",E5+1,"") -> 2 | F6: The 1st January 2016 was a Friday. Therefore, in the US the first week of the year 2016 has already begun on Sunday, 27th December 2015 - whereas in Europe it began only on Monday, 4th January 2016! You must therefore insert a 1 as the second argument of the WEEKNUM() function. And now it gets curious again: If you think you have to insert a 2 for Europe - as indicated in the help - you are unfortunately wrong. This does not work! You have to write a 21. Crazy! But you have to know.
B7: =IF(C7<>"",B6+1,"") ->  | E7: =IF(F7<>"",E6+1,"") -> 
A20: 0

Sheet 26 WOCHENTAG()
J1: 0
A2: 1 | B2: 26 WEEKDAY() | F2: Back to Start
A3: 2 | B3: 26 WOCHENTAG() | F3: Startseite
A18: 1 | C18: without second argument | E18: second argument = 1 | G18: second argument = 2 | I18: Format: DDDD | K18: Format: DDDD | M18: Format: DDDD | O18: with conditional formatting
A19: 2 | C19: ohne zweites Argument | E19: zweites Argument = 1 | G19: zweites Argument = 2 | I19: Format: TTTT | K19: Format: TTTT | M19: Format: TTTT | O19: mit bedingter Formatierung
B20: =TODAY()+B21 -> 2023-03-05
B21: 5
B22: =B23-1 -> 2023-02-23 | C22: =WEEKDAY(B22) -> 5 | D22: =_xlfn.FORMULATEXT(C22) -> =WOCHENTAG(B22) | E22: =WEEKDAY(B22,1) -> 5 | F22: =_xlfn.FORMULATEXT(E22) -> =WOCHENTAG(B22;1) | G22: =WEEKDAY(B22,2) -> 4 | H22: =_xlfn.FORMULATEXT(G22) -> =WOCHENTAG(B22;2) | I22: =WEEKDAY(B22) -> 1900-01-05 | J22: =_xlfn.FORMULATEXT(I22) -> =WOCHENTAG(B22) | K22: =WEEKDAY(B22,1) -> 1900-01-05 | L22: =_xlfn.FORMULATEXT(K22) -> =WOCHENTAG(B22;1) | M22: =WEEKDAY(B22,2) -> 1900-01-04 | N22: =_xlfn.FORMULATEXT(M22) -> =WOCHENTAG(B22;2) | O22: =WEEKDAY(B22) -> 1900-01-05 | P22: =_xlfn.FORMULATEXT(O22) -> =WOCHENTAG(B22)
B23: 2023-02-24 | C23: =WEEKDAY(B23) -> 6 | D23: =_xlfn.FORMULATEXT(C23) -> =WOCHENTAG(B23) | E23: =WEEKDAY(B23,1) -> 6 | F23: =_xlfn.FORMULATEXT(E23) -> =WOCHENTAG(B23;1) | G23: =WEEKDAY(B23,2) -> 5 | H23: =_xlfn.FORMULATEXT(G23) -> =WOCHENTAG(B23;2) | I23: =WEEKDAY(B23) -> 1900-01-06 | J23: =_xlfn.FORMULATEXT(I23) -> =WOCHENTAG(B23) | K23: =WEEKDAY(B23,1) -> 1900-01-06 | L23: =_xlfn.FORMULATEXT(K23) -> =WOCHENTAG(B23;1) | M23: =WEEKDAY(B23,2) -> 1900-01-05 | N23: =_xlfn.FORMULATEXT(M23) -> =WOCHENTAG(B23;2) | O23: 1900-01-06 | P23: =_xlfn.FORMULATEXT(O23) -> =WOCHENTAG(B23)
B24: 2023-02-25 | C24: 7 | D24: =WOCHENTAG(B24) | E24: 7 | F24: =WOCHENTAG(B24;1) | G24: 6 | H24: =WOCHENTAG(B24;2) | I24: 1900-01-07 | J24: =WOCHENTAG(B24) | K24: 1900-01-07 | L24: =WOCHENTAG(B24;1) | M24: 1900-01-06 | N24: =WOCHENTAG(B24;2) | O24: 1900-01-07 | P24: =WOCHENTAG(B24)
B25: 2023-02-26 | C25: 1 | D25: =WOCHENTAG(B25) | E25: 1 | F25: =WOCHENTAG(B25;1) | G25: 7 | H25: =WOCHENTAG(B25;2) | I25: 1900-01-01 | J25: =WOCHENTAG(B25) | K25: 1900-01-01 | L25: =WOCHENTAG(B25;1) | M25: 1900-01-07 | N25: =WOCHENTAG(B25;2) | O25: 1900-01-01 | P25: =WOCHENTAG(B25)
B26: 2023-02-27 | C26: 2 | D26: =WOCHENTAG(B26) | E26: 2 | F26: =WOCHENTAG(B26;1) | G26: 1 | H26: =WOCHENTAG(B26;2) | I26: 1900-01-02 | J26: =WOCHENTAG(B26) | K26: 1900-01-02 | L26: =WOCHENTAG(B26;1) | M26: 1900-01-01 | N26: =WOCHENTAG(B26;2) | O26: 1900-01-02 | P26: =WOCHENTAG(B26)
B27: 2023-02-28 | C27: 3 | D27: =WOCHENTAG(B27) | E27: 3 | F27: =WOCHENTAG(B27;1) | G27: 2 | H27: =WOCHENTAG(B27;2) | I27: 1900-01-03 | J27: =WOCHENTAG(B27) | K27: 1900-01-03 | L27: =WOCHENTAG(B27;1) | M27: 1900-01-02 | N27: =WOCHENTAG(B27;2) | O27: 1900-01-03 | P27: =WOCHENTAG(B27)
B28: 2023-03-01 | C28: 4 | D28: =WOCHENTAG(B28) | E28: 4 | F28: =WOCHENTAG(B28;1) | G28: 3 | H28: =WOCHENTAG(B28;2) | I28: 1900-01-04 | J28: =WOCHENTAG(B28) | K28: 1900-01-04 | L28: =WOCHENTAG(B28;1) | M28: 1900-01-03 | N28: =WOCHENTAG(B28;2) | O28: 1900-01-04 | P28: =WOCHENTAG(B28)
B29: 2023-03-02 | C29: 5 | D29: =WOCHENTAG(B29) | E29: 5 | F29: =WOCHENTAG(B29;1) | G29: 4 | H29: =WOCHENTAG(B29;2) | I29: 1900-01-05 | J29: =WOCHENTAG(B29) | K29: 1900-01-05 | L29: =WOCHENTAG(B29;1) | M29: 1900-01-04 | N29: =WOCHENTAG(B29;2) | O29: 1900-01-05 | P29: =WOCHENTAG(B29)
B30: 2023-03-03 | C30: 6 | D30: =WOCHENTAG(B30) | E30: 6 | F30: =WOCHENTAG(B30;1) | G30: 5 | H30: =WOCHENTAG(B30;2) | I30: 1900-01-06 | J30: =WOCHENTAG(B30) | K30: 1900-01-06 | L30: =WOCHENTAG(B30;1) | M30: 1900-01-05 | N30: =WOCHENTAG(B30;2) | O30: 1900-01-06 | P30: =WOCHENTAG(B30)
B31: =B32-1 -> 2023-03-04 | C31: 7 | D31: =WOCHENTAG(B31) | E31: 7 | F31: =WOCHENTAG(B31;1) | G31: 6 | H31: =WOCHENTAG(B31;2) | I31: 1900-01-07 | J31: =WOCHENTAG(B31) | K31: 1900-01-07 | L31: =WOCHENTAG(B31;1) | M31: 1900-01-06 | N31: =WOCHENTAG(B31;2) | O31: 1900-01-07 | P31: =WOCHENTAG(B31)
B32: =B20 -> 2023-03-05 | C32: 1 | D32: =WOCHENTAG(B32) | E32: 1 | F32: =WOCHENTAG(B32;1) | G32: 7 | H32: =WOCHENTAG(B32;2) | I32: 1900-01-01 | J32: =WOCHENTAG(B32) | K32: 1900-01-01 | L32: =WOCHENTAG(B32;1) | M32: 1900-01-07 | N32: =WOCHENTAG(B32;2) | O32: 1900-01-01 | P32: =WOCHENTAG(B32)
A34: 2 | B34: Achtung | C34: Der heutige Tag wird durch bedingte Formatierung hervorgehoben! (siehe Blatt "Bedingte Formatierung 2" in dieser Datei!) | M34: FALSCH!! | O34: Das Wochenende wird durch bedingte Formatierung hervorgehoben! (siehe Blatt "Einfache bed. Format." in dieser Datei!)
A35: 2
A36: 1 | B36: Attention | C36: The current day is highlighted by conditional formatting! (see worksheet "Conditional formatting 2" in this file!) | M36: WRONG!! | O36: The weekend is highlighted by conditional formatting! (see "Simple cond. format." in this file!)
A37: 1
A39: 0

Sheet 26 WOCHENTAG()_ (hidden)
B1: 2 | C1: 2 | D1: 2 | E1: 1 | F1: 1 | G1: 1 | H1: 0
A2: 1 | B2: 26 WEEKDAY()_ | F2: =B2 -> 26 WEEKDAY()_
A3: 2 | B3: 26 WOCHENTAG()_
B5: 1 | C5: Um herauszufinden, ob ein bestimmtes Datum auf einen Montag, Dienstag, … fällt, können Sie die Excel-Funktion WOCHENTAG() benutzen. Das ist wieder etwas kompliziert, weil Excel das Datum nicht direkt in "Montag", "Dienstag", … umwandelt, sondern in eine ganze Zahl, die die Nummer des Tages in der Woche angibt. Es hängt dann davon ab, wie der erste Tag der Woche definiert ist, ob z.B. der Tag Nummer 2 ein Montag ist (=Woche startet am Sonntag) oder ein Dienstag (=Woche startet am Montag). Daher hat WOCHENTAG() neben dem Datum ein zweites Argument, mit dem das eingestellt werden kann. | E5: 1 | F5: To find out, that a certain date is a Monday, a Tuesday, … you can use the Excel function WEEKDAY(). Again this is a bit complicated, because Excel doesn't convert the date directly into "Monday", "Tuesday", …. but into an integer number which is the number of the day in the week. Then it depends on the definition of the start of the week, whether the day number 2, for example, is a Monday (=week starts on Sunday) or a Tuesday (=week starts on Monday). Therefore the function WEEKDAY() besides the date has a second argument, which can be used to define this.
B6: =IF(C6<>"",B5+1,"") -> 2 | C6: Bitte sehen Sie sich dazu die Liste mit Beispieldaten an. Das aktuelle Datum befindet sich in der Mitte der Liste. Ein Steuerelement vom Typ „Drehfeld“ wird benutzt, um das aktuelle Datum nach oben bzw. unten zu verschieben. (Steuerelemente werden ausführlich in meiner Übungsdatei „Excel-Controls“ erläutert!) Die Zeile mit dem aktuellen Datum wird mit bedingter Formatierung hervorgehoben (siehe "Bedingte Formatierung 2" hier in dieser Datei!). | E6: =IF(F6<>"",E5+1,"") -> 2 | F6: Please have a look at the list with sample data. The current date is in the middle of the list. A control of the type "spin button" is used to move the current date up or down. (Controls are explained in detail in my exercise file "Excel-Controls"!) The row with the current date is highlighted using conditional formatting ("see "Conditional formatting 2" in this file).
B7: =IF(C7<>"",B6+1,"") -> 3 | C7: In den Spalten rechts daneben sehen Sie die Ergebnisse der Funktion WOCHENTAG() ohne zweites Argument bzw. mit einer 1 oder einer 2 als zweites Argument. Unformatiert ist das Ergebnis nur eine Zahl. Wollen Sie den Wochentag ausgeschrieben haben, müssen Sie die Zelle mit dem benutzerdefinierten Format TTTT formatieren. (Benutzerdefinierte Formate werden ausführlich auf einem anderen Blatt dieser Übungsdatei erläutert!) | E7: =IF(F7<>"",E6+1,"") -> 3 | F7: In the columns to the right you see the results of the function WEEKDAY() without a second argument or with a 1 or a 2 as second argument. Unformatted the result is just a number. If you want to write out the weekday, you have to format the cell with the user defined format DDDD. (Custom formats are explained in detail on another sheet in this exercise!)
B8: 4 | C8: ACHTUNG: Hier gibt es wieder eine gemeine Falle! Sehen wir uns dazu einen Donnerstag an. Mit dem Argument "1" wird daraus eine 5 - in den USA ist es also der fünfte Tag der Woche. Mit dem Argument "2" wird daraus entsprechend eine 4, denn in Europa ist der Donnerstag der vierte Tag der Woche. Formatieren wir die Zelle mit dem benutzerdefinierten Format TTTT, wird der Name des Tages im System 2 (Europa) falsch, denn aus "4" wird "Mittwoch". Die Formatierung geht also offensichtlich immer vom System 1 (USA) aus! Daher scheint es am besten zu sein, wenn Sie WOCHENTAG() ohne zweites Argument benutzen. Dann geht Excel standardmäßig von System 1 aus und gibt den Namen des Wochentages richtig aus. | E8: 4 | F8: ATTENTION: There is a nasty trap here again! Let's have a look at a Thursday. With the argument "1" it becomes a 5 - so in the USA it is the fifth day of the week. With the argument "2" it becomes a 4, because in Europe Thursday is the fourth day of the week. If we format the cell with the user-defined format DDDD, the name of the day in system 2 (Europe) becomes wrong, because "4" becomes "Wednesday". So the formatting obviously always starts from system 1 (USA)! Therefore it seems to be best to use WEEKDAY() without a second argument. Then Excel assumes system 1 by default and prints the name of the weekday correctly.
B9: 5 | C9: Dieselbe Falle schlägt zu, wenn Sie das Wochenende durch bedingte Formatierung hervorheben wollen. Dort müssen Sie als Bedingung für "Sonntag" eine "1" und für "Samstag" eine "7" benutzen! (=System 1) | E9: 5 | F9: The same trap applies if you want to highlight the weekend with conditional formatting. There you have to use a "1" for "Sunday" and a "7" for "Saturday"! (=System 1)
A20: 0

Sheet 27 "Seltsame" Zeitformate (A)
I1: 2 | J1: 1 | L1: 0
A2: 1 | B2: 27 "Strange" time formats (E) | F2: Back to Start
A3: 2 | B3: 27 "Seltsame" Zeitformate (A) | F3: Startseite
A7: 2 | K7: Berechnung der Löschdauer
A8: 1 | K8: Calculation of the duration of the discharge
K10: Format | N10: Format | P10: Format | Q10: Format | R10: Format | S10: Format | T10: Format | U10: Format
A11: 2 | B11: Schiff | C11: Löschbeginn | D11: Löschende | E11: Ladebeginn | F11: Ladeende | G11: ETD | H11: ATD | K11: Standard | N11: Standard | P11: Datum | Q11: Zeit | R11: hh:mm | S11: [hh]:mm | T11: TT hh:mm | U11: TT [hh]:mm
A12: 1 | B12: Vessel | C12: Discharge Start | D12: Discharge End | E12: Load Start | F12: Load End | G12: ETD | H12: ATD | K12: General | N12: General | P12: Date | Q12: Time | R12: hh:mm | S12: [hh]:mm | T12: dd hh:mm | U12: dd [hh]:mm
B13: A | C13: 06.02.2019 02:45 | D13: 06.02.2019 06:00 | E13: 06.02.2019 03:50 | F13: 06.02.2019 06:30 | G13: 06.02.2019 08:00 | H13: 06.02.2019 08:00 | K13: =D13-C13 -> 0.1354166667 | L13: =_xlfn.FORMULATEXT(K13) -> =D13-C13
B14: B | C14: 06.02.2019 06:40 | D14: 06.02.2019 10:05 | E14: 06.02.2019 03:45 | F14: 06.02.2019 20:35 | G14: 06.02.2019 20:00 | H14: 06.02.2019 20:55
B15: C | C15: 06.02.2019 03:10 | D15: 06.02.2019 12:55 | E15: 06.02.2019 06:50 | F15: 06.02.2019 14:00 | G15: 06.02.2019 14:30 | H15: 06.02.2019 14:30
B16: D | C16: 06.02.2019 07:20 | D16: 06.02.2019 12:40 | E16: 06.02.2019 10:00 | F16: 06.02.2019 11:45 | G16: 06.02.2019 17:00 | H16: 06.02.2019 12:45
B17: E | C17: 06.02.2019 11:55 | D17: 06.02.2019 12:10 | E17: 06.02.2019 12:10 | F17: 06.02.2019 12:35 | G17: 06.02.2019 14:30 | H17: 06.02.2019 12:40
B18: F | C18: 06.02.2019 13:00 | D18: 06.02.2019 14:45 | E18: 06.02.2019 14:45 | F18: 06.02.2019 19:05 | G18: 06.02.2019 19:00 | H18: 06.02.2019 19:15
B19: G | C19: 06.02.2019 15:00 | D19: 06.02.2019 18:45 | E19: 06.02.2019 16:45 | F19: 06.02.2019 17:00 | G19: 06.02.2019 20:00 | H19: 06.02.2019 19:40
B20: H | C20: 06.02.2019 15:00 | D20: 06.02.2019 16:30 | E20: 06.02.2019 16:00 | F20: 06.02.2019 17:15 | G20: 06.02.2019 18:00 | H20: 06.02.2019 17:30
B21: I | C21: 06.02.2019 19:35 | D21: 07.02.2019 02:50 | E21: 06.02.2019 20:45 | F21: 07.02.2019 04:40 | G21: 07.02.2019 07:00 | H21: 07.02.2019 07:00
B22: J | C22: 06.02.2019 18:50 | D22: 08.02.2019 05:00 | E22: 06.02.2019 23:30 | F22: 08.02.2019 10:00 | G22: 08.02.2019 10:00 | H22: 08.02.2019 10:20 | V22: !!!
B23: K | C23: 06.02.2019 23:05 | D23: 07.02.2019 19:56 | E23: 07.02.2019 00:50 | F23: 08.02.2019 00:05 | G23: 08.02.2019 00:30 | H23: 08.02.2019 00:30
I25: Gesamtzeit: | J25: Total time: | K25: =SUM(K13:K23) -> 0.1354166667 | N25: =SUM(N13:N23) -> 0 | P25: 0 | Q25: 0 | R25: 0 | S25: 0 | T25: 0 | U25: 0
A27: 1 | K27: in days | N27: in hours | P27: wrong! | Q27: wrong! | R27: wrong! | S27: right! | T27: right! | U27: wrong!
A28: 2 | K28: in Tagen | N28: in Stunden | P28: falsch! | Q28: falsch! | R28: falsch! | S28: richtig! | T28: richtig! | U28: falsch!
A29: 1
A30: 1 | K30: ATTENTION: The measurement unit of time differences is DAYS!! | N30: For the conversion into hours you must multiply the difference with 24. | P30: The right display format is very important. Some formats show wrong values! | S30: ATTENTION: Please consider the right usage of squared brackets!!
A31: 1
A32: 1
A33: 1
A34: 2 | K34: ACHTUNG: Die Maßeinheit von Zeitdifferenzen ist TAGE!! | N34: Zur Umrechnung in Stunden müssen Sie die Differenz mit 24 multiplizieren. | P34: Die richtige Wahl des Anzeigeformats ist sehr wichtig. Einige Formate zeigen falsche Werte an! | S34: ACHTUNG: Bitte beachten Sie die richtige Benutzung der eckigen Klammern!!
A35: 2
A36: 2
A37: 2
A40: 0

Sheet 28 UNIZEICHEN()
F1: 0
A2: 1 | B2: 28 UNICHAR() | F2: Back to Start
A3: 2 | B3: 28 UNIZEICHEN() | F3: Startseite
A5: 2 | C5: Bei der Vorbereitung meiner Mathe-Vorlesung bin ich auf folgendes Problem gestoßen: Die Formatierung eines Zeichens als "hochgestellt" wird nicht übernommen, wenn man sich von einer anderen Zelle aus darauf bezieht:
A6: 2
A7: 2
A8: 2
A9: 2
A10: 2 | C10: Hier steht der formatierte Text: | G10: Hier will ich denselbem Text haben:
A12: 1 | C12: When preparing for my maths lecture, I encountered the following problem: The formatting of a character as "superscript" is not taken over if one refers to it from another cell:
A13: 1
A14: 1
A15: 1
A16: 1
A17: 1 | C17: This is the formatted text: | G17: Here I want to have the same text:
C19: y=2*x4 + 5*x3 - 8*x2 + x - 7 | G19: =C19 -> y=2*x4 + 5*x3 - 8*x2 + x - 7
A21: 2 | C21: Was kann man tun? Das Zauberwort lautet "Unicode"! Mit ihm können über 1 Million verschiedener Zeichen dargestellt werden. Zur Zeit (2022) werden davon nur ca. 300.000 genutzt. Das reicht aber schon, um kaum einen Wunsch offen zu lassen. Die obige Formel muss dann so geschrieben werden:
A22: 2
A23: 2
A24: 2
A25: 2
A26: 2
A27: 2 | G27: Dann funktioniert auch der Zellbezug:
A29: 1 | C29: What can be done? The magic word is "Unicode"! It can be used to represent over 1 million different characters. At present (2022), only about 300,000 of them are used. But that is enough to leave hardly any wish unfulfilled. The above formula must then be written like this:
A30: 1
A31: 1
A32: 1
A33: 1
A34: 1 | G34: Then the cell reference also works:
C36: ="y=2*x"&_xlfn.UNICHAR(8308)&" + 5*x"&_xlfn.UNICHAR(179)&" - 8*x"&_xlfn.UNICHAR(178)&" + x - 7" -> y=2*x⁴ + 5*x³ - 8*x² + x - 7 | G36: =C36 -> y=2*x⁴ + 5*x³ - 8*x² + x - 7
A37: 1 | C37: ="y=2*x"&_xludf.UNICHAR(8308)&" + 5*x"&_xludf.UNICHAR(179)&" - 8*x"&_xludf.UNICHAR(178)&" + x - 7" -> 
A38: 2 | C38: =_xlfn.FORMULATEXT(C36) -> ="y=2*x"&UNIZEICHEN(8308)&" + 5*x"&UNIZEICHEN(179)&" - 8*x"&UNIZEICHEN(178)&" + x - 7"
A39: 1 | C39: =_xlfn.FORMULATEXT(C37) -> ="y=2*x"&UNICHAR(8308)&" + 5*x"&UNICHAR(179)&" - 8*x"&UNICHAR(178)&" + x - 7"
G40: =_xlfn.FORMULATEXT(G36) -> =C36
A42: 2 | C42: Sehen Sie sich mal die Liste der Unicode-Zeichen an:
A43: 2 | D43: https://de.wikipedia.org/wiki/Liste_der_Unicodebl%C3%B6cke
A44: 2 | C44: Wie gesagt - da bleibt kein Wunsch offen!
A46: 1 | C46: Take a look at the list of Unicode characters:
A47: 1 | D47: https://en.wikipedia.org/wiki/Unicode_block
A48: 1 | C48: As I said - no wish remains unfulfilled!
A50: 1 | C50: dec | D50: hex | E50: UNICODE | F50: example
A51: 2 | C51: dez | D51: hex | E51: UNIZEICHEN | F51: Beispiel
C53: 185 | D53: =DEC2HEX(C53) -> B9 | E53: =_xlfn.UNICHAR(C53) -> ¹ | F53: ="x"&_xlfn.UNICHAR(C53) -> x¹
C54: 178 | D54: B2 | E54: ² | F54: x²
C55: 179 | D55: B3 | E55: ³ | F55: x³
C56: 739 | D56: 2E3 | E56: ˣ | F56: ="e"&_xlfn.UNICHAR(C56) -> eˣ | G56: ="e"&_xlfn.UNICHAR(179)&_xlfn.UNICHAR(8317)&_xlfn.UNICHAR(739)&_xlfn.UNICHAR(8315)&_xlfn.UNICHAR(185)&_xlfn.UNICHAR(8318) -> e³⁽ˣ⁻¹⁾
C57: 916 | D57: 394 | E57: Δ | F57: =_xlfn.UNICHAR(916)&"x" -> Δx
C58: 945 | D58: 3B1 | E58: α
C59: 946 | D59: 3B2 | E59: β
C60: 947 | D60: 3B3 | E60: γ
C61: 948 | D61: 3B4 | E61: δ
C62: 949 | D62: 3B5 | E62: ε
C63: 950 | D63: 3B6 | E63: ζ
C64: 8304 | D64: =DEC2HEX(C64) -> 2070 | E64: =_xlfn.UNICHAR(C64) -> ⁰ | F64: ="x"&_xlfn.UNICHAR(C64) -> x⁰
C65: 8305 | D65: =DEC2HEX(C65) -> 2071 | E65: =_xlfn.UNICHAR(C65) -> ⁱ | F65: ="x"&_xlfn.UNICHAR(C65) -> xⁱ
C66: 8306
C67: 8307
C68: 8308 | D68: =DEC2HEX(C68) -> 2074 | E68: =_xlfn.UNICHAR(C68) -> ⁴ | F68: x⁴
C69: 8309 | D69: =DEC2HEX(C69) -> 2075 | E69: =_xlfn.UNICHAR(C69) -> ⁵ | F69: x⁵
C70: 8310 | D70: =DEC2HEX(C70) -> 2076 | E70: =_xlfn.UNICHAR(C70) -> ⁶ | F70: x⁶
C71: 8311 | D71: =DEC2HEX(C71) -> 2077 | E71: =_xlfn.UNICHAR(C71) -> ⁷ | F71: x⁷
C72: 8312 | D72: =DEC2HEX(C72) -> 2078 | E72: =_xlfn.UNICHAR(C72) -> ⁸ | F72: x⁸
C73: 8313 | D73: =DEC2HEX(C73) -> 2079 | E73: =_xlfn.UNICHAR(C73) -> ⁹ | F73: x⁹
C74: 8314 | D74: 207A | E74: ⁺ | F74: x⁺
C75: 8315 | D75: 207B | E75: ⁻ | F75: x⁻
C76: 8316 | D76: 207C | E76: ⁼ | F76: x⁼
C77: 8317 | D77: 207D | E77: ⁽ | F77: x⁽
C78: 8318 | D78: 207E | E78: ⁾ | F78: x⁾
C79: 8319 | D79: 207F | E79: ⁿ | F79: ="x"&_xlfn.UNICHAR(C79) -> xⁿ
C80: 7488 | D80: 1D40 | E80: ᵀ | F80: ="A"&_xlfn.UNICHAR(C80) -> Aᵀ
C82: 8320 | D82: 2080 | E82: ₀ | F82: x₀
C83: 8321 | D83: 2081 | E83: ₁ | F83: x₁ | G83: ="x"&_xlfn.UNICHAR(8321)&_xlfn.UNICHAR(8322)&"=" -> x₁₂=
C84: 8322 | D84: 2082 | E84: ₂ | F84: x₂
C85: 8323 | D85: 2083 | E85: ₃ | F85: x₃
C86: 8324 | D86: 2084 | E86: ₄ | F86: x₄
C87: 8325 | D87: 2085 | E87: ₅ | F87: x₅
C88: 8326 | D88: 2086 | E88: ₆ | F88: x₆
C89: 8327 | D89: 2087 | E89: ₇ | F89: x₇
C90: 8328 | D90: 2088 | E90: ₈ | F90: x₈
C91: 8329 | D91: 2089 | E91: ₉ | F91: x₉
C92: 8330 | D92: 208A | E92: ₊ | F92: x₊
C93: 8331 | D93: 208B | E93: ₋ | F93: x₋
C94: 8332 | D94: 208C | E94: ₌ | F94: x₌
C95: 8333 | D95: 208D | E95: ₍ | F95: x₍
C96: 8334 | D96: 208E | E96: ₎ | F96: x₎
C97: 8335
C98: 8336 | D98: 2090 | E98: ₐ | F98: xₐ
C99: 8337 | D99: 2091 | E99: ₑ | F99: xₑ
C100: 8341 | D100: 2095 | E100: ₕ | F100: xₕ
C101: 7522 | D101: 1D62 | E101: ᵢ | F101: xᵢ
C102: 8342 | D102: 2096 | E102: ₖ | F102: xₖ
C103: 8343 | D103: 2097 | E103: ₗ | F103: xₗ
C104: 8344 | D104: 2098 | E104: ₘ | F104: xₘ | G104: ="G"&_xlfn.UNICHAR(8344)&_xlfn.UNICHAR(8336)&_xlfn.UNICHAR(8339)&"=" -> Gₘₐₓ= | H104: ="G"&_xlfn.UNICHAR(8344)&_xlfn.UNICHAR(7522)&_xlfn.UNICHAR(8345)&"=" -> Gₘᵢₙ=
C105: 8345 | D105: 2099 | E105: ₙ | F105: xₙ | G105: ="x"&_xlfn.UNICHAR(8345)&_xlfn.UNICHAR(8331)&_xlfn.UNICHAR(8321) -> xₙ₋₁
C106: 8338 | D106: 2092 | E106: ₒ | F106: xₒ
C107: 8346 | D107: 209A | E107: ₚ | F107: xₚ
C108: 7523 | D108: 1D63 | E108: ᵣ | F108: xᵣ
C109: 8347 | D109: 209B | E109: ₛ | F109: xₛ
C110: 8348 | D110: 209C | E110: ₜ | F110: xₜ
C111: 7524 | D111: 1D64 | E111: ᵤ | F111: xᵤ
C112: 7525 | D112: 1D65 | E112: ᵥ | F112: xᵥ
C113: 8339 | D113: 2093 | E113: ₓ | F113: xₓ
C114: 8747 | D114: 222B | E114: ∫
A118: 2 | B118: Anwendung | C118: Eine mögliche Anwendung dieses Tricks ist hier zu sehen. Beachten Sie, dass y1 mit UNIZEICHEN() erzeugt wurde, y2 aber mit einer Formatierung. Letztere wird in der Legende des Diagramms nicht übernommen!
A119: 2
A120: 2
A121: 2
A122: 1 | B122: Application | C122: A possible application of this trick can be seen here. Note that y1 was created with UNICHAR(), but y2 with formatting. The latter is not taken over in the legend of the chart!
A123: 1
A124: 1
A125: 1
C126: x | D126: ="y"&_xlfn.UNICHAR(8321) -> y₁ | E126: y2
C127: -50 | D127: =5*C127+50 -> -200 | E127: =2*C127+100 -> 0
C128: -45 | D128: =5*C128+50 -> -175 | E128: =2*C128+100 -> 10
C129: -40 | D129: -150 | E129: 20
C130: -35 | D130: -125 | E130: 30
C131: -30 | D131: -100 | E131: 40
C132: -25 | D132: -75 | E132: 50
C133: -20 | D133: -50 | E133: 60
C134: -15 | D134: -25 | E134: 70
C135: -10 | D135: 0 | E135: 80
C136: -5 | D136: 25 | E136: 90
C137: 0 | D137: 50 | E137: 100
C138: 5 | D138: 75 | E138: 110
C139: 10 | D139: 100 | E139: 120
C140: 15 | D140: 125 | E140: 130
C141: 20 | D141: 150 | E141: 140
C142: 25 | D142: 175 | E142: 150
C143: 30 | D143: 200 | E143: 160
C144: 35 | D144: 225 | E144: 170
C145: 40 | D145: 250 | E145: 180
C146: 45 | D146: 275 | E146: 190
C147: 50 | D147: 300 | E147: 200
A150: 0

Sheet 27 "Seltsame" Zeitformate (A)_ (hidden)
B1: 2 | C1: 2 | D1: 2 | E1: 1 | F1: 1 | G1: 1 | H1: 0
A2: 1 | B2: 27 "Strange" time formats (E)_ | F2: =B2 -> 27 "Strange" time formats (E)_
A3: 2 | B3: 27 "Seltsame" Zeitformate (A)_
B5: 1 | C5: Die Zeitangaben in der Liste haben ein Format, das es in Excel gar nicht gibt. Es ist unmöglich, solche Daten einzugeben! Sie können das überprüfen, indem Sie eine der Zellen doppelt anklicken und dann auf die Enter-Taste drücken. Der Zellinhalt wird automatisch in ein "richtiges" Excel-Zeitformat umgewandelt! Außerdem wird die Zelle rechtsbündig formatiert. Solche "seltsamen" Zeitformate entstehen beim Export von Daten aus anderen Anwendungen nach Excel. | E5: 1 | F5: The time data in the above list have a format, which doesn't exist in Excel. It is not possible to enter such data! You can check this, if you click into one of the cells and then press the "Enter" key. The content of the cell is automatically converted into a "right" Excel time format. The cell is also formatted right-aligned. Such "strange" time formats appear if data are exported from other applications to Excel.
B6: =IF(C6<>"",B5+1,"") -> 2 | C6: Sie können das auch überprüfen, indem Sie eine der Zellen anklicken und dann die Formatbox im Menü "Start / Zahl" öffnen. Eine "richtige" Excel-Zeit wird dort unter "Zahlenformat" als Kommazahl angezeigt (z.B.: 43711,67). Die "falsche" Excel-Zeit wird dort als Zeit angezeigt (z.B. 03.09.2019 16:00). | E6: =IF(F6<>"",E5+1,"") -> 2 | F6: You can also check this, if you click into one of the cells and then open the format box in the menu "Home / Number". A "right" Excel time is displayed there under "Number" as a decimal (e.g. 43711,67). The "wrong" Excel time is displayed as a time (e.g. 03.09.2019 16:00).
B7: =IF(C7<>"",B6+1,"") -> 3 | C7: Zur Umwandlung des "falschen" Formats in das "richtige" Excel-Zeitformat können Sie den Excel-Formatkonverter benutzen: "Daten / Datentools / Text in Spalten" Allerdings funktioniert das immer nur für eine Spalte. Zur Übung füllen Sie dann bitte die Tabelle in den Spalten K bis U aus und beobachten Sie sorgfältig, welche Zellen richtige und welche falsche Ergebnisse enthalten! | E7: =IF(F7<>"",E6+1,"") -> 3 | F7: To change the "wrong" format to the "right" Excel time format you can use the Excel format converter: "Data / Data Tools / Text to Columns" However, this only works for one column at a time. For practice, please fill in the table in columns K to U and observe carefully which cells contain correct results and which one incorrect ones!
A20: 0
